Service Area,Service Division,Expense Type,Expense Code,Detailed Expense Type,Payment Date,Transaction Number,Amount Exc Vat,Supplier Name
Children and Adult Services,Central Charges (CYPS),Employees,005001,Pay,01-Sep-2016,3173907-RED-08-2016-309,"10,000.00",REDACTED - PAYMENT TO INDIVIDUAL
Children and Adult Services,Childrens Services,Third Party Payments,486032,Service Level Agreements,01-Sep-2016,3173838-CONTRACT00001226,"2,576.97",ACTION FOR CHILDREN.
Children and Adult Services,Childrens Services,Supplies and Services,384237,Miscellaneous Expenses,01-Sep-2016,3173903-INV03383,"1,430.00",FLAMINGO LAND LTD.
Children and Adult Services,Childrens Services,Supplies and Services,364352,Grants to Voluntary Organisations,01-Sep-2016,3174018-252,722.12,STONHAM HOUSING ASSOCIATION LTD.
Children and Adult Services,Childrens Services,Premises,125009,Rents,01-Sep-2016,3174053-404001,612.00,WHITTLE JONES (GROUP) LTD.
Children and Adult Services,Childrens Services,Premises,125009,Rents,01-Sep-2016,3174053-406977,612.00,WHITTLE JONES (GROUP) LTD.
Children and Adult Services,Commissioning inc Supporting People,Premises,145050,Cleaning and Domestic Supplies,01-Sep-2016,3173844-61545,"11,344.70",ANLABY OFFICE CLEANING SERVICES LTD.
Children and Adult Services,Education,Supplies and Services,372009,Subscriptions,01-Sep-2016,3173850-INV-0262,820.00,ASSOCIATION OF ADULT EDUCATION & TRAINING ORGANISATION T/A HOLEX.
Children and Adult Services,Education,Construction Work,908105,Construction work,01-Sep-2016,3173950-36893,500.00,LUCION ENVIRONMENTAL LLP LTD.
Children and Adult Services,Education,Transfer Payments,510026,School Children,01-Sep-2016,3173989-1A,604.80,PLAYDAY NURSERY.
Children and Adult Services,Education,Transfer Payments,510026,School Children,01-Sep-2016,3174033-CAS-08-2016-182,"3,180.00",THE NURSERY.
Children and Adult Services,Head of Adults,Supplies and Services,338365,Services,01-Sep-2016,3174000-076596,542.95,ROMPA LTD.
Children and Adult Services,Planning & Service Strategy,Supplies and Services,332047,Printing Stationery and Gen Off Exps,01-Sep-2016,3173976-91374711,"3,939.98",NORTHGATE PUBLIC SERVICES (UK) LTD.
Children and Adult Services,Public Health,Third Party Payments,460803,Contract Payments,01-Sep-2016,3173857-FQYW/51SC,646.00,BESTWAY NATIONAL CHEMIST LTD T/A WELL.
Children and Adult Services,Public Health,Third Party Payments,460803,Contract Payments,01-Sep-2016,3173858-DYPD/54SC,"1,170.00",BESTWAY NATIONAL CHEMIST LTD T/A WELL.
Children and Adult Services,Public Health,Third Party Payments,460802,Contract Payments,01-Sep-2016,3173944-SI-002961,"8,690.00",LEISUREWORKS.
Children and Adult Services,Public Health,Third Party Payments,460802,Contract Payments,01-Sep-2016,3173944-SI-003034,"4,835.00",LEISUREWORKS.
Children and Adult Services,Public Health,Third Party Payments,460802,Contract Payments,01-Sep-2016,3173944-SI-003043,"9,700.00",LEISUREWORKS.
Children and Adult Services,Public Health,Third Party Payments,460803,Contract Payments,01-Sep-2016,3174022-LQPJ/43SC,"1,100.00",T & J HEALTHCARE LTD T/A STATION ROAD PHARMACY..
Children and Adult Services,Public Health,Third Party Payments,460803,Contract Payments,01-Sep-2016,3174031-DPNG/42SC,664.00,TESCO PHARMACY.
Neighbourhood Services,Culture & Sport,Supplies and Services,338099,Services,01-Sep-2016,3173848-T2173,"1,300.00",AS AUDIO SERVICES.
Neighbourhood Services,Culture & Sport,Supplies and Services,338099,Services,01-Sep-2016,3173848-T2174,"4,000.00",AS AUDIO SERVICES.
Neighbourhood Services,Culture & Sport,Supplies and Services,338099,Services,01-Sep-2016,3173848-T2175,"1,800.00",AS AUDIO SERVICES.
Neighbourhood Services,Culture & Sport,Construction Work,908105,Construction work,01-Sep-2016,3173900-INSWHARTONPARK,"23,745.43",ESH CONSTRUCTION LTD FORMERLY LUMSDEN & CARROLL CONSTRUCTION LTD.
Neighbourhood Services,Culture & Sport,Income,715460,Sales,01-Sep-2016,3174015-NEI-INC-08-2016-029,"2,640.00",STEVEN LLOYD PROMOTIONS LTD.
Neighbourhood Services,Culture & Sport,Supplies and Services,324117,Provisions,01-Sep-2016,3174027-9411011134,"1,196.80",TCHIBO COFFEE INTERNATIONAL LTD.
Neighbourhood Services,Culture & Sport,Supplies and Services,312013,Newspapers Books and Periodicals,01-Sep-2016,3174042-I603962,635.64,ULVERSCROFT LARGE PRINT BOOKS LTD.
Neighbourhood Services,Direct Services,Income,720264,Fees and Charges,01-Sep-2016,3173853-NEI-INC-08-2016-027,566.00,BARNARDO SERVICES LTD.
Neighbourhood Services,Direct Services,Third Party Payments,430100,Rendered by Private Contractors,01-Sep-2016,3173876-1306,653.81,CATHEDRAL LOCK & SAFE SERVICES LTD.
Neighbourhood Services,Direct Services,Third Party Payments,430100,Rendered by Private Contractors,01-Sep-2016,3173876-1367,"3,464.80",CATHEDRAL LOCK & SAFE SERVICES LTD.
Neighbourhood Services,Direct Services,Third Party Payments,430101,Rendered by Private Contractors,01-Sep-2016,3173891-IV805174,"1,583.05",DIRECT TYRE MANAGEMENT (DTM).
Neighbourhood Services,Direct Services,Third Party Payments,430101,Rendered by Private Contractors,01-Sep-2016,3173891-IV805178,"2,319.00",DIRECT TYRE MANAGEMENT (DTM).
Neighbourhood Services,Direct Services,Transport,230005,Contract Hire,01-Sep-2016,3173898-8130952,730.67,ENTERPRISE FLEX-E-RENT T/A BURNT TREE GROUP LTD.
Neighbourhood Services,Direct Services,Supplies and Services,304221,Equipment and Materials,01-Sep-2016,3173914-4528954,"2,049.46",HEADLAM (FLOORCOVERING DISTRIBUTORS) LTD.
Neighbourhood Services,Direct Services,Third Party Payments,430100,Rendered by Private Contractors,01-Sep-2016,3173920-6916,500.00,IBA FABRICATIONS LTD.
Neighbourhood Services,Direct Services,Third Party Payments,430100,Rendered by Private Contractors,01-Sep-2016,3173926-4187,"1,150.00",JAMES INGLEFORD SCAFFOLDING LTD.
Neighbourhood Services,Direct Services,Supplies and Services,304221,Equipment and Materials,01-Sep-2016,3173937-BI1197260,526.80,JT DOVE LTD.
Neighbourhood Services,Direct Services,Supplies and Services,304221,Equipment and Materials,01-Sep-2016,3173937-BII194484,"1,173.63",JT DOVE LTD.
Neighbourhood Services,Direct Services,Supplies and Services,304221,Equipment and Materials,01-Sep-2016,3173937-BII195541,574.56,JT DOVE LTD.
Neighbourhood Services,Direct Services,Supplies and Services,304221,Equipment and Materials,01-Sep-2016,3173937-BII196410,971.28,JT DOVE LTD.
Neighbourhood Services,Direct Services,Supplies and Services,304221,Equipment and Materials,01-Sep-2016,3173937-BII196682,"1,281.36",JT DOVE LTD.
Neighbourhood Services,Direct Services,Supplies and Services,304221,Equipment and Materials,01-Sep-2016,3173937-BII197592,907.20,JT DOVE LTD.
Neighbourhood Services,Direct Services,Third Party Payments,430100,Rendered by Private Contractors,01-Sep-2016,3173947-SI2335601,"1,300.00",LINDEN FLUID POWER LTD.
Neighbourhood Services,Direct Services,Supplies and Services,304221,Equipment and Materials,01-Sep-2016,3173949-NE161974,779.80,LLOYD WORRALL (NEWCASTLE UPON TYNE) LTD.
Neighbourhood Services,Direct Services,Transport,215022,Running Costs of Vehicles,01-Sep-2016,3173979-189136,"1,743.53",OIL NRG LTD.
Neighbourhood Services,Direct Services,Supplies and Services,304221,Equipment and Materials,01-Sep-2016,3173982-BR551128,"1,560.00",PARK ELECTRICAL DISTRIBUTORS LTD.
Neighbourhood Services,Direct Services,Supplies and Services,304221,Equipment and Materials,01-Sep-2016,3173982-XL177691,771.90,PARK ELECTRICAL DISTRIBUTORS LTD.
Neighbourhood Services,Direct Services,Third Party Payments,430100,Rendered by Private Contractors,01-Sep-2016,3174014-9939,"6,993.60",STEADFAST SECURITY SOLUTIONS LTD.
Neighbourhood Services,Direct Services,Third Party Payments,430100,Rendered by Private Contractors,01-Sep-2016,3174028-7812,775.00,TEAM VALLEY TRANSMISSIONS LTD.
Neighbourhood Services,Direct Services,Transport,230005,Contract Hire,01-Sep-2016,3174038-15070,800.00,TRASH UK LTD.
Neighbourhood Services,Direct Services,Transport,230005,Contract Hire,01-Sep-2016,3174048-70759,756.00,WARREN ACCESS LTD.
Neighbourhood Services,Direct Services,Supplies and Services,304221,Equipment and Materials,01-Sep-2016,3174057-35155147,546.87,WOLSELEY UK LTD.
Neighbourhood Services,Direct Services,Third Party Payments,430100,Rendered by Private Contractors,01-Sep-2016,3174058-C346/792,"2,549.30",WRAM FABRICATIONS LTD.
Neighbourhood Services,EnvironmentHealth & Consumer Protection,Supplies and Services,338027,Services,01-Sep-2016,3174016-882,"5,481.57",STM ENVIRONMENTAL LTD.
Neighbourhood Services,Projects and Business services,Third Party Payments,430100,Rendered by Private Contractors,01-Sep-2016,3173980-R45071,730.00,O`BRIEN WASTE RECYCLING SOLUTIONS LTD.
Neighbourhood Services,Technical Services,Supplies and Services,304221,Equipment and Materials,01-Sep-2016,3173839-23160472,610.03,AGGREGATE INDUSTRIES UK LTD.
Neighbourhood Services,Technical Services,Supplies and Services,304221,Equipment and Materials,01-Sep-2016,3173839-23198422,737.54,AGGREGATE INDUSTRIES UK LTD.
Neighbourhood Services,Technical Services,Supplies and Services,304221,Equipment and Materials,01-Sep-2016,3173839-23405987,"1,972.34",AGGREGATE INDUSTRIES UK LTD.
Neighbourhood Services,Technical Services,Supplies and Services,304221,Equipment and Materials,01-Sep-2016,3173839-23412256,"1,606.10",AGGREGATE INDUSTRIES UK LTD.
Neighbourhood Services,Technical Services,Supplies and Services,304221,Equipment and Materials,01-Sep-2016,3173839-23469260,"1,226.41",AGGREGATE INDUSTRIES UK LTD.
Neighbourhood Services,Technical Services,Supplies and Services,304221,Equipment and Materials,01-Sep-2016,3173839-23482535,"1,236.44",AGGREGATE INDUSTRIES UK LTD.
Neighbourhood Services,Technical Services,Supplies and Services,304221,Equipment and Materials,01-Sep-2016,3173839-23492601,"1,210.36",AGGREGATE INDUSTRIES UK LTD.
Neighbourhood Services,Technical Services,Supplies and Services,304221,Equipment and Materials,01-Sep-2016,3173839-23562762,505.94,AGGREGATE INDUSTRIES UK LTD.
Neighbourhood Services,Technical Services,Supplies and Services,304221,Equipment and Materials,01-Sep-2016,3173839-23568609,"1,255.25",AGGREGATE INDUSTRIES UK LTD.
Neighbourhood Services,Technical Services,Supplies and Services,304221,Equipment and Materials,01-Sep-2016,3173839-23568615,501.00,AGGREGATE INDUSTRIES UK LTD.
Neighbourhood Services,Technical Services,Supplies and Services,304221,Equipment and Materials,01-Sep-2016,3173839-23632186,"1,115.93",AGGREGATE INDUSTRIES UK LTD.
Neighbourhood Services,Technical Services,Supplies and Services,304221,Equipment and Materials,01-Sep-2016,3173839-23651425,"1,022.01",AGGREGATE INDUSTRIES UK LTD.
Neighbourhood Services,Technical Services,Premises,150015,Apportioned Exps of Operational Blds,01-Sep-2016,3173882-48702,862.47,CLEE HILL PLANT LTD.
Neighbourhood Services,Technical Services,Premises,150015,Apportioned Exps of Operational Blds,01-Sep-2016,3173882-48704,862.47,CLEE HILL PLANT LTD.
Neighbourhood Services,Technical Services,Premises,150015,Apportioned Exps of Operational Blds,01-Sep-2016,3173882-48707,862.47,CLEE HILL PLANT LTD.
Neighbourhood Services,Technical Services,Premises,150015,Apportioned Exps of Operational Blds,01-Sep-2016,3173882-48708,862.47,CLEE HILL PLANT LTD.
Neighbourhood Services,Technical Services,Stock,926900,Stock in hand-Inventory system,01-Sep-2016,3173909-06/613273,"2,762.10",GREENHAM TRADING LTD.
Neighbourhood Services,Technical Services,Supplies and Services,304358,Equipment and Materials,01-Sep-2016,3173919-C294,903.10,IAN WILSON.
Neighbourhood Services,Technical Services,Supplies and Services,304358,Equipment and Materials,01-Sep-2016,3173919-C295,"2,024.10",IAN WILSON.
Neighbourhood Services,Technical Services,Stock,926004,Stock,01-Sep-2016,3173921-190004079,"16,390.20",ICL UK (SALES) LTD.
Neighbourhood Services,Technical Services,Third Party Payments,460109,Contract Payments,01-Sep-2016,3173924-INS1295,"6,440.00",INSPECTORATE LTD T/A ROCH NDT SERVICES.
Neighbourhood Services,Technical Services,Third Party Payments,460109,Contract Payments,01-Sep-2016,3173924-INS1300,"2,560.00",INSPECTORATE LTD T/A ROCH NDT SERVICES.
Neighbourhood Services,Technical Services,Third Party Payments,460109,Contract Payments,01-Sep-2016,3173924-INS1305,"3,280.00",INSPECTORATE LTD T/A ROCH NDT SERVICES.
Neighbourhood Services,Technical Services,Supplies and Services,338027,Services,01-Sep-2016,3173925-B225H003-044,"3,150.12",JACOBS UK LTD.
Neighbourhood Services,Technical Services,Supplies and Services,338027,Services,01-Sep-2016,3173925-B22SH006-024,"2,894.85",JACOBS UK LTD.
Neighbourhood Services,Technical Services,Supplies and Services,338027,Services,01-Sep-2016,3173925-B22SH007-010,"2,426.16",JACOBS UK LTD.
Neighbourhood Services,Technical Services,Supplies and Services,304221,Equipment and Materials,01-Sep-2016,3173937-BAI269737,766.80,JT DOVE LTD.
Neighbourhood Services,Technical Services,Supplies and Services,304221,Equipment and Materials,01-Sep-2016,3173937-BII199822,"2,028.36",JT DOVE LTD.
Neighbourhood Services,Technical Services,Supplies and Services,304221,Equipment and Materials,01-Sep-2016,3173937-HE1641559,749.94,JT DOVE LTD.
Neighbourhood Services,Technical Services,Third Party Payments,430100,Rendered by Private Contractors,01-Sep-2016,3173943-INV01104878,"1,980.00",LANES GROUP PLC.
Neighbourhood Services,Technical Services,Third Party Payments,430100,Rendered by Private Contractors,01-Sep-2016,3173943-INV01104881,"2,860.00",LANES GROUP PLC.
Neighbourhood Services,Technical Services,Supplies and Services,338066,Services,01-Sep-2016,3173966-2217,"34,235.61",NEPRO LTD.
Neighbourhood Services,Technical Services,Third Party Payments,430100,Rendered by Private Contractors,01-Sep-2016,3173993-91126,550.00,PROTECTOR SECURITY GROUP LTD.
Neighbourhood Services,Technical Services,Third Party Payments,430100,Rendered by Private Contractors,01-Sep-2016,3173993-91127,550.00,PROTECTOR SECURITY GROUP LTD.
Neighbourhood Services,Technical Services,Supplies and Services,304221,Equipment and Materials,01-Sep-2016,3173993-91128,550.00,PROTECTOR SECURITY GROUP LTD.
Neighbourhood Services,Technical Services,Third Party Payments,430100,Rendered by Private Contractors,01-Sep-2016,3173993-91129,550.00,PROTECTOR SECURITY GROUP LTD.
Neighbourhood Services,Technical Services,Supplies and Services,304221,Equipment and Materials,01-Sep-2016,3173993-91130,550.00,PROTECTOR SECURITY GROUP LTD.
Neighbourhood Services,Technical Services,Stock,926900,Stock in hand-Inventory system,01-Sep-2016,3173995-226693,"1,438.40",PUDSEY DIAMOND ENGINEERING LTD.
Neighbourhood Services,Technical Services,Supplies and Services,304221,Equipment and Materials,01-Sep-2016,3174008-714560018406,"2,117.08",SIG TRADING LTD.
Neighbourhood Services,Technical Services,Stock,926900,Stock in hand-Inventory system,01-Sep-2016,3174017-083812,988.40,STONEGRAVE AGGREGATES LTD.
Neighbourhood Services,Technical Services,Supplies and Services,342051,Computers and Communications,01-Sep-2016,3174021-160098,"51,660.00",SYMOLOGY LTD.
Neighbourhood Services,Technical Services,Supplies and Services,304221,Equipment and Materials,01-Sep-2016,3174026-9034747550,"1,029.80",TARMAC TRADING LTD.
Neighbourhood Services,Technical Services,Supplies and Services,304221,Equipment and Materials,01-Sep-2016,3174026-9034786901,613.88,TARMAC TRADING LTD.
Neighbourhood Services,Technical Services,Supplies and Services,304221,Equipment and Materials,01-Sep-2016,3174041-164097,848.35,TYNEDALE ROADSTONE LTD.
Neighbourhood Services,Technical Services,Supplies and Services,304221,Equipment and Materials,01-Sep-2016,3174041-164098,839.57,TYNEDALE ROADSTONE LTD.
Neighbourhood Services,Technical Services,Premises,150015,Apportioned Exps of Operational Blds,01-Sep-2016,3174051-557141,598.29,WERNICK HIRE LTD.
Neighbourhood Services,Technical Services,Premises,150015,Apportioned Exps of Operational Blds,01-Sep-2016,3174051-557145,710.79,WERNICK HIRE LTD.
Neighbourhood Services,Technical Services,Stock,926900,Stock in hand-Inventory system,01-Sep-2016,3174057-35154226,"1,339.55",WOLSELEY UK LTD.
Regeneration & Economic Development,Economic Development and Housing,Supplies and Services,324117,Provisions,01-Sep-2016,3173861-68731159,861.95,BIDVEST FOODSERVICE (FORMERLY 3663).
Regeneration & Economic Development,Economic Development and Housing,Premises,120009,Energy Costs,01-Sep-2016,3173872-996100431,992.36,BRITISH GAS BUSINESS.
Regeneration & Economic Development,Economic Development and Housing,Supplies and Services,384899,Miscellaneous Expenses,01-Sep-2016,3173873-10304,"1,250.00",BUSINESS & ENTERPRISE COMMERCIAL LTD T/A BE GROUP.
Regeneration & Economic Development,Economic Development and Housing,Premises,108099,Service Repairs and Maintenance,01-Sep-2016,3173897-629/16,"4,900.00",EMPEROR FLOORING NORTHEAST LTD.
Regeneration & Economic Development,Economic Development and Housing,Supplies and Services,332001,Printing Stationery and Gen Off Exps,01-Sep-2016,3173922-32051092,576.19,INITIAL WASHROOM SOLUTIONS.
Regeneration & Economic Development,Economic Development and Housing,Premises,106099,Centrally Controlled Rep and Maint,01-Sep-2016,3173922-32058734,613.32,INITIAL WASHROOM SOLUTIONS.
Regeneration & Economic Development,Economic Development and Housing,Premises,145050,Cleaning and Domestic Supplies,01-Sep-2016,3173954-101,855.00,MIKE TINKLER T/A ABSOLUTELY CLEAN.
Regeneration & Economic Development,Economic Development and Housing,Cap Exp on Grants & Other Financial Assistance (REFCUS),918401,Capital grants,01-Sep-2016,3173961-RED-08-2016-316,"13,500.00",REDACTED - PAYMENT TO INDIVIDUAL
Regeneration & Economic Development,Economic Development and Housing,Supplies and Services,344033,Telephones,01-Sep-2016,3173988-003S66862,990.59,PHONE CO-OP.
Regeneration & Economic Development,Economic Development and Housing,Cap Exp on Grants & Other Financial Assistance (REFCUS),918401,Capital grants,01-Sep-2016,3174004-RED-08-2016-317,"1,250.00",SHANE LAWSON T/A SCL PROPERTY SERVICES.
Regeneration & Economic Development,Transport and Contracted Services,Supplies and Services,342053,Computers and Communications,01-Sep-2016,3174006-M0716018,750.00,SIAS LTD.
Regeneration & Economic Development,Transport and Contracted Services,Third Party Payments,430108,Rendered by Private Contractors,01-Sep-2016,3174020-90008408,762.52,SWARCO TRAFFIC LTD.
Resources,I.C.T. Services,Stock,926900,Stock in hand-Inventory system,01-Sep-2016,3173888-7402297151,915.98,DELL COMPUTER CORPORATION LTD.
Resources,I.C.T. Services,Stock,926900,Stock in hand-Inventory system,01-Sep-2016,3173888-7402302373,"5,130.00",DELL COMPUTER CORPORATION LTD.
Resources,I.C.T. Services,Stock,926900,Stock in hand-Inventory system,01-Sep-2016,3173888-7402303711,"5,908.88",DELL COMPUTER CORPORATION LTD.
Resources,I.C.T. Services,Stock,926900,Stock in hand-Inventory system,01-Sep-2016,3173888-7402307580,"9,945.50",DELL COMPUTER CORPORATION LTD.
Resources,I.C.T. Services,Stock,926900,Stock in hand-Inventory system,01-Sep-2016,3173888-7402307584,"87,200.00",DELL COMPUTER CORPORATION LTD.
Resources,I.C.T. Services,Stock,926900,Stock in hand-Inventory system,01-Sep-2016,3173923-2952231,"3,000.00",INSIGHT DIRECT (UK) LTD.
Resources,Legal & Democratic Services,Supplies and Services,338044,Services,01-Sep-2016,3173889-321064/INVFM157,"1,800.00",DERE STREET BARRISTERS.
Children and Adult Services,Childrens Services,Third Party Payments,440999,Other Third Party Payments,02-Sep-2016,3174147-20015233,"55,000.00",DURHAM POLICE & CRIME COMMISSIONER.
Children and Adult Services,Childrens Services,Supplies and Services,384199,Miscellaneous Expenses,02-Sep-2016,3174232-391958,"2,643.03",MPLC MOTION PICTURE LICENSING CORPORATION.
Children and Adult Services,Childrens Services,Supplies and Services,344033,Telephones,02-Sep-2016,3174341-202878,572.70,UNIFY BUSINESS SOLUTIONS LTD.
Children and Adult Services,Commissioning inc Supporting People,Transfer Payments,515210,Social Services Clients,02-Sep-2016,3174235-CAS-09-2016-003,"1,950.00",REDACTED - PAYMENT TO INDIVIDUAL
Children and Adult Services,Public Health,Third Party Payments,460803,Contract Payments,02-Sep-2016,3174077-DPQX/67NRT,582.85,ASDA PHARMACY.
Children and Adult Services,Public Health,Third Party Payments,460803,Contract Payments,02-Sep-2016,3174080-DTPB/58NRT,"1,634.48",ASDA PHARMACY.
Children and Adult Services,Public Health,Third Party Payments,460803,Contract Payments,02-Sep-2016,3174089-DXGC/47NRT,"1,378.31",BEWICK PHARMACY.
Children and Adult Services,Public Health,Third Party Payments,460803,Contract Payments,02-Sep-2016,3174093-FCPT/39NRT,684.12,BOOTS THE CHEMISTS LTD.
Children and Adult Services,Public Health,Third Party Payments,460803,Contract Payments,02-Sep-2016,3174095-DZJM/64NRT,556.84,BOOTS THE CHEMISTS LTD.
Children and Adult Services,Public Health,Third Party Payments,460803,Contract Payments,02-Sep-2016,3174160-FBQJ/55NRT,"1,093.37",FARAH CHEMISTS LTD.
Children and Adult Services,Public Health,Third Party Payments,460803,Contract Payments,02-Sep-2016,3174168-FNCW/65NRT,"1,268.99",G WHITFIELD LTD.
Children and Adult Services,Public Health,Third Party Payments,460803,Contract Payments,02-Sep-2016,3174198-DQPW/57NRT,789.54,INTRAHEALTH LTD.
Children and Adult Services,Public Health,Third Party Payments,460803,Contract Payments,02-Sep-2016,3174206-FCAF/47NRT,852.32,JF EILBECK CHEMIST LTD.
Children and Adult Services,Public Health,Third Party Payments,460803,Contract Payments,02-Sep-2016,3174288-FCTK/59NRT,780.77,ROBERTS & ROBERTS LTD T/A HIGGINBOTTOM PHARMACY.
Children and Adult Services,Public Health,Third Party Payments,460803,Contract Payments,02-Sep-2016,3174358-FPDG/38NRT,"1,025.03",WELSH CHEMIST.
Children and Adult Services,Public Health,Third Party Payments,460803,Contract Payments,02-Sep-2016,3174361-FRAK/64NRT,615.04,WG CLEMITSONS LTD.
Assistant Chief Executive,Partnerships & Community Engagement Div.,Cap Exp on Grants & Other Financial Assistance (REFCUS),918004,Contributions to other bodies,02-Sep-2016,3174085-TEES001SGF027,"1,000.00",BARNINGHAM VILLAGE HALL ASSOCIATION.
Assistant Chief Executive,Partnerships & Community Engagement Div.,Transfer Payments,525030,Other,02-Sep-2016,3174144-DCTY013SGF04,996.00,DURHAM AMATEUR ROWING CLUB.
Assistant Chief Executive,Partnerships & Community Engagement Div.,Transfer Payments,525030,Other,02-Sep-2016,3174154-WEAR001SGF178,"1,232.00",EDMUNDBYERS WOMENS INSTITUTE.
Assistant Chief Executive,Partnerships & Community Engagement Div.,Transfer Payments,525030,Other,02-Sep-2016,3174167-WEAR001SGF174,"1,000.00",FROSTERLEY VILLAGE HALL & INSTITUTE.
Assistant Chief Executive,Partnerships & Community Engagement Div.,Transfer Payments,525030,Other,02-Sep-2016,3174216-DCTY013SGF01,800.00,LAUREL AVENUE COMMUNITY ASSOCIATION.
Assistant Chief Executive,Partnerships & Community Engagement Div.,Cap Exp on Grants & Other Financial Assistance (REFCUS),918004,Contributions to other bodies,02-Sep-2016,3174220-4TOG001SGF04,"3,000.00",LIVIN HOUSING LTD.
Assistant Chief Executive,Partnerships & Community Engagement Div.,Cap Exp on Grants & Other Financial Assistance (REFCUS),918004,Contributions to other bodies,02-Sep-2016,3174310-3TWN004,"2,500.00",STANLEY VILLAGE HALL ASSOCIATION.
Assistant Chief Executive,Partnerships & Community Engagement Div.,Transfer Payments,525030,Other,02-Sep-2016,3174325-DCTY,"1,463.82",THE CHEESY WAFFLES PROJECT.
Assistant Chief Executive,Partnerships & Community Engagement Div.,Transfer Payments,525030,Other,02-Sep-2016,3174357-WEAR002SGF173,750.00,WEARDALE COMMUNITY CHOIR.
Assistant Chief Executive,Policy & Communications Division,Supplies and Services,384999,Miscellaneous Expenses,02-Sep-2016,3174141-10010262,"7,000.00",DURHAM & DARLINGTON FIRE & RESCUE.
Neighbourhood Services,Culture & Sport,Supplies and Services,304337,Equipment and Materials,02-Sep-2016,3174068-7784,"1,375.55",ALISON BLACK LTD T/A SPORTMAX.
Neighbourhood Services,Culture & Sport,Supplies and Services,324001,Provisions,02-Sep-2016,3174108-842915447,"1,080.39",CARLSBERG UK LTD.
Neighbourhood Services,Culture & Sport,Supplies and Services,324001,Provisions,02-Sep-2016,3174108-842949374,"1,304.62",CARLSBERG UK LTD.
Neighbourhood Services,Culture & Sport,Supplies and Services,304259,Equipment and Materials,02-Sep-2016,3174130-66411,"4,720.00",CYNTECH TRADING LTD T/A JUST PROJECTORS.
Neighbourhood Services,Culture & Sport,Supplies and Services,338047,Services,02-Sep-2016,3174267-INV23122,765.21,PICTUREHOUSE ENTERTAINMENT LTD.
Neighbourhood Services,Culture & Sport,Supplies and Services,338047,Services,02-Sep-2016,3174338-GB16B0105737,"1,361.99",TWENTIETH CENTURY FOX FILM COMPANY LTD.
Neighbourhood Services,Culture & Sport,Supplies and Services,338047,Services,02-Sep-2016,3174353-1542580,"4,561.22",WALT DISNEY CO LTD.
Neighbourhood Services,Direct Services,Supplies and Services,304259,Equipment and Materials,02-Sep-2016,3174062-2337,"1,210.00",A & J GUTHRIE.
Neighbourhood Services,Direct Services,Supplies and Services,304259,Equipment and Materials,02-Sep-2016,3174091-3036960730,796.95,BOC LTD.
Neighbourhood Services,Direct Services,Third Party Payments,430100,Rendered by Private Contractors,02-Sep-2016,3174109-1366,"1,546.00",CATHEDRAL LOCK & SAFE SERVICES LTD.
Neighbourhood Services,Direct Services,Third Party Payments,430100,Rendered by Private Contractors,02-Sep-2016,3174137-DCCMANUAL12,"3,562.50",DFP SERVICES LTD.
Neighbourhood Services,Direct Services,Third Party Payments,430100,Rendered by Private Contractors,02-Sep-2016,3174137-DCCMANUAL13,"4,980.00",DFP SERVICES LTD.
Neighbourhood Services,Direct Services,Supplies and Services,304259,Equipment and Materials,02-Sep-2016,3174174-714241,"2,435.00",GLASDON UK LTD.
Neighbourhood Services,Direct Services,Supplies and Services,304221,Equipment and Materials,02-Sep-2016,3174180-38117,914.08,GROUNDSMAN TOOLS AND SUPPLIES LLP.
Neighbourhood Services,Direct Services,Premises,106082,Centrally Controlled Rep and Maint,02-Sep-2016,3174197-UI10028763,"1,029.00",INTEGRATED UTILITY SERVICES LTD.
Neighbourhood Services,Direct Services,Supplies and Services,304221,Equipment and Materials,02-Sep-2016,3174211-BAI269822,922.45,JT DOVE LTD.
Neighbourhood Services,Direct Services,Supplies and Services,304221,Equipment and Materials,02-Sep-2016,3174211-PHBII30148,"2,120.72",JT DOVE LTD.
Neighbourhood Services,Direct Services,Third Party Payments,430100,Rendered by Private Contractors,02-Sep-2016,3174239-609439,"1,188.00",NATIONWIDE CHIMNEY COMPONENTS LTD.
Neighbourhood Services,Direct Services,Premises,120037,Energy Costs,02-Sep-2016,3174254-189009,503.78,OIL NRG LTD.
Neighbourhood Services,Direct Services,Transport,215005,Running Costs of Vehicles,02-Sep-2016,3174254-189135,"12,561.70",OIL NRG LTD.
Neighbourhood Services,Direct Services,Third Party Payments,430100,Rendered by Private Contractors,02-Sep-2016,3174256-560083,"1,904.00",P & N ASSOCIATES LTD.
Neighbourhood Services,Direct Services,Supplies and Services,304221,Equipment and Materials,02-Sep-2016,3174259-BR551172,906.31,PARK ELECTRICAL DISTRIBUTORS LTD.
Neighbourhood Services,Direct Services,Supplies and Services,304221,Equipment and Materials,02-Sep-2016,3174271-INV218564,638.70,POINTER FIRE LTD.
Neighbourhood Services,Direct Services,Supplies and Services,304259,Equipment and Materials,02-Sep-2016,3174285-754657,"3,300.00",RICKERBY LTD.
Neighbourhood Services,Direct Services,Supplies and Services,304259,Equipment and Materials,02-Sep-2016,3174285-754658,"3,300.00",RICKERBY LTD.
Neighbourhood Services,Direct Services,Supplies and Services,304259,Equipment and Materials,02-Sep-2016,3174285-754659,"3,300.00",RICKERBY LTD.
Neighbourhood Services,Direct Services,Premises,108099,Service Repairs and Maintenance,02-Sep-2016,3174286-176766,"2,506.96",RIELLO UPS LTD.
Neighbourhood Services,Direct Services,Third Party Payments,430100,Rendered by Private Contractors,02-Sep-2016,3174294-2820,"2,160.00",SAFE STRIP UK LTD.
Neighbourhood Services,Direct Services,Supplies and Services,304221,Equipment and Materials,02-Sep-2016,3174318-1989417,624.49,T CROSSLING & CO LTD.
Neighbourhood Services,Direct Services,Third Party Payments,430100,Rendered by Private Contractors,02-Sep-2016,3174328-0000094258,"2,170.35",THE SEKURA GROUP.
Neighbourhood Services,Direct Services,Third Party Payments,430100,Rendered by Private Contractors,02-Sep-2016,3174339-DCC/GT/11,572.32,TYNE VALLEY FLOORING & CARPETS.
Neighbourhood Services,Direct Services,Supplies and Services,304221,Equipment and Materials,02-Sep-2016,3174340-2090/16,"3,242.00",UK VENTILATON LTD.
Neighbourhood Services,Direct Services,Supplies and Services,304221,Equipment and Materials,02-Sep-2016,3174346-6890218692,"1,067.97",VIESSMANN LTD.
Neighbourhood Services,Direct Services,Supplies and Services,304221,Equipment and Materials,02-Sep-2016,3174350-81687,"2,695.14",VISION TECHNIQUES (UK) LTD.
Neighbourhood Services,Direct Services,Supplies and Services,304221,Equipment and Materials,02-Sep-2016,3174350-81688,"2,695.14",VISION TECHNIQUES (UK) LTD.
Neighbourhood Services,Direct Services,Supplies and Services,304259,Equipment and Materials,02-Sep-2016,3174351-16081682,"1,140.00",VL TEST SYSTEMS LTD.
Neighbourhood Services,Direct Services,Supplies and Services,304221,Equipment and Materials,02-Sep-2016,3174362-2079086,"1,864.90",WILKIES.
Neighbourhood Services,Direct Services,Supplies and Services,304221,Equipment and Materials,02-Sep-2016,3174363-34200358,"1,132.52",WOLSELEY UK LTD.
Neighbourhood Services,Direct Services,Supplies and Services,304221,Equipment and Materials,02-Sep-2016,3174363-34514736,648.01,WOLSELEY UK LTD.
Neighbourhood Services,Technical Services,Supplies and Services,304221,Equipment and Materials,02-Sep-2016,3174066-23077447,762.20,AGGREGATE INDUSTRIES UK LTD.
Neighbourhood Services,Technical Services,Supplies and Services,304221,Equipment and Materials,02-Sep-2016,3174066-23574971,"1,572.33",AGGREGATE INDUSTRIES UK LTD.
Neighbourhood Services,Technical Services,Supplies and Services,304221,Equipment and Materials,02-Sep-2016,3174066-23574976,589.40,AGGREGATE INDUSTRIES UK LTD.
Neighbourhood Services,Technical Services,Third Party Payments,430100,Rendered by Private Contractors,02-Sep-2016,3174086-1629003,"13,763.45",BCE NORTHERN LTD.
Neighbourhood Services,Technical Services,Stock,926900,Stock in hand-Inventory system,02-Sep-2016,3174122-185897,"1,607.04",COLAS LTD.
Neighbourhood Services,Technical Services,Third Party Payments,430100,Rendered by Private Contractors,02-Sep-2016,3174127-2016080109,"3,730.80",COVERDALE HERITAGE PROPERTIES LTD.
Neighbourhood Services,Technical Services,Stock,926004,Stock,02-Sep-2016,3174192-190004080,"11,901.00",ICL UK (SALES) LTD.
Neighbourhood Services,Technical Services,Supplies and Services,304221,Equipment and Materials,02-Sep-2016,3174195-537938,"4,950.00",INSTARMAC GROUP PLC.
Neighbourhood Services,Technical Services,Stock,926900,Stock in hand-Inventory system,02-Sep-2016,3174195-544898,"2,780.40",INSTARMAC GROUP PLC.
Neighbourhood Services,Technical Services,Employees,040149,Recruitment Instruction and Training,02-Sep-2016,3174196-X13733,"2,600.00",INSTITUTION OF LIGHTING PROFESSIONALS (ILP).
Neighbourhood Services,Technical Services,Supplies and Services,338027,Services,02-Sep-2016,3174202-B2107200-010,"12,023.95",JACOBS UK LTD.
Neighbourhood Services,Technical Services,Third Party Payments,430100,Rendered by Private Contractors,02-Sep-2016,3174268-4589,"21,514.50",PINKNEY BUILDING CONTRACTORS LTD.
Neighbourhood Services,Technical Services,Supplies and Services,304221,Equipment and Materials,02-Sep-2016,3174312-085022,620.16,STONEGRAVE AGGREGATES LTD.
Neighbourhood Services,Technical Services,Supplies and Services,342007,Computers and Communications,02-Sep-2016,3174317-160195,"66,700.00",SYMOLOGY LTD.
Neighbourhood Services,Technical Services,Supplies and Services,304221,Equipment and Materials,02-Sep-2016,3174319-9034901797,804.30,TARMAC TRADING LTD.
Regeneration & Economic Development,Economic Development and Housing,Supplies and Services,336005,Advertising,02-Sep-2016,3174064-273147,"2,000.00",AD POINT LTD.
Regeneration & Economic Development,Economic Development and Housing,Premises,106082,Centrally Controlled Rep and Maint,02-Sep-2016,3174109-1460,"1,701.28",CATHEDRAL LOCK & SAFE SERVICES LTD.
Regeneration & Economic Development,Economic Development and Housing,Premises,106082,Centrally Controlled Rep and Maint,02-Sep-2016,3174109-1461,"1,099.20",CATHEDRAL LOCK & SAFE SERVICES LTD.
Regeneration & Economic Development,Economic Development and Housing,Supplies and Services,384871,Miscellaneous Expenses,02-Sep-2016,3174163-6010,"1,145.50",FRED FOSTER TRANSPORT LTD.
Regeneration & Economic Development,Economic Development and Housing,Supplies and Services,384871,Miscellaneous Expenses,02-Sep-2016,3174163-6012,957.50,FRED FOSTER TRANSPORT LTD.
Regeneration & Economic Development,Economic Development and Housing,Supplies and Services,344033,Telephones,02-Sep-2016,3174166-131619,"1,087.40",FREEDOM COMMUNICATIONS (UK) LTD.
Regeneration & Economic Development,Transport and Contracted Services,Third Party Payments,430106,Rendered by Private Contractors,02-Sep-2016,3174295-118,"3,483.76",SB TRAVEL.
Regeneration & Economic Development,Transport and Contracted Services,Third Party Payments,430106,Rendered by Private Contractors,02-Sep-2016,3174331-PPT,"2,155.16",TONYS TAXIS (A BIRCH).
Resources,I.C.T. Services,Stock,926900,Stock in hand-Inventory system,02-Sep-2016,3174134-7402307840,"6,068.64",DELL COMPUTER CORPORATION LTD.
Resources,I.C.T. Services,Supplies and Services,332029,Printing Stationery and Gen Off Exps,02-Sep-2016,3174158-100893,695.00,ELANDERS UK.
Resources,I.C.T. Services,Supplies and Services,304639,Equipment and Materials,02-Sep-2016,3174194-3004589,821.79,INSIGHT DIRECT (UK) LTD.
Resources,I.C.T. Services,Supplies and Services,342051,Computers and Communications,02-Sep-2016,3174304-INV01433981,"80,817.65",SOFTCAT LTD.
Resources,I.C.T. Services,Supplies and Services,304303,Equipment and Materials,02-Sep-2016,3174334-118111,"1,018.00",TP ELECTRICAL SUPPLIES & FIXINGS LTD.
Resources,I.C.T. Services,Stock,926900,Stock in hand-Inventory system,02-Sep-2016,3174366-AR22044,"1,440.00",XMA LTD.
Children and Adult Services,Childrens Services,Third Party Payments,425041,Rendered by Voluntary Organisations,05-Sep-2016,3174422-3482592,"9,000.00",DFW ADOPTION.
Children and Adult Services,Childrens Services,Supplies and Services,364352,Grants to Voluntary Organisations,05-Sep-2016,3174446-D1IN/00024222,662.38,HOME GROUP LTD.
Children and Adult Services,Childrens Services,Supplies and Services,364355,Grants to Voluntary Organisations,05-Sep-2016,3174446-D1IN/00024223,"4,021.58",HOME GROUP LTD.
Children and Adult Services,Childrens Services,Third Party Payments,440056,Other Third Party Payments,05-Sep-2016,3174452-458,"3,459.21",IMPACT FAMILY SERVICES.
Children and Adult Services,Childrens Services,Third Party Payments,440056,Other Third Party Payments,05-Sep-2016,3174452-459,"4,610.24",IMPACT FAMILY SERVICES.
Children and Adult Services,Childrens Services,Supplies and Services,384199,Miscellaneous Expenses,05-Sep-2016,3174506-28,"4,290.00",MARGOT SKELTON T/A JITTABUGS DURHAM.
Children and Adult Services,Childrens Services,Supplies and Services,308011,Furniture,05-Sep-2016,3174507-INV023785,"5,856.00",MARMAX PRODUCTS LTD.
Children and Adult Services,Childrens Services,Supplies and Services,304259,Equipment and Materials,05-Sep-2016,3174546-50547,999.00,PRIMARY CARE SUPPLIES.
Children and Adult Services,Childrens Services,Third Party Payments,425041,Rendered by Voluntary Organisations,05-Sep-2016,3174567-996085,"2,250.00",ST FRANCIS CHILDRENS SOCIETY.
Children and Adult Services,Childrens Services,Supplies and Services,364355,Grants to Voluntary Organisations,05-Sep-2016,3174572-D1IN/00024224,"4,021.58",STONHAM HOUSING ASSOCIATION LTD.
Children and Adult Services,Education,Transfer Payments,510028,School Children,05-Sep-2016,3174398-CAS-07-2016-140,"3,000.00",BOURNMOOR NURSERY.
Children and Adult Services,Education,Transport,230008,Contract Hire,05-Sep-2016,3174421-110-JUL16,686.00,DEXTERS PRIVATE HIRE.
Children and Adult Services,Education,Transport,230007,Contract Hire,05-Sep-2016,3174432-JUNE/JULY,"1,200.00",FREEDOM PRIVATE HIRE.
Children and Adult Services,Education,Third Party Payments,440999,Other Third Party Payments,05-Sep-2016,3174527-1820,"1,105.00",NORTH EAST DANCE CIC.
Children and Adult Services,Education,Third Party Payments,440999,Other Third Party Payments,05-Sep-2016,3174527-1829,674.05,NORTH EAST DANCE CIC.
Children and Adult Services,Education,Supplies and Services,308013,Furniture,05-Sep-2016,3174551-58796,600.00,REGENCY BLINDS.
Children and Adult Services,Education,Construction Work,908105,Construction work,05-Sep-2016,3174557-2842,"9,600.00",SAFE STRIP UK LTD.
Children and Adult Services,Education,Transfer Payments,510026,School Children,05-Sep-2016,3174573-12448,"1,206.00",SUNSHINE DAY NURSERY.
Children and Adult Services,Education,Transfer Payments,510026,School Children,05-Sep-2016,3174573-12449,691.20,SUNSHINE DAY NURSERY.
Children and Adult Services,Education,Transfer Payments,510026,School Children,05-Sep-2016,3174573-12450,"1,209.60",SUNSHINE DAY NURSERY.
Children and Adult Services,Head of Adults,Transport,230005,Contract Hire,05-Sep-2016,3174569-DCC087/SLD005,"2,054.00",STEPHEN COXON.
Children and Adult Services,Head of Adults,Supplies and Services,342033,Computers and Communications,05-Sep-2016,3174582-4810007551,765.50,TEES ESK & WEAR VALLEYS NHS FOUNDATION TRUST.
Children and Adult Services,Public Health,Third Party Payments,460803,Contract Payments,05-Sep-2016,3174395-FGMG/46NRT,801.41,BOOTS THE CHEMISTS LTD.
Children and Adult Services,Public Health,Third Party Payments,460803,Contract Payments,05-Sep-2016,3174396-DPWT/60NRT,537.49,BOOTS THE CHEMISTS LTD.
Children and Adult Services,Public Health,Third Party Payments,460803,Contract Payments,05-Sep-2016,3174488-FQVV/52NRT,996.45,LLOYDS PHARMACY.
Children and Adult Services,Public Health,Third Party Payments,460803,Contract Payments,05-Sep-2016,3174489-FLRB/63NRT,739.52,LLOYDS PHARMACY.
Children and Adult Services,Public Health,Third Party Payments,460803,Contract Payments,05-Sep-2016,3174490-FPZD/49NRT,"1,775.05",LYDON PHARMACY GROUP LTD.
Children and Adult Services,Public Health,Third Party Payments,460803,Contract Payments,05-Sep-2016,3174494-LGFQ/67NRT,895.41,M & M PHARMACIES LTD.
Children and Adult Services,Public Health,Third Party Payments,460803,Contract Payments,05-Sep-2016,3174495-LKWJ/63NRT,"1,090.10",M & M PHARMACIES LTD.
Children and Adult Services,Public Health,Third Party Payments,460803,Contract Payments,05-Sep-2016,3174497-FFQC/50NRT,"1,025.07",M & M PHARMACIES LTD.
Children and Adult Services,Public Health,Third Party Payments,460803,Contract Payments,05-Sep-2016,3174558-DQGV/43NRT,554.25,USE (158693) SAINSBURYS PHARMACY.
Children and Adult Services,Public Health,Third Party Payments,460803,Contract Payments,05-Sep-2016,3174609-DWFD/45NRT,760.11,WHITWORTH CHEMISTS LTD.
Dedicated Schools Grant,Dedicated Schools Grant,Employees,080025,Agency Staff,05-Sep-2016,3174405-03890091,501.64,CAPITA BUSINESS SERVICES LTD.
Neighbourhood Services,Culture & Sport,Supplies and Services,304337,Equipment and Materials,05-Sep-2016,3174374-7296,500.90,ALISON BLACK LTD T/A SPORTMAX.
Neighbourhood Services,Culture & Sport,Supplies and Services,304337,Equipment and Materials,05-Sep-2016,3174374-7607,569.40,ALISON BLACK LTD T/A SPORTMAX.
Neighbourhood Services,Culture & Sport,Supplies and Services,384199,Miscellaneous Expenses,05-Sep-2016,3174378-100583,"200,000.00",ARTICHOKE TRUST.
Neighbourhood Services,Culture & Sport,Supplies and Services,312013,Newspapers Books and Periodicals,05-Sep-2016,3174379-5125086,571.51,ASKEWS & HOLTS LIBRARY SERVICES LTD.
Neighbourhood Services,Culture & Sport,Supplies and Services,312013,Newspapers Books and Periodicals,05-Sep-2016,3174379-5129327,533.28,ASKEWS & HOLTS LIBRARY SERVICES LTD.
Neighbourhood Services,Culture & Sport,Supplies and Services,312013,Newspapers Books and Periodicals,05-Sep-2016,3174379-5132380,517.96,ASKEWS & HOLTS LIBRARY SERVICES LTD.
Neighbourhood Services,Culture & Sport,Supplies and Services,312013,Newspapers Books and Periodicals,05-Sep-2016,3174379-5132414,585.13,ASKEWS & HOLTS LIBRARY SERVICES LTD.
Neighbourhood Services,Culture & Sport,Supplies and Services,312013,Newspapers Books and Periodicals,05-Sep-2016,3174392-115411,"1,496.00",BOOKSELLER MEDIA LTD T/A THE BOOKSELLER.
Neighbourhood Services,Culture & Sport,Supplies and Services,338047,Services,05-Sep-2016,3174462-21072016,"1,457.21",JAMIE BROWN.
Neighbourhood Services,Culture & Sport,Supplies and Services,338047,Services,05-Sep-2016,3174463-XX/6527B,"2,914.32",JANET PLATER MANAGEMENT LTD.
Neighbourhood Services,Culture & Sport,Premises,125009,Rents,05-Sep-2016,3174475-U5014,"3,425.00",LANGLEY PARK BUSINESS CENTRE.
Neighbourhood Services,Culture & Sport,Supplies and Services,304259,Equipment and Materials,05-Sep-2016,3174522-13236298,660.47,NISBETS PLC.
Neighbourhood Services,Culture & Sport,Supplies and Services,338047,Services,05-Sep-2016,3174534-1340,"1,338.00",PAYNE MANAGEMENT.
Neighbourhood Services,Culture & Sport,Supplies and Services,384199,Miscellaneous Expenses,05-Sep-2016,3174586-4100534052,"1,000.00",THE FAIREY BAND.
Neighbourhood Services,Culture & Sport,Supplies and Services,304259,Equipment and Materials,05-Sep-2016,3174610-731158,"22,455.00",WICKSTEED LEISURE LTD.
Neighbourhood Services,Direct Services,Supplies and Services,304221,Equipment and Materials,05-Sep-2016,3174407-851601986,"7,413.69",CARLISLE CONSTRUCTION MATERIALS LTD.
Neighbourhood Services,Direct Services,Premises,145023,Cleaning and Domestic Supplies,05-Sep-2016,3174439-06/612695,"1,939.40",GREENHAM TRADING LTD.
Neighbourhood Services,Direct Services,Supplies and Services,304221,Equipment and Materials,05-Sep-2016,3174442-J5713,727.62,GROVE REED.
Neighbourhood Services,Direct Services,Third Party Payments,430100,Rendered by Private Contractors,05-Sep-2016,3174461-3996,"2,502.50",JAMES INGLEFORD SCAFFOLDING LTD.
Neighbourhood Services,Direct Services,Third Party Payments,430100,Rendered by Private Contractors,05-Sep-2016,3174461-4058,"1,072.50",JAMES INGLEFORD SCAFFOLDING LTD.
Neighbourhood Services,Direct Services,Supplies and Services,304221,Equipment and Materials,05-Sep-2016,3174468-BAI270056,647.12,JT DOVE LTD.
Neighbourhood Services,Direct Services,Stock,926900,Stock in hand-Inventory system,05-Sep-2016,3174471-SI02-0115104,567.00,KILLGERM CHEMICALS LTD.
Neighbourhood Services,Direct Services,Supplies and Services,304221,Equipment and Materials,05-Sep-2016,3174529-2074032,"1,254.00",NORTHERN TOOLS & ACCESSORIES.
Neighbourhood Services,Direct Services,Supplies and Services,304221,Equipment and Materials,05-Sep-2016,3174529-2075556,790.00,NORTHERN TOOLS & ACCESSORIES.
Neighbourhood Services,Direct Services,Transport,215005,Running Costs of Vehicles,05-Sep-2016,3174530-189147,"32,211.91",OIL NRG LTD.
Neighbourhood Services,Direct Services,Third Party Payments,430100,Rendered by Private Contractors,05-Sep-2016,3174531-3744,"3,854.89",ORA PROPERTY SERVICES LTD.
Neighbourhood Services,Direct Services,Supplies and Services,304221,Equipment and Materials,05-Sep-2016,3174533-XL178102,651.46,PARK ELECTRICAL DISTRIBUTORS LTD.
Neighbourhood Services,Direct Services,Supplies and Services,304221,Equipment and Materials,05-Sep-2016,3174553-38770,"3,892.00",RJ UTILITY SERVICES LTD.
Neighbourhood Services,Direct Services,Supplies and Services,304221,Equipment and Materials,05-Sep-2016,3174578-2074319,"1,298.00",T CROSSLING & CO LTD.
Neighbourhood Services,Direct Services,Supplies and Services,304221,Equipment and Materials,05-Sep-2016,3174601-81701,"2,695.14",VISION TECHNIQUES (UK) LTD.
Neighbourhood Services,Direct Services,Supplies and Services,304221,Equipment and Materials,05-Sep-2016,3174614-35274757,"2,475.35",WOLSELEY UK LTD.
Neighbourhood Services,Neighbourhood central costs,Debtors,930017,Debtor-gas contract holding account,05-Sep-2016,3174416-NEI-EXP-09-2016-002,"111,219.20",CORONA ENERGY RETAIL 2 LTD.
Neighbourhood Services,Projects and Business services,Third Party Payments,430120,Rendered by Private Contractors,05-Sep-2016,3174427-CTIN06485425,"6,485.20",FINNING (UK) LTD.
Neighbourhood Services,Projects and Business services,Third Party Payments,430120,Rendered by Private Contractors,05-Sep-2016,3174427-CTIN06485426,"13,578.00",FINNING (UK) LTD.
Neighbourhood Services,Technical Services,Supplies and Services,304221,Equipment and Materials,05-Sep-2016,3174372-23457080,"1,225.16",AGGREGATE INDUSTRIES UK LTD.
Neighbourhood Services,Technical Services,Supplies and Services,304221,Equipment and Materials,05-Sep-2016,3174372-23581305,"1,366.94",AGGREGATE INDUSTRIES UK LTD.
Neighbourhood Services,Technical Services,Supplies and Services,304221,Equipment and Materials,05-Sep-2016,3174372-23581306,"1,581.14",AGGREGATE INDUSTRIES UK LTD.
Neighbourhood Services,Technical Services,Supplies and Services,304221,Equipment and Materials,05-Sep-2016,3174372-23581310,"1,129.63",AGGREGATE INDUSTRIES UK LTD.
Neighbourhood Services,Technical Services,Supplies and Services,304221,Equipment and Materials,05-Sep-2016,3174372-23587619,"1,172.84",AGGREGATE INDUSTRIES UK LTD.
Neighbourhood Services,Technical Services,Supplies and Services,304221,Equipment and Materials,05-Sep-2016,3174372-23587620,"1,888.56",AGGREGATE INDUSTRIES UK LTD.
Neighbourhood Services,Technical Services,Employees,040149,Recruitment Instruction and Training,05-Sep-2016,3174375-120816,"1,000.00",AMF SERVICES LTD.
Neighbourhood Services,Technical Services,Third Party Payments,430100,Rendered by Private Contractors,05-Sep-2016,3174384-1626003,"2,825.57",BCE NORTHERN LTD.
Neighbourhood Services,Technical Services,Stock,926004,Stock,05-Sep-2016,3174450-190004125,"8,700.00",ICL UK (SALES) LTD.
Neighbourhood Services,Technical Services,Stock,926004,Stock,05-Sep-2016,3174450-190004179,"7,753.80",ICL UK (SALES) LTD.
Neighbourhood Services,Technical Services,Third Party Payments,460109,Contract Payments,05-Sep-2016,3174455-INS1307,"5,560.00",INSPECTORATE LTD T/A ROCH NDT SERVICES.
Neighbourhood Services,Technical Services,Supplies and Services,338027,Services,05-Sep-2016,3174460-B225H005-017,"13,670.39",JACOBS UK LTD.
Neighbourhood Services,Technical Services,Stock,926900,Stock in hand-Inventory system,05-Sep-2016,3174468-STI443001,670.12,JT DOVE LTD.
Neighbourhood Services,Technical Services,Third Party Payments,430100,Rendered by Private Contractors,05-Sep-2016,3174472-1922,"70,299.48",L & G PLANT HIRE & SALES LTD.
Neighbourhood Services,Technical Services,Supplies and Services,304221,Equipment and Materials,05-Sep-2016,3174508-ZBB1049308,"3,449.99",MARSHALLS MONO LTD.
Neighbourhood Services,Technical Services,Third Party Payments,430100,Rendered by Private Contractors,05-Sep-2016,3174528-DI20235605,827.68,NORTHERN POWERGRID (NORTHEAST) LTD.
Neighbourhood Services,Technical Services,Third Party Payments,430100,Rendered by Private Contractors,05-Sep-2016,3174528-DI20239865,847.76,NORTHERN POWERGRID (NORTHEAST) LTD.
Neighbourhood Services,Technical Services,Third Party Payments,430100,Rendered by Private Contractors,05-Sep-2016,3174528-DI20250373,"3,851.08",NORTHERN POWERGRID (NORTHEAST) LTD.
Neighbourhood Services,Technical Services,Third Party Payments,430100,Rendered by Private Contractors,05-Sep-2016,3174528-DI20250554,550.75,NORTHERN POWERGRID (NORTHEAST) LTD.
Neighbourhood Services,Technical Services,Third Party Payments,430100,Rendered by Private Contractors,05-Sep-2016,3174528-DI20250632,713.36,NORTHERN POWERGRID (NORTHEAST) LTD.
Neighbourhood Services,Technical Services,Stock,926900,Stock in hand-Inventory system,05-Sep-2016,3174543-8321306,896.00,PREMIER PAPER GROUP LTD.
Neighbourhood Services,Technical Services,Third Party Payments,430100,Rendered by Private Contractors,05-Sep-2016,3174566-12116405,"2,359.20",SOUTH TYNESIDE COUNCIL.
Neighbourhood Services,Technical Services,Supplies and Services,304221,Equipment and Materials,05-Sep-2016,3174571-085067,"2,107.24",STONEGRAVE AGGREGATES LTD.
Neighbourhood Services,Technical Services,Supplies and Services,304221,Equipment and Materials,05-Sep-2016,3174571-085068,"1,416.08",STONEGRAVE AGGREGATES LTD.
Neighbourhood Services,Technical Services,Supplies and Services,342051,Computers and Communications,05-Sep-2016,3174576-160196,"2,780.82",SYMOLOGY LTD.
Neighbourhood Services,Technical Services,Supplies and Services,342051,Computers and Communications,05-Sep-2016,3174576-160197,"5,005.47",SYMOLOGY LTD.
Neighbourhood Services,Technical Services,Supplies and Services,304221,Equipment and Materials,05-Sep-2016,3174580-9034831375,594.22,TARMAC TRADING LTD.
Neighbourhood Services,Technical Services,Stock,926900,Stock in hand-Inventory system,05-Sep-2016,3174591-N/IN178714,"1,559.90",THOMAS OWEN & SONS (NEWCASTLE) LTD.
Neighbourhood Services,Technical Services,Supplies and Services,304221,Equipment and Materials,05-Sep-2016,3174611-8536,560.00,WILF HUSBAND PLANT HIRE.
Neighbourhood Services,Technical Services,Supplies and Services,304358,Equipment and Materials,05-Sep-2016,3174612-N90306,"1,621.77",WILLIAMSON CONSTRUCTION EQUIPMENT LTD.
Regeneration & Economic Development,Economic Development and Housing,Supplies and Services,368008,Incentives to Industrialists,05-Sep-2016,3174441-0000011298,"4,007.35",GROUNDWORK NORTH EAST.
Regeneration & Economic Development,Economic Development and Housing,Supplies and Services,368008,Incentives to Industrialists,05-Sep-2016,3174441-0000011299,"4,007.35",GROUNDWORK NORTH EAST.
Regeneration & Economic Development,Economic Development and Housing,Supplies and Services,384871,Miscellaneous Expenses,05-Sep-2016,3174541-WRP-1062,"1,666.67",PLUMB-SKILLS LTD.
Regeneration & Economic Development,Economic Development and Housing,Supplies and Services,338066,Services,05-Sep-2016,3174564-201608003,"4,500.00",SIMPSON & BROWN.
Regeneration & Economic Development,Economic Development and Housing,Supplies and Services,304337,Equipment and Materials,05-Sep-2016,3174589-18941,512.70,THE TIE STUDIO.
Regeneration & Economic Development,Spatial Policy Planning Assets & Environment,Supplies and Services,338099,Services,05-Sep-2016,3174448-DC120816,800.00,HP DENT.
Regeneration & Economic Development,Spatial Policy Planning Assets & Environment,Third Party Payments,440999,Other Third Party Payments,05-Sep-2016,3174512-4128,"2,576.90",MICROCOPY SYSTEMS LTD.
Regeneration & Economic Development,Spatial Policy Planning Assets & Environment,Supplies and Services,336005,Advertising,05-Sep-2016,3174521-16419135,653.73,NEWSQUEST (YORKSHIRE & NORTH EAST) LTD.
Regeneration & Economic Development,Spatial Policy Planning Assets & Environment,Supplies and Services,338066,Services,05-Sep-2016,3174570-4100546301,"1,250.00",STEPHEN HEWITT.
Regeneration & Economic Development,Transport and Contracted Services,Supplies and Services,304259,Equipment and Materials,05-Sep-2016,3174439-08/503218,"1,024.40",GREENHAM TRADING LTD.
Resources,I.C.T. Services,Debtors,930167,Debtor-Telephone Holding Account,05-Sep-2016,3174382-105488,"44,195.28",AZZURRI COMMUNICATIONS LTD.
Resources,I.C.T. Services,Supplies and Services,344111,Telephones,05-Sep-2016,3174401-VP90592270M13401,"3,341.85",BRITISH TELECOMMUNICATIONS PLC.
Resources,I.C.T. Services,Supplies and Services,352001,Conference Expenses,05-Sep-2016,3174436-4754,"1,200.00",FULL CONTROL NETWORKS.
Resources,I.C.T. Services,Supplies and Services,304303,Equipment and Materials,05-Sep-2016,3174470-38035,"20,760.00",KBR IT & NETWORKING SOLUTIONS.
Resources,I.C.T. Services,Supplies and Services,304303,Equipment and Materials,05-Sep-2016,3174470-38040,"2,840.85",KBR IT & NETWORKING SOLUTIONS.
Resources,I.C.T. Services,Supplies and Services,340001,Postages,05-Sep-2016,3174519-92212851,"1,716.15",NEOPOST LTD.
Resources,I.C.T. Services,Construction Work,908105,Construction work,05-Sep-2016,3174549-SIN050549,933.00,REDWAY NETWORKS LTD.
Resources,I.C.T. Services,Employees,040149,Recruitment Instruction and Training,05-Sep-2016,3174594-100735,"3,270.80",TOTAL COMMS TRAINING LTD.
Resources,I.C.T. Services,Stock,926900,Stock in hand-Inventory system,05-Sep-2016,3174616-AR28169,"10,502.70",XMA LTD.
Resources,Legal & Democratic Services,Supplies and Services,338042,Services,05-Sep-2016,3174420-320269/INVBD96,600.00,DERE STREET BARRISTERS.
Resources,Legal & Democratic Services,Supplies and Services,328041,Clothing Uniforms and Laundry,05-Sep-2016,3174425-24123,"3,466.05",DURHAM BUSINESSWEAR LTD.
Children and Adult Services,Central Charges (CYPS),Employees,005001,Pay,06-Sep-2016,3175389-RES-09-2016-017,"10,000.00",REDACTED - PAYMENT TO INDIVIDUAL
Children and Adult Services,Central/Other,Employees,080025,Agency Staff,06-Sep-2016,3175300-333095,"161,736.21",DE POEL MANAGED SERVICES LTD.
Children and Adult Services,Childrens Services,Third Party Payments,440001,Other Third Party Payments,06-Sep-2016,3174814-1129809,"1,170.00",REDACTED - PAYMENT TO INDIVIDUAL
Children and Adult Services,Childrens Services,Third Party Payments,440016,Other Third Party Payments,06-Sep-2016,3174825-1130588,"1,302.60",REDACTED - PAYMENT TO INDIVIDUAL
Children and Adult Services,Childrens Services,Third Party Payments,440016,Other Third Party Payments,06-Sep-2016,3174825-1130589,"1,223.60",REDACTED - PAYMENT TO INDIVIDUAL
Children and Adult Services,Childrens Services,Third Party Payments,440016,Other Third Party Payments,06-Sep-2016,3174838-1130590,872.48,REDACTED - PAYMENT TO INDIVIDUAL
Children and Adult Services,Childrens Services,Third Party Payments,440001,Other Third Party Payments,06-Sep-2016,3175048-1130499,727.03,REDACTED - PAYMENT TO INDIVIDUAL
Children and Adult Services,Childrens Services,Third Party Payments,440027,Other Third Party Payments,06-Sep-2016,3175163-1129387,"1,197.15",REDACTED - PAYMENT TO INDIVIDUAL
Children and Adult Services,Childrens Services,Employees,080025,Agency Staff,06-Sep-2016,3175292-2330429,520.00,CELSIAN.
Children and Adult Services,Childrens Services,Employees,080025,Agency Staff,06-Sep-2016,3175350-27806,"1,200.00",PK EDUCATION.
Children and Adult Services,Childrens Services,Supplies and Services,364310,Grants to Voluntary Organisations,06-Sep-2016,3175364-CAS-09-2016-010,541.32,REDACTED - PAYMENT TO INDIVIDUAL
Children and Adult Services,Childrens Services,Employees,080025,Agency Staff,06-Sep-2016,3175371-1149339,"1,075.00",TEACHING PERSONNEL LTD.
Children and Adult Services,Childrens Services,Fees,901002,Professional fees,06-Sep-2016,3175383-611649,"3,268.25",WARD HADAWAY.
Children and Adult Services,Childrens Services,Fees,901002,Professional fees,06-Sep-2016,3175383-617297,"8,709.50",WARD HADAWAY.
Children and Adult Services,Education,Transport,230005,Contract Hire,06-Sep-2016,3175312-3290,"1,197.00",GEM TRAVEL.
Children and Adult Services,Education,Supplies and Services,352001,Conference Expenses,06-Sep-2016,3175335-20160201,"1,200.00",MRS JAYNE M HERON.
Children and Adult Services,Education,Supplies and Services,352001,Conference Expenses,06-Sep-2016,3175335-20160301,"1,200.00",MRS JAYNE M HERON.
Children and Adult Services,Education,Transfer Payments,510026,School Children,06-Sep-2016,3175376-DCATCH,"1,080.00",TILLY MINTS CHERUBS DAY NURSERY.
Children and Adult Services,Education,Third Party Payments,440999,Other Third Party Payments,06-Sep-2016,3175377-4261,"9,853.28",TIN ARTS.
Children and Adult Services,Public Health,Third Party Payments,460802,Contract Payments,06-Sep-2016,3175318-FJL38,985.00,JOHN LOW LTD T/A MOORSIDE PHARMACY.
Neighbourhood Services,Culture & Sport,Supplies and Services,384199,Miscellaneous Expenses,06-Sep-2016,3175333-702,"2,000.00",MICK STEPHENSON (LIGHT ARTIST).
Neighbourhood Services,Culture & Sport,Supplies and Services,338047,Services,06-Sep-2016,3175337-005,"1,237.50",NATHAN BABB.
Neighbourhood Services,Culture & Sport,Supplies and Services,338047,Services,06-Sep-2016,3175345-2,"1,237.50",OLIVIA VICTORIA VERNON JONES.
Neighbourhood Services,Culture & Sport,Supplies and Services,338047,Services,06-Sep-2016,3175355-MA599,"1,457.21",REGAN MANAGEMENT LTD.
Neighbourhood Services,Culture & Sport,Supplies and Services,384199,Miscellaneous Expenses,06-Sep-2016,3175362-SBS-0281,"5,000.00",SODIUM T/A SHOT BY SODIUM LTD.
Neighbourhood Services,Culture & Sport,Supplies and Services,384700,Miscellaneous Expenses,06-Sep-2016,3175380-9100063002,"27,993.56",UNIVERSITY OF NEWCASTLE UPON TYNE.
Neighbourhood Services,Culture & Sport,Supplies and Services,338047,Services,06-Sep-2016,3175382-1546025,600.56,WALT DISNEY CO LTD.
Neighbourhood Services,Culture & Sport,Supplies and Services,338047,Services,06-Sep-2016,3175382-1546037,985.31,WALT DISNEY CO LTD.
Neighbourhood Services,Direct Services,Third Party Payments,430100,Rendered by Private Contractors,06-Sep-2016,3175291-197,"2,129.45",CEILINGS DIRECT LTD.
Neighbourhood Services,Direct Services,Third Party Payments,430100,Rendered by Private Contractors,06-Sep-2016,3175291-198,"1,964.27",CEILINGS DIRECT LTD.
Neighbourhood Services,Direct Services,Third Party Payments,430100,Rendered by Private Contractors,06-Sep-2016,3175291-199,"3,513.24",CEILINGS DIRECT LTD.
Neighbourhood Services,Direct Services,Third Party Payments,430100,Rendered by Private Contractors,06-Sep-2016,3175301-DCCMANUAL14,"4,945.50",DFP SERVICES LTD.
Neighbourhood Services,Direct Services,Stock,926004,Stock,06-Sep-2016,3175311-IN174615,586.30,GB LUBRICANTS LTD.
Neighbourhood Services,Direct Services,Supplies and Services,304221,Equipment and Materials,06-Sep-2016,3175313-4530527,"1,984.12",HEADLAM (FLOORCOVERING DISTRIBUTORS) LTD.
Neighbourhood Services,Direct Services,Supplies and Services,304221,Equipment and Materials,06-Sep-2016,3175317-0238/0170295,587.50,JEWSON LTD.
Neighbourhood Services,Direct Services,Transport,210057,Repair and Maintenance of Vehicles,06-Sep-2016,3175326-176439100497,"1,097.54",LEEDS GALVANISING & POWDER COATING LTD.
Neighbourhood Services,Direct Services,Transport,210057,Repair and Maintenance of Vehicles,06-Sep-2016,3175326-176759100496,513.63,LEEDS GALVANISING & POWDER COATING LTD.
Neighbourhood Services,Direct Services,Debtors,930046,Debtor-leasing,06-Sep-2016,3175359-343438,"117,176.00",SCARAB SWEEPERS LTD.
Neighbourhood Services,Technical Services,Supplies and Services,304221,Equipment and Materials,06-Sep-2016,3175282-23405986,"1,910.04",AGGREGATE INDUSTRIES UK LTD.
Neighbourhood Services,Technical Services,Supplies and Services,304357,Equipment and Materials,06-Sep-2016,3175310-DCC210816,"15,987.30",GAP GROUP LTD.
Neighbourhood Services,Technical Services,Supplies and Services,384194,Miscellaneous Expenses,06-Sep-2016,3175340-67890,"2,375.00",NIRAMAX GROUP LTD.
Neighbourhood Services,Technical Services,Third Party Payments,430100,Rendered by Private Contractors,06-Sep-2016,3175349-4591,"8,514.00",PINKNEY BUILDING CONTRACTORS LTD.
Neighbourhood Services,Technical Services,Third Party Payments,430100,Rendered by Private Contractors,06-Sep-2016,3175349-4601,"1,429.78",PINKNEY BUILDING CONTRACTORS LTD.
Regeneration & Economic Development,Economic Development and Housing,Cap Exp on Grants & Other Financial Assistance (REFCUS),918401,Capital grants,06-Sep-2016,3175281-RED-09-2016-007,"9,646.51",A OGILVIE BUILDING CONTRACTORS LTD.
Regeneration & Economic Development,Economic Development and Housing,Construction Work,908113,Capital - Landscaping,06-Sep-2016,3175287-INV-0044,"14,880.00",BEAVER BRIDGES LTD.
Regeneration & Economic Development,Economic Development and Housing,Cap Exp on Grants & Other Financial Assistance (REFCUS),918401,Capital grants,06-Sep-2016,3175297-RED-09-2016-008,"3,140.00",CRAIG PATTERSON T/A LET ME GET YOU WET.
Regeneration & Economic Development,Economic Development and Housing,Cap Exp on Grants & Other Financial Assistance (REFCUS),918401,Capital grants,06-Sep-2016,3175336-RED-09-2016-006,"13,438.91",MWA GAS & PLUMBING LTD.
Regeneration & Economic Development,Economic Development and Housing,Construction Work,908113,Capital - Landscaping,06-Sep-2016,3175341-140,"2,243.66",NORTHUMBRIA MASONRY CONSERVATION LTD.
Regeneration & Economic Development,Economic Development and Housing,Cap Exp on Grants & Other Financial Assistance (REFCUS),918401,Capital grants,06-Sep-2016,3175354-RED-09-2016-010,"5,425.80",R TINDALE (BUILDER) LTD.
Regeneration & Economic Development,Economic Development and Housing,Cap Exp on Grants & Other Financial Assistance (REFCUS),918401,Capital grants,06-Sep-2016,3175375-RED-09-2016-009,"17,570.00",THYSSENKRUPP ENCASA A DIVISION OF THYSSENKRUPP ACCESS LTD.
Regeneration & Economic Development,Economic Development and Housing,Cap Exp on Grants & Other Financial Assistance (REFCUS),918401,Capital grants,06-Sep-2016,3175388-RED-08-2016-219,"14,000.00",WRIGHT CONSTRUCTION (DURHAM) LTD.
Regeneration & Economic Development,Transport and Contracted Services,Construction Work,908105,Construction work,06-Sep-2016,3175338-1800008069844,"2,250.00",NEWCASTLE UPON TYNE CITY COUNCIL.
Regeneration & Economic Development,Transport and Contracted Services,Third Party Payments,430100,Rendered by Private Contractors,06-Sep-2016,3175343-040149,"27,425.09",NSL LTD.
Regeneration & Economic Development,Transport and Contracted Services,Third Party Payments,430100,Rendered by Private Contractors,06-Sep-2016,3175343-040150,"1,281.20",NSL LTD.
Regeneration & Economic Development,Transport and Contracted Services,Third Party Payments,430100,Rendered by Private Contractors,06-Sep-2016,3175343-040151,"47,496.36",NSL LTD.
Regeneration & Economic Development,Transport and Contracted Services,Third Party Payments,430100,Rendered by Private Contractors,06-Sep-2016,3175343-040154,"6,640.21",NSL LTD.
Regeneration & Economic Development,Transport and Contracted Services,Third Party Payments,430100,Rendered by Private Contractors,06-Sep-2016,3175343-040155,"16,581.83",NSL LTD.
Resources,I.C.T. Services,Employees,040149,Recruitment Instruction and Training,06-Sep-2016,3175302-19149,"3,400.00",DOTTED EYES LTD T/A MISO PORTAL.
Resources,I.C.T. Services,Employees,040149,Recruitment Instruction and Training,06-Sep-2016,3175352-ISL136003,"4,600.00",QA LTD.
Resources,I.C.T. Services,Income,720090,Fees and Charges,06-Sep-2016,3175363-RES-07-2016-138,766.27,SOUTH HETTON PRIMARY SCHOOL.
Resources,Legal & Democratic Services,Supplies and Services,338025,Services,06-Sep-2016,3175295-S44961-00286,790.00,CO-OPERATIVE FUNERAL CARE.
Children and Adult Services,Central/Other,Debtors,930024,Debtor-free nursing care,07-Sep-2016,3175398-2330671,625.00,ALLIANCE CARE.
Children and Adult Services,Central/Other,Debtors,930024,Debtor-free nursing care,07-Sep-2016,3175398-2330678,934.75,ALLIANCE CARE.
Children and Adult Services,Central/Other,Debtors,930024,Debtor-free nursing care,07-Sep-2016,3175398-2330686,512.42,ALLIANCE CARE.
Children and Adult Services,Central/Other,Debtors,930024,Debtor-free nursing care,07-Sep-2016,3175398-2330696,751.43,ALLIANCE CARE.
Children and Adult Services,Central/Other,Debtors,930024,Debtor-free nursing care,07-Sep-2016,3175398-2330697,966.36,ALLIANCE CARE.
Children and Adult Services,Central/Other,Debtors,930024,Debtor-free nursing care,07-Sep-2016,3175398-2330708,"1,219.21",ALLIANCE CARE.
Children and Adult Services,Central/Other,Debtors,930024,Debtor-free nursing care,07-Sep-2016,3175398-2330712,"1,219.21",ALLIANCE CARE.
Children and Adult Services,Central/Other,Debtors,930024,Debtor-free nursing care,07-Sep-2016,3175398-2330717,"1,219.21",ALLIANCE CARE.
Children and Adult Services,Central/Other,Debtors,930024,Debtor-free nursing care,07-Sep-2016,3175398-2330724,"1,219.21",ALLIANCE CARE.
Children and Adult Services,Central/Other,Debtors,930024,Debtor-free nursing care,07-Sep-2016,3175398-2330729,"1,219.21",ALLIANCE CARE.
Children and Adult Services,Central/Other,Debtors,930024,Debtor-free nursing care,07-Sep-2016,3175402-2329689,625.00,ASCOT CARE NORTHEAST LTD.
Children and Adult Services,Central/Other,Debtors,930024,Debtor-free nursing care,07-Sep-2016,3175402-2329696,643.96,ASCOT CARE NORTHEAST LTD.
Children and Adult Services,Central/Other,Debtors,930024,Debtor-free nursing care,07-Sep-2016,3175402-2329698,"1,219.21",ASCOT CARE NORTHEAST LTD.
Children and Adult Services,Central/Other,Debtors,930024,Debtor-free nursing care,07-Sep-2016,3175402-2329703,"1,219.21",ASCOT CARE NORTHEAST LTD.
Children and Adult Services,Central/Other,Debtors,930024,Debtor-free nursing care,07-Sep-2016,3175402-2329714,"1,219.21",ASCOT CARE NORTHEAST LTD.
Children and Adult Services,Central/Other,Debtors,930024,Debtor-free nursing care,07-Sep-2016,3175402-2333066,"1,428.57",ASCOT CARE NORTHEAST LTD.
Children and Adult Services,Central/Other,Debtors,930024,Debtor-free nursing care,07-Sep-2016,3175412-2332308,546.88,AYCLIFFE CARE HOME.
Children and Adult Services,Central/Other,Debtors,930024,Debtor-free nursing care,07-Sep-2016,3175412-2332315,"1,219.08",AYCLIFFE CARE HOME.
Children and Adult Services,Central/Other,Debtors,930024,Debtor-free nursing care,07-Sep-2016,3175412-2332319,"1,219.08",AYCLIFFE CARE HOME.
Children and Adult Services,Central/Other,Debtors,930024,Debtor-free nursing care,07-Sep-2016,3175412-2332327,625.00,AYCLIFFE CARE HOME.
Children and Adult Services,Central/Other,Debtors,930024,Debtor-free nursing care,07-Sep-2016,3175412-2332330,"1,219.08",AYCLIFFE CARE HOME.
Children and Adult Services,Central/Other,Debtors,930024,Debtor-free nursing care,07-Sep-2016,3175412-2332335,"1,219.08",AYCLIFFE CARE HOME.
Children and Adult Services,Central/Other,Debtors,930024,Debtor-free nursing care,07-Sep-2016,3175412-2332338,625.00,AYCLIFFE CARE HOME.
Children and Adult Services,Central/Other,Debtors,930024,Debtor-free nursing care,07-Sep-2016,3175412-2332341,"1,219.08",AYCLIFFE CARE HOME.
Children and Adult Services,Central/Other,Debtors,930024,Debtor-free nursing care,07-Sep-2016,3175412-2332343,"1,219.08",AYCLIFFE CARE HOME.
Children and Adult Services,Central/Other,Debtors,930024,Debtor-free nursing care,07-Sep-2016,3175412-2332349,"1,219.08",AYCLIFFE CARE HOME.
Children and Adult Services,Central/Other,Debtors,930024,Debtor-free nursing care,07-Sep-2016,3175412-2332357,"1,219.08",AYCLIFFE CARE HOME.
Children and Adult Services,Central/Other,Debtors,930024,Debtor-free nursing care,07-Sep-2016,3175417-2330238,"1,219.21",BARCHESTER HEALTHCARE HOMES LTD.
Children and Adult Services,Central/Other,Debtors,930024,Debtor-free nursing care,07-Sep-2016,3175417-2330239,625.00,BARCHESTER HEALTHCARE HOMES LTD.
Children and Adult Services,Central/Other,Debtors,930024,Debtor-free nursing care,07-Sep-2016,3175417-2330241,877.80,BARCHESTER HEALTHCARE HOMES LTD.
Children and Adult Services,Central/Other,Debtors,930024,Debtor-free nursing care,07-Sep-2016,3175417-2330245,839.88,BARCHESTER HEALTHCARE HOMES LTD.
Children and Adult Services,Central/Other,Debtors,930024,Debtor-free nursing care,07-Sep-2016,3175417-2330249,"1,219.21",BARCHESTER HEALTHCARE HOMES LTD.
Children and Adult Services,Central/Other,Debtors,930024,Debtor-free nursing care,07-Sep-2016,3175417-2330252,"1,219.21",BARCHESTER HEALTHCARE HOMES LTD.
Children and Adult Services,Central/Other,Debtors,930024,Debtor-free nursing care,07-Sep-2016,3175417-2330255,"1,219.21",BARCHESTER HEALTHCARE HOMES LTD.
Children and Adult Services,Central/Other,Debtors,930024,Debtor-free nursing care,07-Sep-2016,3175417-2330258,"1,219.21",BARCHESTER HEALTHCARE HOMES LTD.
Children and Adult Services,Central/Other,Debtors,930024,Debtor-free nursing care,07-Sep-2016,3175417-2330261,"1,219.21",BARCHESTER HEALTHCARE HOMES LTD.
Children and Adult Services,Central/Other,Debtors,930024,Debtor-free nursing care,07-Sep-2016,3175417-2330265,"1,219.21",BARCHESTER HEALTHCARE HOMES LTD.
Children and Adult Services,Central/Other,Debtors,930024,Debtor-free nursing care,07-Sep-2016,3175417-2330267,"1,219.21",BARCHESTER HEALTHCARE HOMES LTD.
Children and Adult Services,Central/Other,Debtors,930024,Debtor-free nursing care,07-Sep-2016,3175417-2330272,"1,219.21",BARCHESTER HEALTHCARE HOMES LTD.
Children and Adult Services,Central/Other,Debtors,930024,Debtor-free nursing care,07-Sep-2016,3175417-2330279,951.35,BARCHESTER HEALTHCARE HOMES LTD.
Children and Adult Services,Central/Other,Debtors,930024,Debtor-free nursing care,07-Sep-2016,3175417-2330282,"1,219.21",BARCHESTER HEALTHCARE HOMES LTD.
Children and Adult Services,Central/Other,Debtors,930024,Debtor-free nursing care,07-Sep-2016,3175417-2330285,"1,219.21",BARCHESTER HEALTHCARE HOMES LTD.
Children and Adult Services,Central/Other,Debtors,930024,Debtor-free nursing care,07-Sep-2016,3175417-2330288,"1,219.21",BARCHESTER HEALTHCARE HOMES LTD.
Children and Adult Services,Central/Other,Debtors,930024,Debtor-free nursing care,07-Sep-2016,3175417-2330291,"1,219.21",BARCHESTER HEALTHCARE HOMES LTD.
Children and Adult Services,Central/Other,Debtors,930024,Debtor-free nursing care,07-Sep-2016,3175417-2330294,"1,219.21",BARCHESTER HEALTHCARE HOMES LTD.
Children and Adult Services,Central/Other,Debtors,930024,Debtor-free nursing care,07-Sep-2016,3175417-2330297,"1,219.21",BARCHESTER HEALTHCARE HOMES LTD.
Children and Adult Services,Central/Other,Debtors,930024,Debtor-free nursing care,07-Sep-2016,3175417-2330299,625.00,BARCHESTER HEALTHCARE HOMES LTD.
Children and Adult Services,Central/Other,Debtors,930024,Debtor-free nursing care,07-Sep-2016,3175417-2330302,"1,219.21",BARCHESTER HEALTHCARE HOMES LTD.
Children and Adult Services,Central/Other,Debtors,930024,Debtor-free nursing care,07-Sep-2016,3175417-2330304,"1,219.21",BARCHESTER HEALTHCARE HOMES LTD.
Children and Adult Services,Central/Other,Debtors,930024,Debtor-free nursing care,07-Sep-2016,3175417-2330306,"1,219.21",BARCHESTER HEALTHCARE HOMES LTD.
Children and Adult Services,Central/Other,Debtors,930024,Debtor-free nursing care,07-Sep-2016,3175417-2330309,"1,219.21",BARCHESTER HEALTHCARE HOMES LTD.
Children and Adult Services,Central/Other,Debtors,930024,Debtor-free nursing care,07-Sep-2016,3175417-2333394,575.25,BARCHESTER HEALTHCARE HOMES LTD.
Children and Adult Services,Central/Other,Debtors,930024,Debtor-free nursing care,07-Sep-2016,3175426-2330035,"1,155.88",BENFIELD HALL RESIDENTIAL CARE.
Children and Adult Services,Central/Other,Debtors,930024,Debtor-free nursing care,07-Sep-2016,3175426-2330040,"1,219.21",BENFIELD HALL RESIDENTIAL CARE.
Children and Adult Services,Central/Other,Debtors,930024,Debtor-free nursing care,07-Sep-2016,3175426-2330044,"1,219.21",BENFIELD HALL RESIDENTIAL CARE.
Children and Adult Services,Central/Other,Debtors,930024,Debtor-free nursing care,07-Sep-2016,3175429-2328981,"1,219.21",BISHOPSGATE LODGE.
Children and Adult Services,Central/Other,Debtors,930024,Debtor-free nursing care,07-Sep-2016,3175429-2328983,"1,219.21",BISHOPSGATE LODGE.
Children and Adult Services,Central/Other,Debtors,930024,Debtor-free nursing care,07-Sep-2016,3175429-2328984,978.92,BISHOPSGATE LODGE.
Children and Adult Services,Central/Other,Debtors,930024,Debtor-free nursing care,07-Sep-2016,3175429-2328991,"1,219.21",BISHOPSGATE LODGE.
Children and Adult Services,Central/Other,Debtors,930024,Debtor-free nursing care,07-Sep-2016,3175429-2328997,"1,219.21",BISHOPSGATE LODGE.
Children and Adult Services,Central/Other,Debtors,930024,Debtor-free nursing care,07-Sep-2016,3175429-2328998,"1,219.21",BISHOPSGATE LODGE.
Children and Adult Services,Central/Other,Debtors,930024,Debtor-free nursing care,07-Sep-2016,3175429-2329000,"1,219.21",BISHOPSGATE LODGE.
Children and Adult Services,Central/Other,Debtors,930024,Debtor-free nursing care,07-Sep-2016,3175429-2329005,"1,219.21",BISHOPSGATE LODGE.
Children and Adult Services,Central/Other,Debtors,930024,Debtor-free nursing care,07-Sep-2016,3175429-2329014,"1,219.21",BISHOPSGATE LODGE.
Children and Adult Services,Central/Other,Debtors,930024,Debtor-free nursing care,07-Sep-2016,3175429-2329018,"1,219.21",BISHOPSGATE LODGE.
Children and Adult Services,Central/Other,Debtors,930024,Debtor-free nursing care,07-Sep-2016,3175429-2333453,"1,808.04",BISHOPSGATE LODGE.
Children and Adult Services,Central/Other,Debtors,930024,Debtor-free nursing care,07-Sep-2016,3175430-2331892,"1,219.21",BOWES COURT CARE HOME.
Children and Adult Services,Central/Other,Debtors,930024,Debtor-free nursing care,07-Sep-2016,3175430-2331893,"1,219.21",BOWES COURT CARE HOME.
Children and Adult Services,Central/Other,Debtors,930024,Debtor-free nursing care,07-Sep-2016,3175430-2331896,"1,219.21",BOWES COURT CARE HOME.
Children and Adult Services,Central/Other,Debtors,930024,Debtor-free nursing care,07-Sep-2016,3175431-2328779,"1,219.21",BRANCEPETH COURT.
Children and Adult Services,Central/Other,Debtors,930024,Debtor-free nursing care,07-Sep-2016,3175431-2328781,"1,143.24",BRANCEPETH COURT.
Children and Adult Services,Central/Other,Debtors,930024,Debtor-free nursing care,07-Sep-2016,3175431-2328792,"1,016.84",BRANCEPETH COURT.
Children and Adult Services,Central/Other,Debtors,930024,Debtor-free nursing care,07-Sep-2016,3175431-2328794,"1,054.76",BRANCEPETH COURT.
Children and Adult Services,Central/Other,Debtors,930024,Debtor-free nursing care,07-Sep-2016,3175431-2328798,"1,219.21",BRANCEPETH COURT.
Children and Adult Services,Central/Other,Debtors,930024,Debtor-free nursing care,07-Sep-2016,3175431-2328802,"1,219.21",BRANCEPETH COURT.
Children and Adult Services,Central/Other,Debtors,930024,Debtor-free nursing care,07-Sep-2016,3175431-2328803,"1,219.21",BRANCEPETH COURT.
Children and Adult Services,Central/Other,Debtors,930024,Debtor-free nursing care,07-Sep-2016,3175431-2328809,"1,219.21",BRANCEPETH COURT.
Children and Adult Services,Central/Other,Debtors,930024,Debtor-free nursing care,07-Sep-2016,3175431-2328812,"1,219.21",BRANCEPETH COURT.
Children and Adult Services,Central/Other,Debtors,930024,Debtor-free nursing care,07-Sep-2016,3175431-2328816,625.00,BRANCEPETH COURT.
Children and Adult Services,Central/Other,Debtors,930024,Debtor-free nursing care,07-Sep-2016,3175440-2331866,"1,219.21",CARELINE LIFESTYLES (UK) LTD.
Children and Adult Services,Central/Other,Debtors,930024,Debtor-free nursing care,07-Sep-2016,3175449-2332848,625.00,COVENT HOUSE.
Children and Adult Services,Central/Other,Debtors,930024,Debtor-free nursing care,07-Sep-2016,3175450-2330600,848.21,CRAIGARRAN CARE HOME WITH NURSING.
Children and Adult Services,Central/Other,Debtors,930024,Debtor-free nursing care,07-Sep-2016,3175450-2330603,625.00,CRAIGARRAN CARE HOME WITH NURSING.
Children and Adult Services,Central/Other,Debtors,930024,Debtor-free nursing care,07-Sep-2016,3175450-2330608,625.00,CRAIGARRAN CARE HOME WITH NURSING.
Children and Adult Services,Central/Other,Debtors,930024,Debtor-free nursing care,07-Sep-2016,3175450-2330613,978.92,CRAIGARRAN CARE HOME WITH NURSING.
Children and Adult Services,Central/Other,Debtors,930024,Debtor-free nursing care,07-Sep-2016,3175450-2330615,"1,219.21",CRAIGARRAN CARE HOME WITH NURSING.
Children and Adult Services,Central/Other,Debtors,930024,Debtor-free nursing care,07-Sep-2016,3175450-2330617,"1,219.21",CRAIGARRAN CARE HOME WITH NURSING.
Children and Adult Services,Central/Other,Debtors,930024,Debtor-free nursing care,07-Sep-2016,3175450-2330619,"1,219.21",CRAIGARRAN CARE HOME WITH NURSING.
Children and Adult Services,Central/Other,Debtors,930024,Debtor-free nursing care,07-Sep-2016,3175450-2330621,"1,219.21",CRAIGARRAN CARE HOME WITH NURSING.
Children and Adult Services,Central/Other,Debtors,930024,Debtor-free nursing care,07-Sep-2016,3175450-2330624,"1,219.21",CRAIGARRAN CARE HOME WITH NURSING.
Children and Adult Services,Central/Other,Debtors,930024,Debtor-free nursing care,07-Sep-2016,3175450-2330626,"1,219.21",CRAIGARRAN CARE HOME WITH NURSING.
Children and Adult Services,Central/Other,Debtors,930024,Debtor-free nursing care,07-Sep-2016,3175450-2330630,"1,219.21",CRAIGARRAN CARE HOME WITH NURSING.
Children and Adult Services,Central/Other,Debtors,930024,Debtor-free nursing care,07-Sep-2016,3175450-2330632,"1,219.21",CRAIGARRAN CARE HOME WITH NURSING.
Children and Adult Services,Central/Other,Debtors,930024,Debtor-free nursing care,07-Sep-2016,3175450-2330636,"1,219.21",CRAIGARRAN CARE HOME WITH NURSING.
Children and Adult Services,Central/Other,Debtors,930024,Debtor-free nursing care,07-Sep-2016,3175451-2332182,"1,219.21",CROFT HOUSE RESIDENTIAL HOME.
Children and Adult Services,Central/Other,Debtors,930024,Debtor-free nursing care,07-Sep-2016,3175451-2332184,"1,219.21",CROFT HOUSE RESIDENTIAL HOME.
Children and Adult Services,Central/Other,Debtors,930024,Debtor-free nursing care,07-Sep-2016,3175451-2332186,"1,219.21",CROFT HOUSE RESIDENTIAL HOME.
Children and Adult Services,Central/Other,Debtors,930024,Debtor-free nursing care,07-Sep-2016,3175451-2332193,"1,219.21",CROFT HOUSE RESIDENTIAL HOME.
Children and Adult Services,Central/Other,Debtors,930024,Debtor-free nursing care,07-Sep-2016,3175451-2332195,661.17,CROFT HOUSE RESIDENTIAL HOME.
Children and Adult Services,Central/Other,Debtors,930024,Debtor-free nursing care,07-Sep-2016,3175451-2332197,"1,219.21",CROFT HOUSE RESIDENTIAL HOME.
Children and Adult Services,Central/Other,Debtors,930024,Debtor-free nursing care,07-Sep-2016,3175451-2332206,"1,219.21",CROFT HOUSE RESIDENTIAL HOME.
Children and Adult Services,Central/Other,Debtors,930024,Debtor-free nursing care,07-Sep-2016,3175451-2333540,558.04,CROFT HOUSE RESIDENTIAL HOME.
Children and Adult Services,Central/Other,Debtors,930024,Debtor-free nursing care,07-Sep-2016,3175453-2331075,"1,155.88",DEFOE COURT.
Children and Adult Services,Central/Other,Debtors,930024,Debtor-free nursing care,07-Sep-2016,3175453-2331077,625.00,DEFOE COURT.
Children and Adult Services,Central/Other,Debtors,930024,Debtor-free nursing care,07-Sep-2016,3175453-2331080,"1,155.88",DEFOE COURT.
Children and Adult Services,Central/Other,Debtors,930024,Debtor-free nursing care,07-Sep-2016,3175453-2331081,"1,219.21",DEFOE COURT.
Children and Adult Services,Central/Other,Debtors,930024,Debtor-free nursing care,07-Sep-2016,3175453-2331085,"1,219.21",DEFOE COURT.
Children and Adult Services,Central/Other,Debtors,930024,Debtor-free nursing care,07-Sep-2016,3175453-2331088,"1,219.21",DEFOE COURT.
Children and Adult Services,Central/Other,Debtors,930024,Debtor-free nursing care,07-Sep-2016,3175453-2331091,"1,219.21",DEFOE COURT.
Children and Adult Services,Central/Other,Debtors,930024,Debtor-free nursing care,07-Sep-2016,3175453-2331094,"1,219.21",DEFOE COURT.
Children and Adult Services,Central/Other,Debtors,930024,Debtor-free nursing care,07-Sep-2016,3175453-2331096,"1,219.21",DEFOE COURT.
Children and Adult Services,Central/Other,Debtors,930024,Debtor-free nursing care,07-Sep-2016,3175453-2331098,"1,219.08",DEFOE COURT.
Children and Adult Services,Central/Other,Debtors,930024,Debtor-free nursing care,07-Sep-2016,3175453-2331103,"1,219.21",DEFOE COURT.
Children and Adult Services,Central/Other,Debtors,930024,Debtor-free nursing care,07-Sep-2016,3175453-2331105,"1,219.21",DEFOE COURT.
Children and Adult Services,Central/Other,Debtors,930024,Debtor-free nursing care,07-Sep-2016,3175453-2331108,"1,219.21",DEFOE COURT.
Children and Adult Services,Central/Other,Debtors,930024,Debtor-free nursing care,07-Sep-2016,3175455-2328885,"1,219.21",DEVONSHIRE HOUSE.
Children and Adult Services,Central/Other,Debtors,930024,Debtor-free nursing care,07-Sep-2016,3175455-2328891,580.36,DEVONSHIRE HOUSE.
Children and Adult Services,Central/Other,Debtors,930024,Debtor-free nursing care,07-Sep-2016,3175455-2328894,"1,219.21",DEVONSHIRE HOUSE.
Children and Adult Services,Central/Other,Debtors,930024,Debtor-free nursing care,07-Sep-2016,3175455-2328897,"1,219.21",DEVONSHIRE HOUSE.
Children and Adult Services,Central/Other,Debtors,930024,Debtor-free nursing care,07-Sep-2016,3175455-2328899,"1,219.21",DEVONSHIRE HOUSE.
Children and Adult Services,Central/Other,Debtors,930024,Debtor-free nursing care,07-Sep-2016,3175455-2328900,"1,219.21",DEVONSHIRE HOUSE.
Children and Adult Services,Central/Other,Debtors,930024,Debtor-free nursing care,07-Sep-2016,3175455-2328907,"1,219.21",DEVONSHIRE HOUSE.
Children and Adult Services,Central/Other,Debtors,930024,Debtor-free nursing care,07-Sep-2016,3175456-2332934,937.50,DIPTON CARE HOME LTD.
Children and Adult Services,Central/Other,Debtors,930024,Debtor-free nursing care,07-Sep-2016,3175456-2332936,"1,219.21",DIPTON CARE HOME LTD.
Children and Adult Services,Central/Other,Debtors,930024,Debtor-free nursing care,07-Sep-2016,3175456-2332938,"1,073.72",DIPTON CARE HOME LTD.
Children and Adult Services,Central/Other,Debtors,930024,Debtor-free nursing care,07-Sep-2016,3175456-2332942,625.00,DIPTON CARE HOME LTD.
Children and Adult Services,Central/Other,Debtors,930024,Debtor-free nursing care,07-Sep-2016,3175456-2332947,558.04,DIPTON CARE HOME LTD.
Children and Adult Services,Central/Other,Debtors,930024,Debtor-free nursing care,07-Sep-2016,3175456-2332949,625.00,DIPTON CARE HOME LTD.
Children and Adult Services,Central/Other,Debtors,930024,Debtor-free nursing care,07-Sep-2016,3175456-2332952,625.00,DIPTON CARE HOME LTD.
Children and Adult Services,Central/Other,Debtors,930024,Debtor-free nursing care,07-Sep-2016,3175456-2332970,"1,219.21",DIPTON CARE HOME LTD.
Children and Adult Services,Central/Other,Debtors,930024,Debtor-free nursing care,07-Sep-2016,3175456-2332973,929.03,DIPTON CARE HOME LTD.
Children and Adult Services,Central/Other,Debtors,930024,Debtor-free nursing care,07-Sep-2016,3175460-2328845,700.84,DR ANDREW ASHDOWN (DENEHURST NURSING HOME).
Children and Adult Services,Central/Other,Debtors,930024,Debtor-free nursing care,07-Sep-2016,3175460-2328855,643.96,DR ANDREW ASHDOWN (DENEHURST NURSING HOME).
Children and Adult Services,Central/Other,Debtors,930024,Debtor-free nursing care,07-Sep-2016,3175460-2328864,"1,219.21",DR ANDREW ASHDOWN (DENEHURST NURSING HOME).
Children and Adult Services,Central/Other,Debtors,930024,Debtor-free nursing care,07-Sep-2016,3175460-2328866,"1,219.21",DR ANDREW ASHDOWN (DENEHURST NURSING HOME).
Children and Adult Services,Central/Other,Debtors,930024,Debtor-free nursing care,07-Sep-2016,3175460-2328871,"1,219.21",DR ANDREW ASHDOWN (DENEHURST NURSING HOME).
Children and Adult Services,Central/Other,Debtors,930024,Debtor-free nursing care,07-Sep-2016,3175460-2328878,"1,219.21",DR ANDREW ASHDOWN (DENEHURST NURSING HOME).
Children and Adult Services,Central/Other,Debtors,930024,Debtor-free nursing care,07-Sep-2016,3175460-2328880,"1,219.21",DR ANDREW ASHDOWN (DENEHURST NURSING HOME).
Children and Adult Services,Central/Other,Debtors,930024,Debtor-free nursing care,07-Sep-2016,3175460-2328882,"1,219.21",DR ANDREW ASHDOWN (DENEHURST NURSING HOME).
Children and Adult Services,Central/Other,Debtors,930024,Debtor-free nursing care,07-Sep-2016,3175460-2333128,781.25,DR ANDREW ASHDOWN (DENEHURST NURSING HOME).
Children and Adult Services,Central/Other,Debtors,930024,Debtor-free nursing care,07-Sep-2016,3175460-2333154,937.50,DR ANDREW ASHDOWN (DENEHURST NURSING HOME).
Children and Adult Services,Central/Other,Debtors,930024,Debtor-free nursing care,07-Sep-2016,3175466-2332997,"1,219.21",ELBA CARE LTD T/A DIVINE CARE CENTRE.
Children and Adult Services,Central/Other,Debtors,930024,Debtor-free nursing care,07-Sep-2016,3175466-2332999,"1,219.21",ELBA CARE LTD T/A DIVINE CARE CENTRE.
Children and Adult Services,Central/Other,Debtors,930024,Debtor-free nursing care,07-Sep-2016,3175466-2333003,814.60,ELBA CARE LTD T/A DIVINE CARE CENTRE.
Children and Adult Services,Central/Other,Debtors,930024,Debtor-free nursing care,07-Sep-2016,3175466-2333005,"1,092.68",ELBA CARE LTD T/A DIVINE CARE CENTRE.
Children and Adult Services,Central/Other,Debtors,930024,Debtor-free nursing care,07-Sep-2016,3175468-2330392,625.00,ELIZABETH FLEMMING CARE HOME.
Children and Adult Services,Central/Other,Debtors,930024,Debtor-free nursing care,07-Sep-2016,3175468-2330395,"1,219.21",ELIZABETH FLEMMING CARE HOME.
Children and Adult Services,Central/Other,Debtors,930024,Debtor-free nursing care,07-Sep-2016,3175474-2332675,625.00,EMBRACE ALL LTD.
Children and Adult Services,Central/Other,Debtors,930024,Debtor-free nursing care,07-Sep-2016,3175474-2332685,"1,219.21",EMBRACE ALL LTD.
Children and Adult Services,Central/Other,Debtors,930024,Debtor-free nursing care,07-Sep-2016,3175474-2332694,"1,219.21",EMBRACE ALL LTD.
Children and Adult Services,Central/Other,Debtors,930024,Debtor-free nursing care,07-Sep-2016,3175474-2332697,"1,219.21",EMBRACE ALL LTD.
Children and Adult Services,Central/Other,Debtors,930024,Debtor-free nursing care,07-Sep-2016,3175474-2332700,"1,219.21",EMBRACE ALL LTD.
Children and Adult Services,Central/Other,Debtors,930024,Debtor-free nursing care,07-Sep-2016,3175474-2332710,"1,219.21",EMBRACE ALL LTD.
Children and Adult Services,Central/Other,Debtors,930024,Debtor-free nursing care,07-Sep-2016,3175474-2332716,"1,219.21",EMBRACE ALL LTD.
Children and Adult Services,Central/Other,Debtors,930024,Debtor-free nursing care,07-Sep-2016,3175475-2332524,625.00,EMBRACE ALL LTD.
Children and Adult Services,Central/Other,Debtors,930024,Debtor-free nursing care,07-Sep-2016,3175475-2332527,934.68,EMBRACE ALL LTD.
Children and Adult Services,Central/Other,Debtors,930024,Debtor-free nursing care,07-Sep-2016,3175475-2332531,959.96,EMBRACE ALL LTD.
Children and Adult Services,Central/Other,Debtors,930024,Debtor-free nursing care,07-Sep-2016,3175475-2332536,"1,219.08",EMBRACE ALL LTD.
Children and Adult Services,Central/Other,Debtors,930024,Debtor-free nursing care,07-Sep-2016,3175475-2332538,"1,181.16",EMBRACE ALL LTD.
Children and Adult Services,Central/Other,Debtors,930024,Debtor-free nursing care,07-Sep-2016,3175475-2332548,"1,219.08",EMBRACE ALL LTD.
Children and Adult Services,Central/Other,Debtors,930024,Debtor-free nursing care,07-Sep-2016,3175475-2332554,535.71,EMBRACE ALL LTD.
Children and Adult Services,Central/Other,Debtors,930024,Debtor-free nursing care,07-Sep-2016,3175475-2332557,"1,219.08",EMBRACE ALL LTD.
Children and Adult Services,Central/Other,Debtors,930024,Debtor-free nursing care,07-Sep-2016,3175475-2332559,625.00,EMBRACE ALL LTD.
Children and Adult Services,Central/Other,Debtors,930024,Debtor-free nursing care,07-Sep-2016,3175475-2332561,978.92,EMBRACE ALL LTD.
Children and Adult Services,Central/Other,Debtors,930024,Debtor-free nursing care,07-Sep-2016,3175475-2332565,978.92,EMBRACE ALL LTD.
Children and Adult Services,Central/Other,Debtors,930024,Debtor-free nursing care,07-Sep-2016,3175475-2332573,"1,219.08",EMBRACE ALL LTD.
Children and Adult Services,Central/Other,Debtors,930024,Debtor-free nursing care,07-Sep-2016,3175475-2332575,"1,219.08",EMBRACE ALL LTD.
Children and Adult Services,Central/Other,Debtors,930024,Debtor-free nursing care,07-Sep-2016,3175475-2332581,"1,219.08",EMBRACE ALL LTD.
Children and Adult Services,Central/Other,Debtors,930024,Debtor-free nursing care,07-Sep-2016,3175475-2332585,"1,219.08",EMBRACE ALL LTD.
Children and Adult Services,Central/Other,Debtors,930024,Debtor-free nursing care,07-Sep-2016,3175475-2332587,"1,219.08",EMBRACE ALL LTD.
Children and Adult Services,Central/Other,Debtors,930024,Debtor-free nursing care,07-Sep-2016,3175475-2332591,"1,219.08",EMBRACE ALL LTD.
Children and Adult Services,Central/Other,Debtors,930024,Debtor-free nursing care,07-Sep-2016,3175475-2332593,"1,219.08",EMBRACE ALL LTD.
Children and Adult Services,Central/Other,Debtors,930024,Debtor-free nursing care,07-Sep-2016,3175475-2332598,"1,155.88",EMBRACE ALL LTD.
Children and Adult Services,Central/Other,Debtors,930024,Debtor-free nursing care,07-Sep-2016,3175476-2331171,"1,219.08",EMBRACE ALL LTD.
Children and Adult Services,Central/Other,Debtors,930024,Debtor-free nursing care,07-Sep-2016,3175476-2331173,602.68,EMBRACE ALL LTD.
Children and Adult Services,Central/Other,Debtors,930024,Debtor-free nursing care,07-Sep-2016,3175476-2331177,978.92,EMBRACE ALL LTD.
Children and Adult Services,Central/Other,Debtors,930024,Debtor-free nursing care,07-Sep-2016,3175476-2331182,"1,155.88",EMBRACE ALL LTD.
Children and Adult Services,Central/Other,Debtors,930024,Debtor-free nursing care,07-Sep-2016,3175476-2331192,625.00,EMBRACE ALL LTD.
Children and Adult Services,Central/Other,Debtors,930024,Debtor-free nursing care,07-Sep-2016,3175476-2331194,"1,219.08",EMBRACE ALL LTD.
Children and Adult Services,Central/Other,Debtors,930024,Debtor-free nursing care,07-Sep-2016,3175476-2331198,"1,219.08",EMBRACE ALL LTD.
Children and Adult Services,Central/Other,Debtors,930024,Debtor-free nursing care,07-Sep-2016,3175476-2331204,"1,183.04",EMBRACE ALL LTD.
Children and Adult Services,Central/Other,Debtors,930024,Debtor-free nursing care,07-Sep-2016,3175476-2331206,"1,219.08",EMBRACE ALL LTD.
Children and Adult Services,Central/Other,Debtors,930024,Debtor-free nursing care,07-Sep-2016,3175476-2331208,"1,219.08",EMBRACE ALL LTD.
Children and Adult Services,Central/Other,Debtors,930024,Debtor-free nursing care,07-Sep-2016,3175476-2331216,"1,219.08",EMBRACE ALL LTD.
Children and Adult Services,Central/Other,Debtors,930024,Debtor-free nursing care,07-Sep-2016,3175476-2331220,"1,219.08",EMBRACE ALL LTD.
Children and Adult Services,Central/Other,Debtors,930024,Debtor-free nursing care,07-Sep-2016,3175476-2331225,"1,219.08",EMBRACE ALL LTD.
Children and Adult Services,Central/Other,Debtors,930024,Debtor-free nursing care,07-Sep-2016,3175476-2331227,"1,219.08",EMBRACE ALL LTD.
Children and Adult Services,Central/Other,Debtors,930024,Debtor-free nursing care,07-Sep-2016,3175484-2330965,"1,219.21",FOUR SEASONS HEALTH CARE..
Children and Adult Services,Central/Other,Debtors,930024,Debtor-free nursing care,07-Sep-2016,3175484-2330974,"1,219.21",FOUR SEASONS HEALTH CARE..
Children and Adult Services,Central/Other,Debtors,930024,Debtor-free nursing care,07-Sep-2016,3175484-2330981,"1,219.21",FOUR SEASONS HEALTH CARE..
Children and Adult Services,Central/Other,Debtors,930024,Debtor-free nursing care,07-Sep-2016,3175484-2330986,"1,219.21",FOUR SEASONS HEALTH CARE..
Children and Adult Services,Central/Other,Debtors,930024,Debtor-free nursing care,07-Sep-2016,3175484-2330989,"1,219.21",FOUR SEASONS HEALTH CARE..
Children and Adult Services,Central/Other,Debtors,930024,Debtor-free nursing care,07-Sep-2016,3175484-2330990,"1,219.21",FOUR SEASONS HEALTH CARE..
Children and Adult Services,Central/Other,Debtors,930024,Debtor-free nursing care,07-Sep-2016,3175484-2330992,"1,219.21",FOUR SEASONS HEALTH CARE..
Children and Adult Services,Central/Other,Debtors,930024,Debtor-free nursing care,07-Sep-2016,3175484-2330994,"1,219.21",FOUR SEASONS HEALTH CARE..
Children and Adult Services,Central/Other,Debtors,930024,Debtor-free nursing care,07-Sep-2016,3175484-2330996,"1,219.21",FOUR SEASONS HEALTH CARE..
Children and Adult Services,Central/Other,Debtors,930024,Debtor-free nursing care,07-Sep-2016,3175484-2330999,"1,219.21",FOUR SEASONS HEALTH CARE..
Children and Adult Services,Central/Other,Debtors,930024,Debtor-free nursing care,07-Sep-2016,3175486-2331355,"1,219.21",GAINFORD CARE HOMES LTD.
Children and Adult Services,Central/Other,Debtors,930024,Debtor-free nursing care,07-Sep-2016,3175487-2330526,"1,067.50",GAINFORD CARE HOMES LTD.
Children and Adult Services,Central/Other,Debtors,930024,Debtor-free nursing care,07-Sep-2016,3175487-2330527,"1,219.21",GAINFORD CARE HOMES LTD.
Children and Adult Services,Central/Other,Debtors,930024,Debtor-free nursing care,07-Sep-2016,3175487-2330528,"1,219.21",GAINFORD CARE HOMES LTD.
Children and Adult Services,Central/Other,Debtors,930024,Debtor-free nursing care,07-Sep-2016,3175487-2330530,"1,067.40",GAINFORD CARE HOMES LTD.
Children and Adult Services,Central/Other,Debtors,930024,Debtor-free nursing care,07-Sep-2016,3175487-2330535,"1,219.21",GAINFORD CARE HOMES LTD.
Children and Adult Services,Central/Other,Debtors,930024,Debtor-free nursing care,07-Sep-2016,3175487-2330536,"1,219.21",GAINFORD CARE HOMES LTD.
Children and Adult Services,Central/Other,Debtors,930024,Debtor-free nursing care,07-Sep-2016,3175487-2330539,"1,219.21",GAINFORD CARE HOMES LTD.
Children and Adult Services,Central/Other,Debtors,930024,Debtor-free nursing care,07-Sep-2016,3175487-2330544,"1,219.21",GAINFORD CARE HOMES LTD.
Children and Adult Services,Central/Other,Debtors,930024,Debtor-free nursing care,07-Sep-2016,3175487-2330558,"1,219.21",GAINFORD CARE HOMES LTD.
Children and Adult Services,Central/Other,Debtors,930024,Debtor-free nursing care,07-Sep-2016,3175487-2330564,"1,219.21",GAINFORD CARE HOMES LTD.
Children and Adult Services,Central/Other,Debtors,930024,Debtor-free nursing care,07-Sep-2016,3175487-2330572,"1,219.21",GAINFORD CARE HOMES LTD.
Children and Adult Services,Central/Other,Debtors,930024,Debtor-free nursing care,07-Sep-2016,3175487-2330577,"1,219.21",GAINFORD CARE HOMES LTD.
Children and Adult Services,Central/Other,Debtors,930024,Debtor-free nursing care,07-Sep-2016,3175487-2330580,"1,219.21",GAINFORD CARE HOMES LTD.
Children and Adult Services,Central/Other,Debtors,930024,Debtor-free nursing care,07-Sep-2016,3175487-2330596,"1,219.21",GAINFORD CARE HOMES LTD.
Children and Adult Services,Central/Other,Debtors,930024,Debtor-free nursing care,07-Sep-2016,3175488-2332739,"1,219.21",GAINFORD CARE HOMES LTD.
Children and Adult Services,Central/Other,Debtors,930024,Debtor-free nursing care,07-Sep-2016,3175488-2332741,"1,219.21",GAINFORD CARE HOMES LTD.
Children and Adult Services,Central/Other,Debtors,930024,Debtor-free nursing care,07-Sep-2016,3175488-2332746,"1,219.21",GAINFORD CARE HOMES LTD.
Children and Adult Services,Central/Other,Debtors,930024,Debtor-free nursing care,07-Sep-2016,3175488-2332751,"1,219.21",GAINFORD CARE HOMES LTD.
Children and Adult Services,Central/Other,Debtors,930024,Debtor-free nursing care,07-Sep-2016,3175488-2332753,"1,219.21",GAINFORD CARE HOMES LTD.
Children and Adult Services,Central/Other,Debtors,930024,Debtor-free nursing care,07-Sep-2016,3175488-2332755,"1,219.21",GAINFORD CARE HOMES LTD.
Children and Adult Services,Central/Other,Debtors,930024,Debtor-free nursing care,07-Sep-2016,3175488-2332758,"1,219.08",GAINFORD CARE HOMES LTD.
Children and Adult Services,Central/Other,Debtors,930024,Debtor-free nursing care,07-Sep-2016,3175488-2332765,"1,219.21",GAINFORD CARE HOMES LTD.
Children and Adult Services,Central/Other,Debtors,930024,Debtor-free nursing care,07-Sep-2016,3175488-2332767,"1,219.21",GAINFORD CARE HOMES LTD.
Children and Adult Services,Central/Other,Debtors,930024,Debtor-free nursing care,07-Sep-2016,3175488-2332769,"1,219.21",GAINFORD CARE HOMES LTD.
Children and Adult Services,Central/Other,Debtors,930024,Debtor-free nursing care,07-Sep-2016,3175488-2332773,"1,219.21",GAINFORD CARE HOMES LTD.
Children and Adult Services,Central/Other,Debtors,930024,Debtor-free nursing care,07-Sep-2016,3175488-2332783,"1,219.21",GAINFORD CARE HOMES LTD.
Children and Adult Services,Central/Other,Debtors,930024,Debtor-free nursing care,07-Sep-2016,3175488-2332786,"1,219.21",GAINFORD CARE HOMES LTD.
Children and Adult Services,Central/Other,Debtors,930024,Debtor-free nursing care,07-Sep-2016,3175488-2332789,"1,219.21",GAINFORD CARE HOMES LTD.
Children and Adult Services,Central/Other,Debtors,930024,Debtor-free nursing care,07-Sep-2016,3175488-2333093,"1,004.46",GAINFORD CARE HOMES LTD.
Children and Adult Services,Central/Other,Debtors,930024,Debtor-free nursing care,07-Sep-2016,3175496-2332604,"1,219.21",GUARDIAN CARE HOMES (WEST) LTD.
Children and Adult Services,Central/Other,Debtors,930024,Debtor-free nursing care,07-Sep-2016,3175496-2332606,625.00,GUARDIAN CARE HOMES (WEST) LTD.
Children and Adult Services,Central/Other,Debtors,930024,Debtor-free nursing care,07-Sep-2016,3175496-2332618,"1,219.21",GUARDIAN CARE HOMES (WEST) LTD.
Children and Adult Services,Central/Other,Debtors,930024,Debtor-free nursing care,07-Sep-2016,3175496-2332623,"1,219.21",GUARDIAN CARE HOMES (WEST) LTD.
Children and Adult Services,Central/Other,Debtors,930024,Debtor-free nursing care,07-Sep-2016,3175496-2332625,"1,219.21",GUARDIAN CARE HOMES (WEST) LTD.
Children and Adult Services,Central/Other,Debtors,930024,Debtor-free nursing care,07-Sep-2016,3175496-2332634,"1,219.21",GUARDIAN CARE HOMES (WEST) LTD.
Children and Adult Services,Central/Other,Debtors,930024,Debtor-free nursing care,07-Sep-2016,3175496-2332635,"1,219.21",GUARDIAN CARE HOMES (WEST) LTD.
Children and Adult Services,Central/Other,Debtors,930024,Debtor-free nursing care,07-Sep-2016,3175496-2332637,"1,219.21",GUARDIAN CARE HOMES (WEST) LTD.
Children and Adult Services,Central/Other,Debtors,930024,Debtor-free nursing care,07-Sep-2016,3175496-2332642,"1,219.21",GUARDIAN CARE HOMES (WEST) LTD.
Children and Adult Services,Central/Other,Debtors,930024,Debtor-free nursing care,07-Sep-2016,3175496-2332645,"1,219.21",GUARDIAN CARE HOMES (WEST) LTD.
Children and Adult Services,Central/Other,Debtors,930024,Debtor-free nursing care,07-Sep-2016,3175496-2332650,"1,219.21",GUARDIAN CARE HOMES (WEST) LTD.
Children and Adult Services,Central/Other,Debtors,930024,Debtor-free nursing care,07-Sep-2016,3175496-2332652,"1,219.21",GUARDIAN CARE HOMES (WEST) LTD.
Children and Adult Services,Central/Other,Debtors,930024,Debtor-free nursing care,07-Sep-2016,3175496-2332654,"1,219.21",GUARDIAN CARE HOMES (WEST) LTD.
Children and Adult Services,Central/Other,Debtors,930024,Debtor-free nursing care,07-Sep-2016,3175496-2332656,"1,219.21",GUARDIAN CARE HOMES (WEST) LTD.
Children and Adult Services,Central/Other,Debtors,930024,Debtor-free nursing care,07-Sep-2016,3175496-2332658,"1,219.21",GUARDIAN CARE HOMES (WEST) LTD.
Children and Adult Services,Central/Other,Debtors,930024,Debtor-free nursing care,07-Sep-2016,3175496-2333302,527.25,GUARDIAN CARE HOMES (WEST) LTD.
Children and Adult Services,Central/Other,Debtors,930024,Debtor-free nursing care,07-Sep-2016,3175496-2333305,594.21,GUARDIAN CARE HOMES (WEST) LTD.
Children and Adult Services,Central/Other,Debtors,930024,Debtor-free nursing care,07-Sep-2016,3175509-2331611,"1,219.21",HOLLY LODGE CARE HOME.
Children and Adult Services,Central/Other,Debtors,930024,Debtor-free nursing care,07-Sep-2016,3175509-2331614,625.00,HOLLY LODGE CARE HOME.
Children and Adult Services,Central/Other,Debtors,930024,Debtor-free nursing care,07-Sep-2016,3175509-2331617,625.00,HOLLY LODGE CARE HOME.
Children and Adult Services,Central/Other,Debtors,930024,Debtor-free nursing care,07-Sep-2016,3175509-2331623,972.60,HOLLY LODGE CARE HOME.
Children and Adult Services,Central/Other,Debtors,930024,Debtor-free nursing care,07-Sep-2016,3175509-2331630,"1,219.21",HOLLY LODGE CARE HOME.
Children and Adult Services,Central/Other,Debtors,930024,Debtor-free nursing care,07-Sep-2016,3175509-2331632,"1,219.21",HOLLY LODGE CARE HOME.
Children and Adult Services,Central/Other,Debtors,930024,Debtor-free nursing care,07-Sep-2016,3175509-2331634,"1,219.21",HOLLY LODGE CARE HOME.
Children and Adult Services,Central/Other,Debtors,930024,Debtor-free nursing care,07-Sep-2016,3175509-2331636,"1,219.21",HOLLY LODGE CARE HOME.
Children and Adult Services,Central/Other,Debtors,930024,Debtor-free nursing care,07-Sep-2016,3175509-2331641,"1,219.21",HOLLY LODGE CARE HOME.
Children and Adult Services,Central/Other,Debtors,930024,Debtor-free nursing care,07-Sep-2016,3175510-2328909,625.00,HOWLISH HALL NURSING HOME.
Children and Adult Services,Central/Other,Debtors,930024,Debtor-free nursing care,07-Sep-2016,3175510-2328918,"1,155.88",HOWLISH HALL NURSING HOME.
Children and Adult Services,Central/Other,Debtors,930024,Debtor-free nursing care,07-Sep-2016,3175510-2328922,558.04,HOWLISH HALL NURSING HOME.
Children and Adult Services,Central/Other,Debtors,930024,Debtor-free nursing care,07-Sep-2016,3175510-2328925,"1,219.21",HOWLISH HALL NURSING HOME.
Children and Adult Services,Central/Other,Debtors,930024,Debtor-free nursing care,07-Sep-2016,3175510-2328926,"1,219.21",HOWLISH HALL NURSING HOME.
Children and Adult Services,Central/Other,Debtors,930024,Debtor-free nursing care,07-Sep-2016,3175510-2328928,"1,219.21",HOWLISH HALL NURSING HOME.
Children and Adult Services,Central/Other,Debtors,930024,Debtor-free nursing care,07-Sep-2016,3175510-2328930,"1,219.21",HOWLISH HALL NURSING HOME.
Children and Adult Services,Central/Other,Debtors,930024,Debtor-free nursing care,07-Sep-2016,3175510-2328935,"1,219.21",HOWLISH HALL NURSING HOME.
Children and Adult Services,Central/Other,Debtors,930024,Debtor-free nursing care,07-Sep-2016,3175510-2328938,"1,219.21",HOWLISH HALL NURSING HOME.
Children and Adult Services,Central/Other,Debtors,930024,Debtor-free nursing care,07-Sep-2016,3175510-2328939,"1,219.21",HOWLISH HALL NURSING HOME.
Children and Adult Services,Central/Other,Debtors,930024,Debtor-free nursing care,07-Sep-2016,3175510-2328940,"1,219.21",HOWLISH HALL NURSING HOME.
Children and Adult Services,Central/Other,Debtors,930024,Debtor-free nursing care,07-Sep-2016,3175510-2328944,"1,219.21",HOWLISH HALL NURSING HOME.
Children and Adult Services,Central/Other,Debtors,930024,Debtor-free nursing care,07-Sep-2016,3175510-2328946,"1,219.21",HOWLISH HALL NURSING HOME.
Children and Adult Services,Central/Other,Debtors,930024,Debtor-free nursing care,07-Sep-2016,3175513-2329810,"1,155.88",JACK DORMAND.
Children and Adult Services,Central/Other,Debtors,930024,Debtor-free nursing care,07-Sep-2016,3175513-2329818,714.29,JACK DORMAND.
Children and Adult Services,Central/Other,Debtors,930024,Debtor-free nursing care,07-Sep-2016,3175513-2329833,"1,219.21",JACK DORMAND.
Children and Adult Services,Central/Other,Debtors,930024,Debtor-free nursing care,07-Sep-2016,3175513-2329835,"1,219.21",JACK DORMAND.
Children and Adult Services,Central/Other,Debtors,930024,Debtor-free nursing care,07-Sep-2016,3175513-2329840,"1,219.21",JACK DORMAND.
Children and Adult Services,Central/Other,Debtors,930024,Debtor-free nursing care,07-Sep-2016,3175513-2329841,"1,219.21",JACK DORMAND.
Children and Adult Services,Central/Other,Debtors,930024,Debtor-free nursing care,07-Sep-2016,3175513-2329845,906.71,JACK DORMAND.
Children and Adult Services,Central/Other,Debtors,930024,Debtor-free nursing care,07-Sep-2016,3175513-2329848,"1,219.21",JACK DORMAND.
Children and Adult Services,Central/Other,Debtors,930024,Debtor-free nursing care,07-Sep-2016,3175513-2329851,"1,219.21",JACK DORMAND.
Children and Adult Services,Central/Other,Debtors,930024,Debtor-free nursing care,07-Sep-2016,3175516-2330312,625.00,KIMBLESWORTH NURSING HOME.
Children and Adult Services,Central/Other,Debtors,930024,Debtor-free nursing care,07-Sep-2016,3175516-2330315,625.00,KIMBLESWORTH NURSING HOME.
Children and Adult Services,Central/Other,Debtors,930024,Debtor-free nursing care,07-Sep-2016,3175516-2330317,860.16,KIMBLESWORTH NURSING HOME.
Children and Adult Services,Central/Other,Debtors,930024,Debtor-free nursing care,07-Sep-2016,3175516-2330323,"1,219.21",KIMBLESWORTH NURSING HOME.
Children and Adult Services,Central/Other,Debtors,930024,Debtor-free nursing care,07-Sep-2016,3175516-2330327,"1,219.21",KIMBLESWORTH NURSING HOME.
Children and Adult Services,Central/Other,Debtors,930024,Debtor-free nursing care,07-Sep-2016,3175516-2330329,"1,219.21",KIMBLESWORTH NURSING HOME.
Children and Adult Services,Central/Other,Debtors,930024,Debtor-free nursing care,07-Sep-2016,3175516-2330331,"1,219.21",KIMBLESWORTH NURSING HOME.
Children and Adult Services,Central/Other,Debtors,930024,Debtor-free nursing care,07-Sep-2016,3175518-2329539,625.00,KINGSWAY CARE HOME LTD.
Children and Adult Services,Central/Other,Debtors,930024,Debtor-free nursing care,07-Sep-2016,3175518-2329542,"1,219.21",KINGSWAY CARE HOME LTD.
Children and Adult Services,Central/Other,Debtors,930024,Debtor-free nursing care,07-Sep-2016,3175518-2329544,"1,219.21",KINGSWAY CARE HOME LTD.
Children and Adult Services,Central/Other,Debtors,930024,Debtor-free nursing care,07-Sep-2016,3175518-2329548,"1,219.21",KINGSWAY CARE HOME LTD.
Children and Adult Services,Central/Other,Debtors,930024,Debtor-free nursing care,07-Sep-2016,3175518-2329549,"1,219.21",KINGSWAY CARE HOME LTD.
Children and Adult Services,Central/Other,Debtors,930024,Debtor-free nursing care,07-Sep-2016,3175518-2329551,"1,219.21",KINGSWAY CARE HOME LTD.
Children and Adult Services,Central/Other,Debtors,930024,Debtor-free nursing care,07-Sep-2016,3175518-2329552,"1,219.21",KINGSWAY CARE HOME LTD.
Children and Adult Services,Central/Other,Debtors,930024,Debtor-free nursing care,07-Sep-2016,3175518-2329559,"1,219.21",KINGSWAY CARE HOME LTD.
Children and Adult Services,Central/Other,Debtors,930024,Debtor-free nursing care,07-Sep-2016,3175518-2329563,"1,219.21",KINGSWAY CARE HOME LTD.
Children and Adult Services,Central/Other,Debtors,930024,Debtor-free nursing care,07-Sep-2016,3175518-2329565,"1,219.21",KINGSWAY CARE HOME LTD.
Children and Adult Services,Central/Other,Debtors,930024,Debtor-free nursing care,07-Sep-2016,3175518-2329569,"1,219.21",KINGSWAY CARE HOME LTD.
Children and Adult Services,Central/Other,Debtors,930024,Debtor-free nursing care,07-Sep-2016,3175518-2329571,"1,219.21",KINGSWAY CARE HOME LTD.
Children and Adult Services,Central/Other,Debtors,930024,Debtor-free nursing care,07-Sep-2016,3175525-2329189,839.88,LEAZES HALL RESIDENTIAL & NURSING HOME.
Children and Adult Services,Central/Other,Debtors,930024,Debtor-free nursing care,07-Sep-2016,3175525-2329198,625.00,LEAZES HALL RESIDENTIAL & NURSING HOME.
Children and Adult Services,Central/Other,Debtors,930024,Debtor-free nursing care,07-Sep-2016,3175525-2329205,"1,219.21",LEAZES HALL RESIDENTIAL & NURSING HOME.
Children and Adult Services,Central/Other,Debtors,930024,Debtor-free nursing care,07-Sep-2016,3175525-2329208,"1,219.21",LEAZES HALL RESIDENTIAL & NURSING HOME.
Children and Adult Services,Central/Other,Debtors,930024,Debtor-free nursing care,07-Sep-2016,3175525-2329213,"1,219.21",LEAZES HALL RESIDENTIAL & NURSING HOME.
Children and Adult Services,Central/Other,Debtors,930024,Debtor-free nursing care,07-Sep-2016,3175525-2329214,"1,219.21",LEAZES HALL RESIDENTIAL & NURSING HOME.
Children and Adult Services,Central/Other,Debtors,930024,Debtor-free nursing care,07-Sep-2016,3175525-2329218,"1,219.21",LEAZES HALL RESIDENTIAL & NURSING HOME.
Children and Adult Services,Central/Other,Debtors,930024,Debtor-free nursing care,07-Sep-2016,3175525-2329222,"1,219.21",LEAZES HALL RESIDENTIAL & NURSING HOME.
Children and Adult Services,Central/Other,Debtors,930024,Debtor-free nursing care,07-Sep-2016,3175525-2329224,"1,219.21",LEAZES HALL RESIDENTIAL & NURSING HOME.
Children and Adult Services,Central/Other,Debtors,930024,Debtor-free nursing care,07-Sep-2016,3175525-2329226,"1,219.21",LEAZES HALL RESIDENTIAL & NURSING HOME.
Children and Adult Services,Central/Other,Debtors,930024,Debtor-free nursing care,07-Sep-2016,3175525-2329228,"1,219.21",LEAZES HALL RESIDENTIAL & NURSING HOME.
Children and Adult Services,Central/Other,Debtors,930024,Debtor-free nursing care,07-Sep-2016,3175528-2332016,"1,219.21",LINDISFARNE CARE HOME (GAINFORD CARE HOMES LTD).
Children and Adult Services,Central/Other,Debtors,930024,Debtor-free nursing care,07-Sep-2016,3175528-2332023,"1,219.21",LINDISFARNE CARE HOME (GAINFORD CARE HOMES LTD).
Children and Adult Services,Central/Other,Debtors,930024,Debtor-free nursing care,07-Sep-2016,3175528-2332025,"1,219.21",LINDISFARNE CARE HOME (GAINFORD CARE HOMES LTD).
Children and Adult Services,Central/Other,Debtors,930024,Debtor-free nursing care,07-Sep-2016,3175528-2332027,"1,219.21",LINDISFARNE CARE HOME (GAINFORD CARE HOMES LTD).
Children and Adult Services,Central/Other,Debtors,930024,Debtor-free nursing care,07-Sep-2016,3175528-2332028,"1,219.21",LINDISFARNE CARE HOME (GAINFORD CARE HOMES LTD).
Children and Adult Services,Central/Other,Debtors,930024,Debtor-free nursing care,07-Sep-2016,3175528-2332030,"1,219.21",LINDISFARNE CARE HOME (GAINFORD CARE HOMES LTD).
Children and Adult Services,Central/Other,Debtors,930024,Debtor-free nursing care,07-Sep-2016,3175528-2332031,"1,219.21",LINDISFARNE CARE HOME (GAINFORD CARE HOMES LTD).
Children and Adult Services,Central/Other,Debtors,930024,Debtor-free nursing care,07-Sep-2016,3175528-2332033,"1,219.21",LINDISFARNE CARE HOME (GAINFORD CARE HOMES LTD).
Children and Adult Services,Central/Other,Debtors,930024,Debtor-free nursing care,07-Sep-2016,3175528-2332036,"1,219.21",LINDISFARNE CARE HOME (GAINFORD CARE HOMES LTD).
Children and Adult Services,Central/Other,Debtors,930024,Debtor-free nursing care,07-Sep-2016,3175528-2332038,"1,219.21",LINDISFARNE CARE HOME (GAINFORD CARE HOMES LTD).
Children and Adult Services,Central/Other,Debtors,930024,Debtor-free nursing care,07-Sep-2016,3175528-2332040,"1,219.21",LINDISFARNE CARE HOME (GAINFORD CARE HOMES LTD).
Children and Adult Services,Central/Other,Debtors,930024,Debtor-free nursing care,07-Sep-2016,3175528-2332045,"1,219.21",LINDISFARNE CARE HOME (GAINFORD CARE HOMES LTD).
Children and Adult Services,Central/Other,Debtors,930024,Debtor-free nursing care,07-Sep-2016,3175528-2332047,"1,219.21",LINDISFARNE CARE HOME (GAINFORD CARE HOMES LTD).
Children and Adult Services,Central/Other,Debtors,930024,Debtor-free nursing care,07-Sep-2016,3175528-2332049,"1,219.21",LINDISFARNE CARE HOME (GAINFORD CARE HOMES LTD).
Children and Adult Services,Central/Other,Debtors,930024,Debtor-free nursing care,07-Sep-2016,3175528-2332053,"1,219.21",LINDISFARNE CARE HOME (GAINFORD CARE HOMES LTD).
Children and Adult Services,Central/Other,Debtors,930024,Debtor-free nursing care,07-Sep-2016,3175528-2332055,"1,219.21",LINDISFARNE CARE HOME (GAINFORD CARE HOMES LTD).
Children and Adult Services,Central/Other,Debtors,930024,Debtor-free nursing care,07-Sep-2016,3175528-2332060,"1,219.21",LINDISFARNE CARE HOME (GAINFORD CARE HOMES LTD).
Children and Adult Services,Central/Other,Debtors,930024,Debtor-free nursing care,07-Sep-2016,3175528-2332064,"1,219.21",LINDISFARNE CARE HOME (GAINFORD CARE HOMES LTD).
Children and Adult Services,Central/Other,Debtors,930024,Debtor-free nursing care,07-Sep-2016,3175528-2332066,"1,219.21",LINDISFARNE CARE HOME (GAINFORD CARE HOMES LTD).
Children and Adult Services,Central/Other,Debtors,930024,Debtor-free nursing care,07-Sep-2016,3175531-2331813,"1,219.21",LINDISFARNE.
Children and Adult Services,Central/Other,Debtors,930024,Debtor-free nursing care,07-Sep-2016,3175531-2331819,691.96,LINDISFARNE.
Children and Adult Services,Central/Other,Debtors,930024,Debtor-free nursing care,07-Sep-2016,3175531-2331822,"1,219.21",LINDISFARNE.
Children and Adult Services,Central/Other,Debtors,930024,Debtor-free nursing care,07-Sep-2016,3175531-2331823,"1,219.21",LINDISFARNE.
Children and Adult Services,Central/Other,Debtors,930024,Debtor-free nursing care,07-Sep-2016,3175531-2331824,"1,219.21",LINDISFARNE.
Children and Adult Services,Central/Other,Debtors,930024,Debtor-free nursing care,07-Sep-2016,3175531-2331826,"1,219.21",LINDISFARNE.
Children and Adult Services,Central/Other,Debtors,930024,Debtor-free nursing care,07-Sep-2016,3175531-2331828,"1,219.21",LINDISFARNE.
Children and Adult Services,Central/Other,Debtors,930024,Debtor-free nursing care,07-Sep-2016,3175531-2331829,"1,219.21",LINDISFARNE.
Children and Adult Services,Central/Other,Debtors,930024,Debtor-free nursing care,07-Sep-2016,3175531-2331831,"1,219.21",LINDISFARNE.
Children and Adult Services,Central/Other,Debtors,930024,Debtor-free nursing care,07-Sep-2016,3175531-2331832,"1,219.21",LINDISFARNE.
Children and Adult Services,Central/Other,Debtors,930024,Debtor-free nursing care,07-Sep-2016,3175531-2331834,"1,219.21",LINDISFARNE.
Children and Adult Services,Central/Other,Debtors,930024,Debtor-free nursing care,07-Sep-2016,3175531-2331837,"1,219.21",LINDISFARNE.
Children and Adult Services,Central/Other,Debtors,930024,Debtor-free nursing care,07-Sep-2016,3175531-2331838,"1,219.21",LINDISFARNE.
Children and Adult Services,Central/Other,Debtors,930024,Debtor-free nursing care,07-Sep-2016,3175531-2331840,"1,018.32",LINDISFARNE.
Children and Adult Services,Central/Other,Debtors,930024,Debtor-free nursing care,07-Sep-2016,3175531-2331842,"1,219.21",LINDISFARNE.
Children and Adult Services,Central/Other,Debtors,930024,Debtor-free nursing care,07-Sep-2016,3175531-2331845,"1,219.21",LINDISFARNE.
Children and Adult Services,Central/Other,Debtors,930024,Debtor-free nursing care,07-Sep-2016,3175531-2331852,"1,219.21",LINDISFARNE.
Children and Adult Services,Central/Other,Debtors,930024,Debtor-free nursing care,07-Sep-2016,3175531-2331854,"1,219.21",LINDISFARNE.
Children and Adult Services,Central/Other,Debtors,930024,Debtor-free nursing care,07-Sep-2016,3175531-2331857,"1,219.21",LINDISFARNE.
Children and Adult Services,Central/Other,Debtors,930024,Debtor-free nursing care,07-Sep-2016,3175531-2331860,"1,219.21",LINDISFARNE.
Children and Adult Services,Central/Other,Debtors,930024,Debtor-free nursing care,07-Sep-2016,3175531-2331863,"1,219.21",LINDISFARNE.
Children and Adult Services,Central/Other,Debtors,930024,Debtor-free nursing care,07-Sep-2016,3175537-2331963,625.00,LYONS COURT CARE HOME.
Children and Adult Services,Central/Other,Debtors,930024,Debtor-free nursing care,07-Sep-2016,3175537-2331965,"1,219.21",LYONS COURT CARE HOME.
Children and Adult Services,Central/Other,Debtors,930024,Debtor-free nursing care,07-Sep-2016,3175537-2331972,625.00,LYONS COURT CARE HOME.
Children and Adult Services,Central/Other,Debtors,930024,Debtor-free nursing care,07-Sep-2016,3175537-2331982,"1,219.21",LYONS COURT CARE HOME.
Children and Adult Services,Central/Other,Debtors,930024,Debtor-free nursing care,07-Sep-2016,3175537-2331988,"1,219.21",LYONS COURT CARE HOME.
Children and Adult Services,Central/Other,Debtors,930024,Debtor-free nursing care,07-Sep-2016,3175537-2331991,"1,219.21",LYONS COURT CARE HOME.
Children and Adult Services,Central/Other,Debtors,930024,Debtor-free nursing care,07-Sep-2016,3175537-2331994,"1,219.21",LYONS COURT CARE HOME.
Children and Adult Services,Central/Other,Debtors,930024,Debtor-free nursing care,07-Sep-2016,3175537-2331998,"1,219.21",LYONS COURT CARE HOME.
Children and Adult Services,Central/Other,Debtors,930024,Debtor-free nursing care,07-Sep-2016,3175537-2332000,"1,219.21",LYONS COURT CARE HOME.
Children and Adult Services,Central/Other,Debtors,930024,Debtor-free nursing care,07-Sep-2016,3175537-2332002,"1,219.21",LYONS COURT CARE HOME.
Children and Adult Services,Central/Other,Debtors,930024,Debtor-free nursing care,07-Sep-2016,3175537-2332004,"1,219.21",LYONS COURT CARE HOME.
Children and Adult Services,Central/Other,Debtors,930024,Debtor-free nursing care,07-Sep-2016,3175537-2332006,"1,219.21",LYONS COURT CARE HOME.
Children and Adult Services,Central/Other,Debtors,930024,Debtor-free nursing care,07-Sep-2016,3175537-2332009,"1,219.21",LYONS COURT CARE HOME.
Children and Adult Services,Central/Other,Debtors,930024,Debtor-free nursing care,07-Sep-2016,3175538-2330924,694.54,MARIA MALLABAND NURSING HOMES LTD.
Children and Adult Services,Central/Other,Debtors,930024,Debtor-free nursing care,07-Sep-2016,3175538-2330929,"1,219.21",MARIA MALLABAND NURSING HOMES LTD.
Children and Adult Services,Central/Other,Debtors,930024,Debtor-free nursing care,07-Sep-2016,3175538-2330931,625.00,MARIA MALLABAND NURSING HOMES LTD.
Children and Adult Services,Central/Other,Debtors,930024,Debtor-free nursing care,07-Sep-2016,3175538-2330935,625.00,MARIA MALLABAND NURSING HOMES LTD.
Children and Adult Services,Central/Other,Debtors,930024,Debtor-free nursing care,07-Sep-2016,3175538-2330939,"1,219.21",MARIA MALLABAND NURSING HOMES LTD.
Children and Adult Services,Central/Other,Debtors,930024,Debtor-free nursing care,07-Sep-2016,3175538-2330943,"1,219.21",MARIA MALLABAND NURSING HOMES LTD.
Children and Adult Services,Central/Other,Debtors,930024,Debtor-free nursing care,07-Sep-2016,3175538-2330948,616.53,MARIA MALLABAND NURSING HOMES LTD.
Children and Adult Services,Central/Other,Debtors,930024,Debtor-free nursing care,07-Sep-2016,3175538-2330954,"1,219.21",MARIA MALLABAND NURSING HOMES LTD.
Children and Adult Services,Central/Other,Debtors,930024,Debtor-free nursing care,07-Sep-2016,3175538-2330957,"1,219.21",MARIA MALLABAND NURSING HOMES LTD.
Children and Adult Services,Central/Other,Debtors,930024,Debtor-free nursing care,07-Sep-2016,3175543-2331902,625.00,MELBURY COURT.
Children and Adult Services,Central/Other,Debtors,930024,Debtor-free nursing care,07-Sep-2016,3175543-2331904,625.00,MELBURY COURT.
Children and Adult Services,Central/Other,Debtors,930024,Debtor-free nursing care,07-Sep-2016,3175543-2331906,625.00,MELBURY COURT.
Children and Adult Services,Central/Other,Debtors,930024,Debtor-free nursing care,07-Sep-2016,3175543-2331907,625.00,MELBURY COURT.
Children and Adult Services,Central/Other,Debtors,930024,Debtor-free nursing care,07-Sep-2016,3175543-2331914,625.00,MELBURY COURT.
Children and Adult Services,Central/Other,Debtors,930024,Debtor-free nursing care,07-Sep-2016,3175543-2331919,624.99,MELBURY COURT.
Children and Adult Services,Central/Other,Debtors,930024,Debtor-free nursing care,07-Sep-2016,3175543-2331925,625.00,MELBURY COURT.
Children and Adult Services,Central/Other,Debtors,930024,Debtor-free nursing care,07-Sep-2016,3175543-2331928,625.00,MELBURY COURT.
Children and Adult Services,Central/Other,Debtors,930024,Debtor-free nursing care,07-Sep-2016,3175543-2331930,625.00,MELBURY COURT.
Children and Adult Services,Central/Other,Debtors,930024,Debtor-free nursing care,07-Sep-2016,3175543-2331939,625.00,MELBURY COURT.
Children and Adult Services,Central/Other,Debtors,930024,Debtor-free nursing care,07-Sep-2016,3175543-2331950,625.00,MELBURY COURT.
Children and Adult Services,Central/Other,Debtors,930024,Debtor-free nursing care,07-Sep-2016,3175543-2331954,625.00,MELBURY COURT.
Children and Adult Services,Central/Other,Debtors,930024,Debtor-free nursing care,07-Sep-2016,3175543-2333418,513.39,MELBURY COURT.
Children and Adult Services,Central/Other,Debtors,930024,Debtor-free nursing care,07-Sep-2016,3175582-2329168,"1,219.08",OBJECT QUEST LTD.
Children and Adult Services,Central/Other,Debtors,930024,Debtor-free nursing care,07-Sep-2016,3175582-2329170,"1,219.08",OBJECT QUEST LTD.
Children and Adult Services,Central/Other,Debtors,930024,Debtor-free nursing care,07-Sep-2016,3175582-2329172,"1,219.08",OBJECT QUEST LTD.
Children and Adult Services,Central/Other,Debtors,930024,Debtor-free nursing care,07-Sep-2016,3175582-2329177,"1,219.08",OBJECT QUEST LTD.
Children and Adult Services,Central/Other,Debtors,930024,Debtor-free nursing care,07-Sep-2016,3175582-2329179,"1,219.08",OBJECT QUEST LTD.
Children and Adult Services,Central/Other,Debtors,930024,Debtor-free nursing care,07-Sep-2016,3175582-2329182,"1,219.08",OBJECT QUEST LTD.
Children and Adult Services,Central/Other,Debtors,930024,Debtor-free nursing care,07-Sep-2016,3175582-2329184,"1,219.08",OBJECT QUEST LTD.
Children and Adult Services,Central/Other,Debtors,930024,Debtor-free nursing care,07-Sep-2016,3175582-2329186,"1,219.08",OBJECT QUEST LTD.
Children and Adult Services,Central/Other,Debtors,930024,Debtor-free nursing care,07-Sep-2016,3175589-2329858,"1,219.21",PARKLANDS NURSING HOME.
Children and Adult Services,Central/Other,Debtors,930024,Debtor-free nursing care,07-Sep-2016,3175589-2329860,"1,219.21",PARKLANDS NURSING HOME.
Children and Adult Services,Central/Other,Debtors,930024,Debtor-free nursing care,07-Sep-2016,3175589-2329866,"1,219.21",PARKLANDS NURSING HOME.
Children and Adult Services,Central/Other,Debtors,930024,Debtor-free nursing care,07-Sep-2016,3175589-2329868,"1,219.21",PARKLANDS NURSING HOME.
Children and Adult Services,Central/Other,Debtors,930024,Debtor-free nursing care,07-Sep-2016,3175589-2329871,"1,219.21",PARKLANDS NURSING HOME.
Children and Adult Services,Central/Other,Debtors,930024,Debtor-free nursing care,07-Sep-2016,3175589-2329875,"1,219.21",PARKLANDS NURSING HOME.
Children and Adult Services,Central/Other,Debtors,930024,Debtor-free nursing care,07-Sep-2016,3175589-2329877,"1,219.21",PARKLANDS NURSING HOME.
Children and Adult Services,Central/Other,Debtors,930024,Debtor-free nursing care,07-Sep-2016,3175589-2329880,"1,219.21",PARKLANDS NURSING HOME.
Children and Adult Services,Central/Other,Debtors,930024,Debtor-free nursing care,07-Sep-2016,3175589-2329883,"1,219.21",PARKLANDS NURSING HOME.
Children and Adult Services,Central/Other,Debtors,930024,Debtor-free nursing care,07-Sep-2016,3175589-2329888,"1,219.21",PARKLANDS NURSING HOME.
Children and Adult Services,Central/Other,Debtors,930024,Debtor-free nursing care,07-Sep-2016,3175589-2329890,"1,219.21",PARKLANDS NURSING HOME.
Children and Adult Services,Central/Other,Debtors,930024,Debtor-free nursing care,07-Sep-2016,3175589-2329893,"1,219.21",PARKLANDS NURSING HOME.
Children and Adult Services,Central/Other,Debtors,930024,Debtor-free nursing care,07-Sep-2016,3175589-2329895,"1,219.21",PARKLANDS NURSING HOME.
Children and Adult Services,Central/Other,Debtors,930024,Debtor-free nursing care,07-Sep-2016,3175589-2329897,"1,219.21",PARKLANDS NURSING HOME.
Children and Adult Services,Central/Other,Debtors,930024,Debtor-free nursing care,07-Sep-2016,3175589-2329899,"1,219.21",PARKLANDS NURSING HOME.
Children and Adult Services,Central/Other,Debtors,930024,Debtor-free nursing care,07-Sep-2016,3175589-2329901,"1,219.21",PARKLANDS NURSING HOME.
Children and Adult Services,Central/Other,Debtors,930024,Debtor-free nursing care,07-Sep-2016,3175589-2329903,"1,219.21",PARKLANDS NURSING HOME.
Children and Adult Services,Central/Other,Debtors,930024,Debtor-free nursing care,07-Sep-2016,3175589-2329906,"1,219.21",PARKLANDS NURSING HOME.
Children and Adult Services,Central/Other,Debtors,930024,Debtor-free nursing care,07-Sep-2016,3175596-2329650,"1,219.21",PERFECT CARE LTD T/A BELMONT GRANGE CARE HOME.
Children and Adult Services,Central/Other,Debtors,930024,Debtor-free nursing care,07-Sep-2016,3175596-2329654,"1,219.21",PERFECT CARE LTD T/A BELMONT GRANGE CARE HOME.
Children and Adult Services,Central/Other,Debtors,930024,Debtor-free nursing care,07-Sep-2016,3175596-2329656,"1,219.21",PERFECT CARE LTD T/A BELMONT GRANGE CARE HOME.
Children and Adult Services,Central/Other,Debtors,930024,Debtor-free nursing care,07-Sep-2016,3175596-2329657,"1,219.21",PERFECT CARE LTD T/A BELMONT GRANGE CARE HOME.
Children and Adult Services,Central/Other,Debtors,930024,Debtor-free nursing care,07-Sep-2016,3175596-2333477,839.75,PERFECT CARE LTD T/A BELMONT GRANGE CARE HOME.
Children and Adult Services,Central/Other,Debtors,930024,Debtor-free nursing care,07-Sep-2016,3175602-2332791,"1,219.21",PREMIER CARE HOMES LTD.
Children and Adult Services,Central/Other,Debtors,930024,Debtor-free nursing care,07-Sep-2016,3175602-2332795,"1,219.21",PREMIER CARE HOMES LTD.
Children and Adult Services,Central/Other,Debtors,930024,Debtor-free nursing care,07-Sep-2016,3175602-2332796,"1,004.29",PREMIER CARE HOMES LTD.
Children and Adult Services,Central/Other,Debtors,930024,Debtor-free nursing care,07-Sep-2016,3175602-2332799,"1,219.21",PREMIER CARE HOMES LTD.
Children and Adult Services,Central/Other,Debtors,930024,Debtor-free nursing care,07-Sep-2016,3175602-2332801,"1,219.21",PREMIER CARE HOMES LTD.
Children and Adult Services,Central/Other,Debtors,930024,Debtor-free nursing care,07-Sep-2016,3175602-2332804,"1,219.21",PREMIER CARE HOMES LTD.
Children and Adult Services,Central/Other,Debtors,930024,Debtor-free nursing care,07-Sep-2016,3175602-2332805,625.00,PREMIER CARE HOMES LTD.
Children and Adult Services,Central/Other,Debtors,930024,Debtor-free nursing care,07-Sep-2016,3175602-2332808,"1,219.21",PREMIER CARE HOMES LTD.
Children and Adult Services,Central/Other,Debtors,930024,Debtor-free nursing care,07-Sep-2016,3175602-2332811,"1,219.21",PREMIER CARE HOMES LTD.
Children and Adult Services,Central/Other,Debtors,930024,Debtor-free nursing care,07-Sep-2016,3175602-2332812,"1,219.21",PREMIER CARE HOMES LTD.
Children and Adult Services,Central/Other,Debtors,930024,Debtor-free nursing care,07-Sep-2016,3175602-2332820,"1,219.21",PREMIER CARE HOMES LTD.
Children and Adult Services,Central/Other,Debtors,930024,Debtor-free nursing care,07-Sep-2016,3175602-2332823,"1,219.21",PREMIER CARE HOMES LTD.
Children and Adult Services,Central/Other,Debtors,930024,Debtor-free nursing care,07-Sep-2016,3175602-2332826,"1,219.21",PREMIER CARE HOMES LTD.
Children and Adult Services,Central/Other,Debtors,930024,Debtor-free nursing care,07-Sep-2016,3175602-2332827,"1,219.21",PREMIER CARE HOMES LTD.
Children and Adult Services,Central/Other,Debtors,930024,Debtor-free nursing care,07-Sep-2016,3175602-2332839,"1,219.21",PREMIER CARE HOMES LTD.
Children and Adult Services,Central/Other,Debtors,930024,Debtor-free nursing care,07-Sep-2016,3175602-2332840,"1,219.21",PREMIER CARE HOMES LTD.
Children and Adult Services,Central/Other,Debtors,930024,Debtor-free nursing care,07-Sep-2016,3175602-2333545,594.21,PREMIER CARE HOMES LTD.
Children and Adult Services,Central/Other,Debtors,930024,Debtor-free nursing care,07-Sep-2016,3175608-2328827,"1,219.21",RAYSON HOMES LTD.
Children and Adult Services,Central/Other,Debtors,930024,Debtor-free nursing care,07-Sep-2016,3175608-2328829,"1,219.21",RAYSON HOMES LTD.
Children and Adult Services,Central/Other,Debtors,930024,Debtor-free nursing care,07-Sep-2016,3175608-2328831,"1,219.21",RAYSON HOMES LTD.
Children and Adult Services,Central/Other,Debtors,930024,Debtor-free nursing care,07-Sep-2016,3175608-2328834,"1,219.21",RAYSON HOMES LTD.
Children and Adult Services,Central/Other,Debtors,930024,Debtor-free nursing care,07-Sep-2016,3175608-2328836,"1,219.21",RAYSON HOMES LTD.
Children and Adult Services,Central/Other,Debtors,930024,Debtor-free nursing care,07-Sep-2016,3175608-2328837,"1,219.21",RAYSON HOMES LTD.
Children and Adult Services,Central/Other,Debtors,930024,Debtor-free nursing care,07-Sep-2016,3175608-2328839,"1,219.21",RAYSON HOMES LTD.
Children and Adult Services,Central/Other,Debtors,930024,Debtor-free nursing care,07-Sep-2016,3175608-2328841,"1,219.21",RAYSON HOMES LTD.
Children and Adult Services,Central/Other,Debtors,930024,Debtor-free nursing care,07-Sep-2016,3175608-2328843,"1,219.21",RAYSON HOMES LTD.
Children and Adult Services,Central/Other,Debtors,930024,Debtor-free nursing care,07-Sep-2016,3175610-2329578,"1,219.21",REDWELL HILLS.
Children and Adult Services,Central/Other,Debtors,930024,Debtor-free nursing care,07-Sep-2016,3175610-2329586,"1,048.54",REDWELL HILLS.
Children and Adult Services,Central/Other,Debtors,930024,Debtor-free nursing care,07-Sep-2016,3175610-2329588,"1,219.21",REDWELL HILLS.
Children and Adult Services,Central/Other,Debtors,930024,Debtor-free nursing care,07-Sep-2016,3175610-2329591,820.96,REDWELL HILLS.
Children and Adult Services,Central/Other,Debtors,930024,Debtor-free nursing care,07-Sep-2016,3175610-2329595,"1,219.21",REDWELL HILLS.
Children and Adult Services,Central/Other,Debtors,930024,Debtor-free nursing care,07-Sep-2016,3175610-2329604,"1,219.21",REDWELL HILLS.
Children and Adult Services,Central/Other,Debtors,930024,Debtor-free nursing care,07-Sep-2016,3175610-2329608,"1,219.21",REDWELL HILLS.
Children and Adult Services,Central/Other,Debtors,930024,Debtor-free nursing care,07-Sep-2016,3175610-2329610,"1,219.21",REDWELL HILLS.
Children and Adult Services,Central/Other,Debtors,930024,Debtor-free nursing care,07-Sep-2016,3175610-2329613,"1,219.21",REDWELL HILLS.
Children and Adult Services,Central/Other,Debtors,930024,Debtor-free nursing care,07-Sep-2016,3175611-2331456,625.00,REDWORTH HOUSE.
Children and Adult Services,Central/Other,Debtors,930024,Debtor-free nursing care,07-Sep-2016,3175611-2331461,625.00,REDWORTH HOUSE.
Children and Adult Services,Central/Other,Debtors,930024,Debtor-free nursing care,07-Sep-2016,3175611-2331468,625.00,REDWORTH HOUSE.
Children and Adult Services,Central/Other,Debtors,930024,Debtor-free nursing care,07-Sep-2016,3175611-2331471,625.00,REDWORTH HOUSE.
Children and Adult Services,Central/Other,Debtors,930024,Debtor-free nursing care,07-Sep-2016,3175611-2331483,625.00,REDWORTH HOUSE.
Children and Adult Services,Central/Other,Debtors,930024,Debtor-free nursing care,07-Sep-2016,3175611-2331485,625.00,REDWORTH HOUSE.
Children and Adult Services,Central/Other,Debtors,930024,Debtor-free nursing care,07-Sep-2016,3175611-2331487,625.00,REDWORTH HOUSE.
Children and Adult Services,Central/Other,Debtors,930024,Debtor-free nursing care,07-Sep-2016,3175611-2331488,625.00,REDWORTH HOUSE.
Children and Adult Services,Central/Other,Debtors,930024,Debtor-free nursing care,07-Sep-2016,3175611-2331491,625.00,REDWORTH HOUSE.
Children and Adult Services,Central/Other,Debtors,930024,Debtor-free nursing care,07-Sep-2016,3175612-2330474,625.00,RICHMOND COURT.
Children and Adult Services,Central/Other,Debtors,930024,Debtor-free nursing care,07-Sep-2016,3175612-2330476,625.00,RICHMOND COURT.
Children and Adult Services,Central/Other,Debtors,930024,Debtor-free nursing care,07-Sep-2016,3175612-2330479,625.00,RICHMOND COURT.
Children and Adult Services,Central/Other,Debtors,930024,Debtor-free nursing care,07-Sep-2016,3175612-2330487,625.00,RICHMOND COURT.
Children and Adult Services,Central/Other,Debtors,930024,Debtor-free nursing care,07-Sep-2016,3175612-2330496,625.00,RICHMOND COURT.
Children and Adult Services,Central/Other,Debtors,930024,Debtor-free nursing care,07-Sep-2016,3175612-2330499,625.00,RICHMOND COURT.
Children and Adult Services,Central/Other,Debtors,930024,Debtor-free nursing care,07-Sep-2016,3175612-2330505,625.00,RICHMOND COURT.
Children and Adult Services,Central/Other,Debtors,930024,Debtor-free nursing care,07-Sep-2016,3175612-2330508,625.00,RICHMOND COURT.
Children and Adult Services,Central/Other,Debtors,930024,Debtor-free nursing care,07-Sep-2016,3175621-2331528,625.00,SANDRINGHAM CARE HOME.
Children and Adult Services,Central/Other,Debtors,930024,Debtor-free nursing care,07-Sep-2016,3175621-2331529,625.00,SANDRINGHAM CARE HOME.
Children and Adult Services,Central/Other,Debtors,930024,Debtor-free nursing care,07-Sep-2016,3175621-2331531,625.00,SANDRINGHAM CARE HOME.
Children and Adult Services,Central/Other,Debtors,930024,Debtor-free nursing care,07-Sep-2016,3175621-2331534,625.00,SANDRINGHAM CARE HOME.
Children and Adult Services,Central/Other,Debtors,930024,Debtor-free nursing care,07-Sep-2016,3175621-2331536,625.00,SANDRINGHAM CARE HOME.
Children and Adult Services,Central/Other,Debtors,930024,Debtor-free nursing care,07-Sep-2016,3175621-2331538,625.00,SANDRINGHAM CARE HOME.
Children and Adult Services,Central/Other,Debtors,930024,Debtor-free nursing care,07-Sep-2016,3175621-2331540,625.00,SANDRINGHAM CARE HOME.
Children and Adult Services,Central/Other,Debtors,930024,Debtor-free nursing care,07-Sep-2016,3175621-2331543,625.00,SANDRINGHAM CARE HOME.
Children and Adult Services,Central/Other,Debtors,930024,Debtor-free nursing care,07-Sep-2016,3175621-2331553,625.00,SANDRINGHAM CARE HOME.
Children and Adult Services,Central/Other,Debtors,930024,Debtor-free nursing care,07-Sep-2016,3175621-2331556,625.00,SANDRINGHAM CARE HOME.
Children and Adult Services,Central/Other,Debtors,930024,Debtor-free nursing care,07-Sep-2016,3175621-2331560,625.00,SANDRINGHAM CARE HOME.
Children and Adult Services,Central/Other,Debtors,930024,Debtor-free nursing care,07-Sep-2016,3175621-2331568,625.00,SANDRINGHAM CARE HOME.
Children and Adult Services,Central/Other,Debtors,930024,Debtor-free nursing care,07-Sep-2016,3175621-2331570,625.00,SANDRINGHAM CARE HOME.
Children and Adult Services,Central/Other,Debtors,930024,Debtor-free nursing care,07-Sep-2016,3175621-2331576,625.00,SANDRINGHAM CARE HOME.
Children and Adult Services,Central/Other,Debtors,930024,Debtor-free nursing care,07-Sep-2016,3175621-2331577,625.00,SANDRINGHAM CARE HOME.
Children and Adult Services,Central/Other,Debtors,930024,Debtor-free nursing care,07-Sep-2016,3175621-2331587,625.00,SANDRINGHAM CARE HOME.
Children and Adult Services,Central/Other,Debtors,930024,Debtor-free nursing care,07-Sep-2016,3175621-2331591,625.00,SANDRINGHAM CARE HOME.
Children and Adult Services,Central/Other,Debtors,930024,Debtor-free nursing care,07-Sep-2016,3175621-2331597,625.00,SANDRINGHAM CARE HOME.
Children and Adult Services,Central/Other,Debtors,930024,Debtor-free nursing care,07-Sep-2016,3175621-2331598,625.00,SANDRINGHAM CARE HOME.
Children and Adult Services,Central/Other,Debtors,930024,Debtor-free nursing care,07-Sep-2016,3175621-2331600,625.00,SANDRINGHAM CARE HOME.
Children and Adult Services,Central/Other,Debtors,930024,Debtor-free nursing care,07-Sep-2016,3175621-2331602,625.00,SANDRINGHAM CARE HOME.
Children and Adult Services,Central/Other,Debtors,930024,Debtor-free nursing care,07-Sep-2016,3175621-2331606,625.00,SANDRINGHAM CARE HOME.
Children and Adult Services,Central/Other,Debtors,930024,Debtor-free nursing care,07-Sep-2016,3175636-2331728,"1,219.21",ST AIDENS COTTAGE.
Children and Adult Services,Central/Other,Debtors,930024,Debtor-free nursing care,07-Sep-2016,3175636-2331731,625.00,ST AIDENS COTTAGE.
Children and Adult Services,Central/Other,Debtors,930024,Debtor-free nursing care,07-Sep-2016,3175637-2329331,700.86,ST ANDREWS MPS LTD.
Children and Adult Services,Central/Other,Debtors,930024,Debtor-free nursing care,07-Sep-2016,3175637-2329338,915.78,ST ANDREWS MPS LTD.
Children and Adult Services,Central/Other,Debtors,930024,Debtor-free nursing care,07-Sep-2016,3175637-2329341,"1,219.21",ST ANDREWS MPS LTD.
Children and Adult Services,Central/Other,Debtors,930024,Debtor-free nursing care,07-Sep-2016,3175637-2329344,"1,219.21",ST ANDREWS MPS LTD.
Children and Adult Services,Central/Other,Debtors,930024,Debtor-free nursing care,07-Sep-2016,3175637-2329346,"1,219.21",ST ANDREWS MPS LTD.
Children and Adult Services,Central/Other,Debtors,930024,Debtor-free nursing care,07-Sep-2016,3175637-2329351,"1,219.21",ST ANDREWS MPS LTD.
Children and Adult Services,Central/Other,Debtors,930024,Debtor-free nursing care,07-Sep-2016,3175637-2329353,"1,219.21",ST ANDREWS MPS LTD.
Children and Adult Services,Central/Other,Debtors,930024,Debtor-free nursing care,07-Sep-2016,3175639-2328949,909.46,ST HELENS NURSING HOME.
Children and Adult Services,Central/Other,Debtors,930024,Debtor-free nursing care,07-Sep-2016,3175639-2328965,"1,219.21",ST HELENS NURSING HOME.
Children and Adult Services,Central/Other,Debtors,930024,Debtor-free nursing care,07-Sep-2016,3175639-2328967,"1,219.21",ST HELENS NURSING HOME.
Children and Adult Services,Central/Other,Debtors,930024,Debtor-free nursing care,07-Sep-2016,3175639-2328968,"1,219.21",ST HELENS NURSING HOME.
Children and Adult Services,Central/Other,Debtors,930024,Debtor-free nursing care,07-Sep-2016,3175639-2328974,"1,219.21",ST HELENS NURSING HOME.
Children and Adult Services,Central/Other,Debtors,930024,Debtor-free nursing care,07-Sep-2016,3175639-2333081,571.89,ST HELENS NURSING HOME.
Children and Adult Services,Central/Other,Debtors,930024,Debtor-free nursing care,07-Sep-2016,3175641-2330870,"1,219.21",ST MARGARETS NURSING HOME.
Children and Adult Services,Central/Other,Debtors,930024,Debtor-free nursing care,07-Sep-2016,3175641-2330872,"1,093.75",ST MARGARETS NURSING HOME.
Children and Adult Services,Central/Other,Debtors,930024,Debtor-free nursing care,07-Sep-2016,3175641-2330873,625.00,ST MARGARETS NURSING HOME.
Children and Adult Services,Central/Other,Debtors,930024,Debtor-free nursing care,07-Sep-2016,3175641-2330877,"1,219.21",ST MARGARETS NURSING HOME.
Children and Adult Services,Central/Other,Debtors,930024,Debtor-free nursing care,07-Sep-2016,3175641-2330879,625.00,ST MARGARETS NURSING HOME.
Children and Adult Services,Central/Other,Debtors,930024,Debtor-free nursing care,07-Sep-2016,3175641-2330882,625.00,ST MARGARETS NURSING HOME.
Children and Adult Services,Central/Other,Debtors,930024,Debtor-free nursing care,07-Sep-2016,3175641-2330884,535.71,ST MARGARETS NURSING HOME.
Children and Adult Services,Central/Other,Debtors,930024,Debtor-free nursing care,07-Sep-2016,3175641-2330886,"1,219.21",ST MARGARETS NURSING HOME.
Children and Adult Services,Central/Other,Debtors,930024,Debtor-free nursing care,07-Sep-2016,3175641-2330888,"1,219.21",ST MARGARETS NURSING HOME.
Children and Adult Services,Central/Other,Debtors,930024,Debtor-free nursing care,07-Sep-2016,3175641-2330891,"1,219.21",ST MARGARETS NURSING HOME.
Children and Adult Services,Central/Other,Debtors,930024,Debtor-free nursing care,07-Sep-2016,3175641-2330899,"1,219.21",ST MARGARETS NURSING HOME.
Children and Adult Services,Central/Other,Debtors,930024,Debtor-free nursing care,07-Sep-2016,3175641-2330904,"1,219.21",ST MARGARETS NURSING HOME.
Children and Adult Services,Central/Other,Debtors,930024,Debtor-free nursing care,07-Sep-2016,3175641-2330905,"1,219.21",ST MARGARETS NURSING HOME.
Children and Adult Services,Central/Other,Debtors,930024,Debtor-free nursing care,07-Sep-2016,3175641-2330907,"1,219.21",ST MARGARETS NURSING HOME.
Children and Adult Services,Central/Other,Debtors,930024,Debtor-free nursing care,07-Sep-2016,3175641-2330911,"1,219.21",ST MARGARETS NURSING HOME.
Children and Adult Services,Central/Other,Debtors,930024,Debtor-free nursing care,07-Sep-2016,3175641-2330915,"1,219.21",ST MARGARETS NURSING HOME.
Children and Adult Services,Central/Other,Debtors,930024,Debtor-free nursing care,07-Sep-2016,3175641-2333578,"4,548.21",ST MARGARETS NURSING HOME.
Children and Adult Services,Central/Other,Debtors,930024,Debtor-free nursing care,07-Sep-2016,3175642-2333575,594.21,ST MARKS COURT.
Children and Adult Services,Central/Other,Debtors,930024,Debtor-free nursing care,07-Sep-2016,3175645-2329719,"1,219.21",ST MARYS NURSING HOME.
Children and Adult Services,Central/Other,Debtors,930024,Debtor-free nursing care,07-Sep-2016,3175645-2329720,"1,219.21",ST MARYS NURSING HOME.
Children and Adult Services,Central/Other,Debtors,930024,Debtor-free nursing care,07-Sep-2016,3175645-2329727,"1,219.21",ST MARYS NURSING HOME.
Children and Adult Services,Central/Other,Debtors,930024,Debtor-free nursing care,07-Sep-2016,3175645-2329729,"1,219.21",ST MARYS NURSING HOME.
Children and Adult Services,Central/Other,Debtors,930024,Debtor-free nursing care,07-Sep-2016,3175645-2329733,"1,219.21",ST MARYS NURSING HOME.
Children and Adult Services,Central/Other,Debtors,930024,Debtor-free nursing care,07-Sep-2016,3175645-2329736,"1,219.21",ST MARYS NURSING HOME.
Children and Adult Services,Central/Other,Debtors,930024,Debtor-free nursing care,07-Sep-2016,3175645-2329738,"1,219.21",ST MARYS NURSING HOME.
Children and Adult Services,Central/Other,Debtors,930024,Debtor-free nursing care,07-Sep-2016,3175647-2331654,"1,219.21",STANLEY PARK CARE CENTRE.
Children and Adult Services,Central/Other,Debtors,930024,Debtor-free nursing care,07-Sep-2016,3175647-2331656,625.00,STANLEY PARK CARE CENTRE.
Children and Adult Services,Central/Other,Debtors,930024,Debtor-free nursing care,07-Sep-2016,3175647-2331666,"1,219.21",STANLEY PARK CARE CENTRE.
Children and Adult Services,Central/Other,Debtors,930024,Debtor-free nursing care,07-Sep-2016,3175647-2331670,"1,219.21",STANLEY PARK CARE CENTRE.
Children and Adult Services,Central/Other,Debtors,930024,Debtor-free nursing care,07-Sep-2016,3175647-2331671,"1,099.11",STANLEY PARK CARE CENTRE.
Children and Adult Services,Central/Other,Debtors,930024,Debtor-free nursing care,07-Sep-2016,3175647-2331675,"1,219.21",STANLEY PARK CARE CENTRE.
Children and Adult Services,Central/Other,Debtors,930024,Debtor-free nursing care,07-Sep-2016,3175647-2331680,"1,219.21",STANLEY PARK CARE CENTRE.
Children and Adult Services,Central/Other,Debtors,930024,Debtor-free nursing care,07-Sep-2016,3175647-2331687,"1,219.21",STANLEY PARK CARE CENTRE.
Children and Adult Services,Central/Other,Debtors,930024,Debtor-free nursing care,07-Sep-2016,3175647-2331690,"1,219.21",STANLEY PARK CARE CENTRE.
Children and Adult Services,Central/Other,Debtors,930024,Debtor-free nursing care,07-Sep-2016,3175647-2331694,"1,219.21",STANLEY PARK CARE CENTRE.
Children and Adult Services,Central/Other,Debtors,930024,Debtor-free nursing care,07-Sep-2016,3175647-2331696,"1,219.21",STANLEY PARK CARE CENTRE.
Children and Adult Services,Central/Other,Debtors,930024,Debtor-free nursing care,07-Sep-2016,3175647-2331708,"1,219.21",STANLEY PARK CARE CENTRE.
Children and Adult Services,Central/Other,Debtors,930024,Debtor-free nursing care,07-Sep-2016,3175647-2331714,"1,219.21",STANLEY PARK CARE CENTRE.
Children and Adult Services,Central/Other,Debtors,930024,Debtor-free nursing care,07-Sep-2016,3175647-2331719,"1,219.21",STANLEY PARK CARE CENTRE.
Children and Adult Services,Central/Other,Debtors,930024,Debtor-free nursing care,07-Sep-2016,3175647-2333261,"1,250.00",STANLEY PARK CARE CENTRE.
Children and Adult Services,Central/Other,Debtors,930024,Debtor-free nursing care,07-Sep-2016,3175653-2332239,"1,219.21",TAMARIS HEALTHCARE LTD.
Children and Adult Services,Central/Other,Debtors,930024,Debtor-free nursing care,07-Sep-2016,3175653-2332243,"1,219.21",TAMARIS HEALTHCARE LTD.
Children and Adult Services,Central/Other,Debtors,930024,Debtor-free nursing care,07-Sep-2016,3175653-2332248,"1,219.21",TAMARIS HEALTHCARE LTD.
Children and Adult Services,Central/Other,Debtors,930024,Debtor-free nursing care,07-Sep-2016,3175653-2332252,"1,219.17",TAMARIS HEALTHCARE LTD.
Children and Adult Services,Central/Other,Debtors,930024,Debtor-free nursing care,07-Sep-2016,3175653-2332255,"1,219.21",TAMARIS HEALTHCARE LTD.
Children and Adult Services,Central/Other,Debtors,930024,Debtor-free nursing care,07-Sep-2016,3175653-2332259,"1,219.21",TAMARIS HEALTHCARE LTD.
Children and Adult Services,Central/Other,Debtors,930024,Debtor-free nursing care,07-Sep-2016,3175653-2332261,"1,219.21",TAMARIS HEALTHCARE LTD.
Children and Adult Services,Central/Other,Debtors,930024,Debtor-free nursing care,07-Sep-2016,3175653-2332264,"1,219.21",TAMARIS HEALTHCARE LTD.
Children and Adult Services,Central/Other,Debtors,930024,Debtor-free nursing care,07-Sep-2016,3175656-2331023,625.00,TAMARIS HEALTHCARE LTD.
Children and Adult Services,Central/Other,Debtors,930024,Debtor-free nursing care,07-Sep-2016,3175656-2331031,"1,219.21",TAMARIS HEALTHCARE LTD.
Children and Adult Services,Central/Other,Debtors,930024,Debtor-free nursing care,07-Sep-2016,3175656-2331039,"1,219.21",TAMARIS HEALTHCARE LTD.
Children and Adult Services,Central/Other,Debtors,930024,Debtor-free nursing care,07-Sep-2016,3175656-2331051,"1,219.21",TAMARIS HEALTHCARE LTD.
Children and Adult Services,Central/Other,Debtors,930024,Debtor-free nursing care,07-Sep-2016,3175656-2333509,594.21,TAMARIS HEALTHCARE LTD.
Children and Adult Services,Central/Other,Debtors,930024,Debtor-free nursing care,07-Sep-2016,3175656-2333516,892.85,TAMARIS HEALTHCARE LTD.
Children and Adult Services,Central/Other,Debtors,930024,Debtor-free nursing care,07-Sep-2016,3175657-2330192,"1,219.21",TAMARIS HEALTHCARE LTD.
Children and Adult Services,Central/Other,Debtors,930024,Debtor-free nursing care,07-Sep-2016,3175657-2330194,"1,219.21",TAMARIS HEALTHCARE LTD.
Children and Adult Services,Central/Other,Debtors,930024,Debtor-free nursing care,07-Sep-2016,3175657-2330196,"1,219.21",TAMARIS HEALTHCARE LTD.
Children and Adult Services,Central/Other,Debtors,930024,Debtor-free nursing care,07-Sep-2016,3175657-2330201,"1,149.67",TAMARIS HEALTHCARE LTD.
Children and Adult Services,Central/Other,Debtors,930024,Debtor-free nursing care,07-Sep-2016,3175657-2330202,"1,219.21",TAMARIS HEALTHCARE LTD.
Children and Adult Services,Central/Other,Debtors,930024,Debtor-free nursing care,07-Sep-2016,3175657-2330204,656.61,TAMARIS HEALTHCARE LTD.
Children and Adult Services,Central/Other,Debtors,930024,Debtor-free nursing care,07-Sep-2016,3175657-2330205,"1,219.21",TAMARIS HEALTHCARE LTD.
Children and Adult Services,Central/Other,Debtors,930024,Debtor-free nursing care,07-Sep-2016,3175657-2330211,"1,004.29",TAMARIS HEALTHCARE LTD.
Children and Adult Services,Central/Other,Debtors,930024,Debtor-free nursing care,07-Sep-2016,3175657-2330224,"1,219.21",TAMARIS HEALTHCARE LTD.
Children and Adult Services,Central/Other,Debtors,930024,Debtor-free nursing care,07-Sep-2016,3175657-2330226,"1,219.21",TAMARIS HEALTHCARE LTD.
Children and Adult Services,Central/Other,Debtors,930024,Debtor-free nursing care,07-Sep-2016,3175657-2330231,"1,219.21",TAMARIS HEALTHCARE LTD.
Children and Adult Services,Central/Other,Debtors,930024,Debtor-free nursing care,07-Sep-2016,3175657-2330234,"1,219.21",TAMARIS HEALTHCARE LTD.
Children and Adult Services,Central/Other,Debtors,930024,Debtor-free nursing care,07-Sep-2016,3175657-2333473,594.21,TAMARIS HEALTHCARE LTD.
Children and Adult Services,Central/Other,Debtors,930024,Debtor-free nursing care,07-Sep-2016,3175657-2333475,848.68,TAMARIS HEALTHCARE LTD.
Children and Adult Services,Central/Other,Debtors,930024,Debtor-free nursing care,07-Sep-2016,3175658-2330740,625.00,TAMARIS HEALTHCARE LTD.
Children and Adult Services,Central/Other,Debtors,930024,Debtor-free nursing care,07-Sep-2016,3175658-2330745,"1,219.21",TAMARIS HEALTHCARE LTD.
Children and Adult Services,Central/Other,Debtors,930024,Debtor-free nursing care,07-Sep-2016,3175658-2330746,"1,219.21",TAMARIS HEALTHCARE LTD.
Children and Adult Services,Central/Other,Debtors,930024,Debtor-free nursing care,07-Sep-2016,3175658-2330754,"1,035.80",TAMARIS HEALTHCARE LTD.
Children and Adult Services,Central/Other,Debtors,930024,Debtor-free nursing care,07-Sep-2016,3175658-2330756,"1,219.21",TAMARIS HEALTHCARE LTD.
Children and Adult Services,Central/Other,Debtors,930024,Debtor-free nursing care,07-Sep-2016,3175658-2330761,"1,219.21",TAMARIS HEALTHCARE LTD.
Children and Adult Services,Central/Other,Debtors,930024,Debtor-free nursing care,07-Sep-2016,3175658-2330766,"1,219.21",TAMARIS HEALTHCARE LTD.
Children and Adult Services,Central/Other,Debtors,930024,Debtor-free nursing care,07-Sep-2016,3175658-2330768,"1,219.21",TAMARIS HEALTHCARE LTD.
Children and Adult Services,Central/Other,Debtors,930024,Debtor-free nursing care,07-Sep-2016,3175658-2330770,"1,219.21",TAMARIS HEALTHCARE LTD.
Children and Adult Services,Central/Other,Debtors,930024,Debtor-free nursing care,07-Sep-2016,3175658-2330776,"1,219.21",TAMARIS HEALTHCARE LTD.
Children and Adult Services,Central/Other,Debtors,930024,Debtor-free nursing care,07-Sep-2016,3175658-2330778,"1,219.21",TAMARIS HEALTHCARE LTD.
Children and Adult Services,Central/Other,Debtors,930024,Debtor-free nursing care,07-Sep-2016,3175658-2330781,"1,219.21",TAMARIS HEALTHCARE LTD.
Children and Adult Services,Central/Other,Debtors,930024,Debtor-free nursing care,07-Sep-2016,3175658-2330785,"1,219.21",TAMARIS HEALTHCARE LTD.
Children and Adult Services,Central/Other,Debtors,930024,Debtor-free nursing care,07-Sep-2016,3175658-2330787,"1,219.21",TAMARIS HEALTHCARE LTD.
Children and Adult Services,Central/Other,Debtors,930024,Debtor-free nursing care,07-Sep-2016,3175658-2330791,"1,219.21",TAMARIS HEALTHCARE LTD.
Children and Adult Services,Central/Other,Debtors,930024,Debtor-free nursing care,07-Sep-2016,3175658-2333116,"1,219.21",TAMARIS HEALTHCARE LTD.
Children and Adult Services,Central/Other,Debtors,930024,Debtor-free nursing care,07-Sep-2016,3175659-2330418,802.00,TAMARIS HEALTHCARE LTD.
Children and Adult Services,Central/Other,Debtors,930024,Debtor-free nursing care,07-Sep-2016,3175659-2330427,"1,219.21",TAMARIS HEALTHCARE LTD.
Children and Adult Services,Central/Other,Debtors,930024,Debtor-free nursing care,07-Sep-2016,3175659-2330429,"1,219.21",TAMARIS HEALTHCARE LTD.
Children and Adult Services,Central/Other,Debtors,930024,Debtor-free nursing care,07-Sep-2016,3175659-2330434,"1,219.21",TAMARIS HEALTHCARE LTD.
Children and Adult Services,Central/Other,Debtors,930024,Debtor-free nursing care,07-Sep-2016,3175659-2330436,"1,219.21",TAMARIS HEALTHCARE LTD.
Children and Adult Services,Central/Other,Debtors,930024,Debtor-free nursing care,07-Sep-2016,3175659-2330438,"1,219.21",TAMARIS HEALTHCARE LTD.
Children and Adult Services,Central/Other,Debtors,930024,Debtor-free nursing care,07-Sep-2016,3175659-2330440,"1,219.21",TAMARIS HEALTHCARE LTD.
Children and Adult Services,Central/Other,Debtors,930024,Debtor-free nursing care,07-Sep-2016,3175659-2330442,"1,219.21",TAMARIS HEALTHCARE LTD.
Children and Adult Services,Central/Other,Debtors,930024,Debtor-free nursing care,07-Sep-2016,3175659-2330445,"1,219.21",TAMARIS HEALTHCARE LTD.
Children and Adult Services,Central/Other,Debtors,930024,Debtor-free nursing care,07-Sep-2016,3175659-2333329,575.25,TAMARIS HEALTHCARE LTD.
Children and Adult Services,Central/Other,Debtors,930024,Debtor-free nursing care,07-Sep-2016,3175661-2332372,"1,219.21",TAMARIS HEALTHCARE LTD.
Children and Adult Services,Central/Other,Debtors,930024,Debtor-free nursing care,07-Sep-2016,3175661-2332378,580.36,TAMARIS HEALTHCARE LTD.
Children and Adult Services,Central/Other,Debtors,930024,Debtor-free nursing care,07-Sep-2016,3175661-2332381,"1,219.21",TAMARIS HEALTHCARE LTD.
Children and Adult Services,Central/Other,Debtors,930024,Debtor-free nursing care,07-Sep-2016,3175661-2332383,625.00,TAMARIS HEALTHCARE LTD.
Children and Adult Services,Central/Other,Debtors,930024,Debtor-free nursing care,07-Sep-2016,3175661-2332389,"1,219.21",TAMARIS HEALTHCARE LTD.
Children and Adult Services,Central/Other,Debtors,930024,Debtor-free nursing care,07-Sep-2016,3175661-2332392,732.46,TAMARIS HEALTHCARE LTD.
Children and Adult Services,Central/Other,Debtors,930024,Debtor-free nursing care,07-Sep-2016,3175661-2332394,"1,219.21",TAMARIS HEALTHCARE LTD.
Children and Adult Services,Central/Other,Debtors,930024,Debtor-free nursing care,07-Sep-2016,3175661-2332399,"1,219.21",TAMARIS HEALTHCARE LTD.
Children and Adult Services,Central/Other,Debtors,930024,Debtor-free nursing care,07-Sep-2016,3175661-2332406,"1,219.21",TAMARIS HEALTHCARE LTD.
Children and Adult Services,Central/Other,Debtors,930024,Debtor-free nursing care,07-Sep-2016,3175661-2332408,"1,219.21",TAMARIS HEALTHCARE LTD.
Children and Adult Services,Central/Other,Debtors,930024,Debtor-free nursing care,07-Sep-2016,3175661-2332411,"1,219.21",TAMARIS HEALTHCARE LTD.
Children and Adult Services,Central/Other,Debtors,930024,Debtor-free nursing care,07-Sep-2016,3175661-2332416,"1,219.21",TAMARIS HEALTHCARE LTD.
Children and Adult Services,Central/Other,Debtors,930024,Debtor-free nursing care,07-Sep-2016,3175661-2332420,"1,219.21",TAMARIS HEALTHCARE LTD.
Children and Adult Services,Central/Other,Debtors,930024,Debtor-free nursing care,07-Sep-2016,3175661-2332424,"1,219.21",TAMARIS HEALTHCARE LTD.
Children and Adult Services,Central/Other,Debtors,930024,Debtor-free nursing care,07-Sep-2016,3175661-2333274,625.00,TAMARIS HEALTHCARE LTD.
Children and Adult Services,Central/Other,Debtors,930024,Debtor-free nursing care,07-Sep-2016,3175661-2333279,625.00,TAMARIS HEALTHCARE LTD.
Children and Adult Services,Central/Other,Debtors,930024,Debtor-free nursing care,07-Sep-2016,3175663-2329023,625.00,TENLANDS NURSING HOME.
Children and Adult Services,Central/Other,Debtors,930024,Debtor-free nursing care,07-Sep-2016,3175663-2329027,625.00,TENLANDS NURSING HOME.
Children and Adult Services,Central/Other,Debtors,930024,Debtor-free nursing care,07-Sep-2016,3175663-2329030,625.00,TENLANDS NURSING HOME.
Children and Adult Services,Central/Other,Debtors,930024,Debtor-free nursing care,07-Sep-2016,3175663-2329034,625.00,TENLANDS NURSING HOME.
Children and Adult Services,Central/Other,Debtors,930024,Debtor-free nursing care,07-Sep-2016,3175663-2329038,625.00,TENLANDS NURSING HOME.
Children and Adult Services,Central/Other,Debtors,930024,Debtor-free nursing care,07-Sep-2016,3175663-2329040,625.00,TENLANDS NURSING HOME.
Children and Adult Services,Central/Other,Debtors,930024,Debtor-free nursing care,07-Sep-2016,3175663-2329043,625.00,TENLANDS NURSING HOME.
Children and Adult Services,Central/Other,Debtors,930024,Debtor-free nursing care,07-Sep-2016,3175663-2329049,625.00,TENLANDS NURSING HOME.
Children and Adult Services,Central/Other,Debtors,930024,Debtor-free nursing care,07-Sep-2016,3175663-2329051,625.00,TENLANDS NURSING HOME.
Children and Adult Services,Central/Other,Debtors,930024,Debtor-free nursing care,07-Sep-2016,3175663-2329052,625.00,TENLANDS NURSING HOME.
Children and Adult Services,Central/Other,Debtors,930024,Debtor-free nursing care,07-Sep-2016,3175663-2329054,625.00,TENLANDS NURSING HOME.
Children and Adult Services,Central/Other,Debtors,930024,Debtor-free nursing care,07-Sep-2016,3175663-2329056,625.00,TENLANDS NURSING HOME.
Children and Adult Services,Central/Other,Debtors,930024,Debtor-free nursing care,07-Sep-2016,3175663-2329058,625.00,TENLANDS NURSING HOME.
Children and Adult Services,Central/Other,Debtors,930024,Debtor-free nursing care,07-Sep-2016,3175663-2329060,625.00,TENLANDS NURSING HOME.
Children and Adult Services,Central/Other,Debtors,930024,Debtor-free nursing care,07-Sep-2016,3175664-2329618,625.00,THE BEECHES.
Children and Adult Services,Central/Other,Debtors,930024,Debtor-free nursing care,07-Sep-2016,3175664-2329623,"1,294.64",THE BEECHES.
Children and Adult Services,Central/Other,Debtors,930024,Debtor-free nursing care,07-Sep-2016,3175665-2329125,"1,155.88",THE COUNTY DURHAM CHESHIRE HOME.
Children and Adult Services,Central/Other,Debtors,930024,Debtor-free nursing care,07-Sep-2016,3175665-2329127,"1,155.88",THE COUNTY DURHAM CHESHIRE HOME.
Children and Adult Services,Central/Other,Debtors,930024,Debtor-free nursing care,07-Sep-2016,3175665-2329129,625.00,THE COUNTY DURHAM CHESHIRE HOME.
Children and Adult Services,Central/Other,Debtors,930024,Debtor-free nursing care,07-Sep-2016,3175665-2329131,"1,219.08",THE COUNTY DURHAM CHESHIRE HOME.
Children and Adult Services,Central/Other,Debtors,930024,Debtor-free nursing care,07-Sep-2016,3175665-2329133,"1,219.08",THE COUNTY DURHAM CHESHIRE HOME.
Children and Adult Services,Central/Other,Debtors,930024,Debtor-free nursing care,07-Sep-2016,3175665-2329135,"1,219.08",THE COUNTY DURHAM CHESHIRE HOME.
Children and Adult Services,Central/Other,Debtors,930024,Debtor-free nursing care,07-Sep-2016,3175665-2329137,"1,219.08",THE COUNTY DURHAM CHESHIRE HOME.
Children and Adult Services,Central/Other,Debtors,930024,Debtor-free nursing care,07-Sep-2016,3175665-2329141,"1,219.08",THE COUNTY DURHAM CHESHIRE HOME.
Children and Adult Services,Central/Other,Debtors,930024,Debtor-free nursing care,07-Sep-2016,3175665-2329146,"1,219.08",THE COUNTY DURHAM CHESHIRE HOME.
Children and Adult Services,Central/Other,Debtors,930024,Debtor-free nursing care,07-Sep-2016,3175665-2329147,"1,219.08",THE COUNTY DURHAM CHESHIRE HOME.
Children and Adult Services,Central/Other,Debtors,930024,Debtor-free nursing care,07-Sep-2016,3175665-2329148,"1,219.08",THE COUNTY DURHAM CHESHIRE HOME.
Children and Adult Services,Central/Other,Debtors,930024,Debtor-free nursing care,07-Sep-2016,3175665-2333544,"1,219.21",THE COUNTY DURHAM CHESHIRE HOME.
Children and Adult Services,Central/Other,Debtors,930024,Debtor-free nursing care,07-Sep-2016,3175670-2331364,"1,219.21",THORNFIELD GRANGE.
Children and Adult Services,Central/Other,Debtors,930024,Debtor-free nursing care,07-Sep-2016,3175670-2331365,"1,219.21",THORNFIELD GRANGE.
Children and Adult Services,Central/Other,Debtors,930024,Debtor-free nursing care,07-Sep-2016,3175670-2331368,"1,219.21",THORNFIELD GRANGE.
Children and Adult Services,Central/Other,Debtors,930024,Debtor-free nursing care,07-Sep-2016,3175676-2329928,625.00,VILLAGE NURSING HOME.
Children and Adult Services,Central/Other,Debtors,930024,Debtor-free nursing care,07-Sep-2016,3175676-2329931,625.00,VILLAGE NURSING HOME.
Children and Adult Services,Central/Other,Debtors,930024,Debtor-free nursing care,07-Sep-2016,3175676-2329934,625.00,VILLAGE NURSING HOME.
Children and Adult Services,Central/Other,Debtors,930024,Debtor-free nursing care,07-Sep-2016,3175676-2329939,625.00,VILLAGE NURSING HOME.
Children and Adult Services,Central/Other,Debtors,930024,Debtor-free nursing care,07-Sep-2016,3175676-2329942,625.00,VILLAGE NURSING HOME.
Children and Adult Services,Central/Other,Debtors,930024,Debtor-free nursing care,07-Sep-2016,3175676-2329944,625.00,VILLAGE NURSING HOME.
Children and Adult Services,Central/Other,Debtors,930024,Debtor-free nursing care,07-Sep-2016,3175676-2329946,625.00,VILLAGE NURSING HOME.
Children and Adult Services,Central/Other,Debtors,930024,Debtor-free nursing care,07-Sep-2016,3175676-2329949,625.00,VILLAGE NURSING HOME.
Children and Adult Services,Central/Other,Debtors,930024,Debtor-free nursing care,07-Sep-2016,3175676-2329951,625.00,VILLAGE NURSING HOME.
Children and Adult Services,Central/Other,Debtors,930024,Debtor-free nursing care,07-Sep-2016,3175676-2329954,625.00,VILLAGE NURSING HOME.
Children and Adult Services,Central/Other,Debtors,930024,Debtor-free nursing care,07-Sep-2016,3175676-2329958,625.00,VILLAGE NURSING HOME.
Children and Adult Services,Central/Other,Debtors,930024,Debtor-free nursing care,07-Sep-2016,3175676-2329961,625.00,VILLAGE NURSING HOME.
Children and Adult Services,Central/Other,Debtors,930024,Debtor-free nursing care,07-Sep-2016,3175676-2329963,625.00,VILLAGE NURSING HOME.
Children and Adult Services,Central/Other,Debtors,930024,Debtor-free nursing care,07-Sep-2016,3175676-2329966,625.00,VILLAGE NURSING HOME.
Children and Adult Services,Central/Other,Debtors,930024,Debtor-free nursing care,07-Sep-2016,3175683-2329744,"1,219.21",WEST HOUSE CARE HOME.
Children and Adult Services,Central/Other,Debtors,930024,Debtor-free nursing care,07-Sep-2016,3175683-2329746,"1,219.21",WEST HOUSE CARE HOME.
Children and Adult Services,Central/Other,Debtors,930024,Debtor-free nursing care,07-Sep-2016,3175683-2329755,"1,219.21",WEST HOUSE CARE HOME.
Children and Adult Services,Central/Other,Debtors,930024,Debtor-free nursing care,07-Sep-2016,3175683-2329757,"1,219.21",WEST HOUSE CARE HOME.
Children and Adult Services,Central/Other,Debtors,930024,Debtor-free nursing care,07-Sep-2016,3175683-2329759,"1,219.21",WEST HOUSE CARE HOME.
Children and Adult Services,Central/Other,Debtors,930024,Debtor-free nursing care,07-Sep-2016,3175683-2329763,"1,219.21",WEST HOUSE CARE HOME.
Children and Adult Services,Central/Other,Debtors,930024,Debtor-free nursing care,07-Sep-2016,3175684-2329063,625.00,WEST LODGE HOMES.
Children and Adult Services,Central/Other,Debtors,930024,Debtor-free nursing care,07-Sep-2016,3175684-2329065,625.00,WEST LODGE HOMES.
Children and Adult Services,Central/Other,Debtors,930024,Debtor-free nursing care,07-Sep-2016,3175684-2329068,625.00,WEST LODGE HOMES.
Children and Adult Services,Central/Other,Debtors,930024,Debtor-free nursing care,07-Sep-2016,3175684-2329071,625.00,WEST LODGE HOMES.
Children and Adult Services,Central/Other,Debtors,930024,Debtor-free nursing care,07-Sep-2016,3175684-2329073,625.00,WEST LODGE HOMES.
Children and Adult Services,Central/Other,Debtors,930024,Debtor-free nursing care,07-Sep-2016,3175684-2329075,625.00,WEST LODGE HOMES.
Children and Adult Services,Central/Other,Debtors,930024,Debtor-free nursing care,07-Sep-2016,3175684-2329079,625.00,WEST LODGE HOMES.
Children and Adult Services,Central/Other,Debtors,930024,Debtor-free nursing care,07-Sep-2016,3175684-2329085,625.00,WEST LODGE HOMES.
Children and Adult Services,Central/Other,Debtors,930024,Debtor-free nursing care,07-Sep-2016,3175684-2329087,625.00,WEST LODGE HOMES.
Children and Adult Services,Central/Other,Debtors,930024,Debtor-free nursing care,07-Sep-2016,3175684-2329093,625.00,WEST LODGE HOMES.
Children and Adult Services,Central/Other,Debtors,930024,Debtor-free nursing care,07-Sep-2016,3175684-2329097,625.00,WEST LODGE HOMES.
Children and Adult Services,Central/Other,Debtors,930024,Debtor-free nursing care,07-Sep-2016,3175684-2329098,625.00,WEST LODGE HOMES.
Children and Adult Services,Central/Other,Debtors,930024,Debtor-free nursing care,07-Sep-2016,3175684-2329100,625.00,WEST LODGE HOMES.
Children and Adult Services,Central/Other,Debtors,930024,Debtor-free nursing care,07-Sep-2016,3175684-2329102,625.00,WEST LODGE HOMES.
Children and Adult Services,Central/Other,Debtors,930024,Debtor-free nursing care,07-Sep-2016,3175684-2329105,625.00,WEST LODGE HOMES.
Children and Adult Services,Central/Other,Debtors,930024,Debtor-free nursing care,07-Sep-2016,3175684-2329107,625.00,WEST LODGE HOMES.
Children and Adult Services,Central/Other,Debtors,930024,Debtor-free nursing care,07-Sep-2016,3175684-2329109,625.00,WEST LODGE HOMES.
Children and Adult Services,Central/Other,Debtors,930024,Debtor-free nursing care,07-Sep-2016,3175684-2329113,625.00,WEST LODGE HOMES.
Children and Adult Services,Central/Other,Debtors,930024,Debtor-free nursing care,07-Sep-2016,3175684-2329117,625.00,WEST LODGE HOMES.
Children and Adult Services,Central/Other,Debtors,930024,Debtor-free nursing care,07-Sep-2016,3175684-2329120,625.00,WEST LODGE HOMES.
Children and Adult Services,Central/Other,Debtors,930024,Debtor-free nursing care,07-Sep-2016,3175684-2329121,625.00,WEST LODGE HOMES.
Children and Adult Services,Central/Other,Debtors,930024,Debtor-free nursing care,07-Sep-2016,3175691-2329970,625.00,YOHDEN HALL NURSING HOME.
Children and Adult Services,Central/Other,Debtors,930024,Debtor-free nursing care,07-Sep-2016,3175691-2329972,625.00,YOHDEN HALL NURSING HOME.
Children and Adult Services,Central/Other,Debtors,930024,Debtor-free nursing care,07-Sep-2016,3175691-2329973,625.00,YOHDEN HALL NURSING HOME.
Children and Adult Services,Central/Other,Debtors,930024,Debtor-free nursing care,07-Sep-2016,3175691-2329979,625.00,YOHDEN HALL NURSING HOME.
Children and Adult Services,Central/Other,Debtors,930024,Debtor-free nursing care,07-Sep-2016,3175691-2329981,625.00,YOHDEN HALL NURSING HOME.
Children and Adult Services,Central/Other,Debtors,930024,Debtor-free nursing care,07-Sep-2016,3175691-2329983,625.00,YOHDEN HALL NURSING HOME.
Children and Adult Services,Central/Other,Debtors,930024,Debtor-free nursing care,07-Sep-2016,3175691-2329987,625.00,YOHDEN HALL NURSING HOME.
Children and Adult Services,Central/Other,Debtors,930024,Debtor-free nursing care,07-Sep-2016,3175691-2329989,625.00,YOHDEN HALL NURSING HOME.
Children and Adult Services,Central/Other,Debtors,930024,Debtor-free nursing care,07-Sep-2016,3175691-2329990,625.00,YOHDEN HALL NURSING HOME.
Children and Adult Services,Central/Other,Debtors,930024,Debtor-free nursing care,07-Sep-2016,3175691-2329991,625.00,YOHDEN HALL NURSING HOME.
Children and Adult Services,Central/Other,Debtors,930024,Debtor-free nursing care,07-Sep-2016,3175691-2329993,625.00,YOHDEN HALL NURSING HOME.
Children and Adult Services,Central/Other,Debtors,930024,Debtor-free nursing care,07-Sep-2016,3175691-2330000,625.00,YOHDEN HALL NURSING HOME.
Children and Adult Services,Central/Other,Debtors,930024,Debtor-free nursing care,07-Sep-2016,3175691-2330003,625.00,YOHDEN HALL NURSING HOME.
Children and Adult Services,Central/Other,Debtors,930024,Debtor-free nursing care,07-Sep-2016,3175691-2330006,625.00,YOHDEN HALL NURSING HOME.
Children and Adult Services,Central/Other,Debtors,930024,Debtor-free nursing care,07-Sep-2016,3175692-2329509,625.00,YOHDEN LODGE CARE HOME.
Children and Adult Services,Central/Other,Debtors,930024,Debtor-free nursing care,07-Sep-2016,3175692-2329515,625.00,YOHDEN LODGE CARE HOME.
Children and Adult Services,Central/Other,Debtors,930024,Debtor-free nursing care,07-Sep-2016,3175692-2329518,625.00,YOHDEN LODGE CARE HOME.
Children and Adult Services,Central/Other,Debtors,930024,Debtor-free nursing care,07-Sep-2016,3175692-2329521,625.00,YOHDEN LODGE CARE HOME.
Children and Adult Services,Childrens Services,Supplies and Services,364352,Grants to Voluntary Organisations,07-Sep-2016,304761-999,700.00,CITY OF SUNDERLAND YMCA LTD.
Children and Adult Services,Childrens Services,Third Party Payments,440001,Other Third Party Payments,07-Sep-2016,304799-1129852,"1,012.86",REDACTED - PAYMENT TO INDIVIDUAL
Children and Adult Services,Childrens Services,Third Party Payments,440001,Other Third Party Payments,07-Sep-2016,304802-1130498,702.00,REDACTED - PAYMENT TO INDIVIDUAL
Children and Adult Services,Childrens Services,Supplies and Services,364353,Grants to Voluntary Organisations,07-Sep-2016,3175840-CAS-09-2016-022,"1,830.00",REDACTED - PAYMENT TO INDIVIDUAL
Children and Adult Services,Childrens Services,Supplies and Services,336005,Advertising,07-Sep-2016,3175843-INV-4558,"4,999.00",NATIVES ONLINE LTD T/A NET NATIVES.
Children and Adult Services,Childrens Services,Supplies and Services,364999,Grants to Voluntary Organisations,07-Sep-2016,3175870-CAS-06-2016-063,"3,386.00",PETERLEE YOUTH CENTRE.
Children and Adult Services,Childrens Services,Supplies and Services,384199,Miscellaneous Expenses,07-Sep-2016,3175873-63236679,802.68,PHS GROUP PLC.
Children and Adult Services,Childrens Services,Supplies and Services,338099,Services,07-Sep-2016,3175905-4810007644,"1,283.75",TEES ESK & WEAR VALLEYS NHS FOUNDATION TRUST.
Children and Adult Services,Childrens Services,Supplies and Services,364358,Grants to Voluntary Organisations,07-Sep-2016,3175918-CAS-09-2016-024,"2,442.80",UBS TRITON PROPERTY FUND.
Children and Adult Services,Education,Supplies and Services,384871,Miscellaneous Expenses,07-Sep-2016,304768-49297354,912.00,HEALTH EDUCATION ENGLAND.
Children and Adult Services,Education,Supplies and Services,338094,Services,07-Sep-2016,3175694-18002755,806.00,1LIFE MANAGEMENT SOLUTIONS LTD.
Children and Adult Services,Education,Supplies and Services,384199,Miscellaneous Expenses,07-Sep-2016,3175734-2,649.44,CAREERWAVE LTD.
Children and Adult Services,Education,Supplies and Services,352001,Conference Expenses,07-Sep-2016,3175865-0000105110,690.00,PARTNERSHIP MEDIA GROUP T/A GOVNET COMMUNICATIONS.
Children and Adult Services,Education,Third Party Payments,440999,Other Third Party Payments,07-Sep-2016,3175895-48,"5,800.83",STANLEY EVENTS LTD.
Children and Adult Services,Head of Adults,Third Party Payments,478101,Purchase of Care,07-Sep-2016,304794-2330447,"1,255.40",REDACTED - PAYMENT TO INDIVIDUAL
Children and Adult Services,Head of Adults,Third Party Payments,470101,Purchase of Care,07-Sep-2016,3175390-2331754,"6,031.16",3 RED ADMIRAL COURT.
Children and Adult Services,Head of Adults,Third Party Payments,470101,Purchase of Care,07-Sep-2016,3175391-2332150,"6,397.60",368 THE RIDGE.
Children and Adult Services,Head of Adults,Third Party Payments,470101,Purchase of Care,07-Sep-2016,3175392-2329487,"2,059.56",A CHARLES THOMAS (CARE) LTD.
Children and Adult Services,Head of Adults,Third Party Payments,470101,Purchase of Care,07-Sep-2016,3175392-2329488,"2,059.56",A CHARLES THOMAS (CARE) LTD.
Children and Adult Services,Head of Adults,Third Party Payments,470101,Purchase of Care,07-Sep-2016,3175392-2329489,"2,059.56",A CHARLES THOMAS (CARE) LTD.
Children and Adult Services,Head of Adults,Third Party Payments,470101,Purchase of Care,07-Sep-2016,3175392-2329490,"2,059.56",A CHARLES THOMAS (CARE) LTD.
Children and Adult Services,Head of Adults,Third Party Payments,470101,Purchase of Care,07-Sep-2016,3175392-2329491,514.89,A CHARLES THOMAS (CARE) LTD.
Children and Adult Services,Head of Adults,Third Party Payments,470101,Purchase of Care,07-Sep-2016,3175392-2329492,"2,059.56",A CHARLES THOMAS (CARE) LTD.
Children and Adult Services,Head of Adults,Third Party Payments,470101,Purchase of Care,07-Sep-2016,3175392-2329493,"2,059.56",A CHARLES THOMAS (CARE) LTD.
Children and Adult Services,Head of Adults,Third Party Payments,470101,Purchase of Care,07-Sep-2016,3175392-2329494,"2,059.56",A CHARLES THOMAS (CARE) LTD.
Children and Adult Services,Head of Adults,Third Party Payments,470101,Purchase of Care,07-Sep-2016,3175392-2329495,"2,059.56",A CHARLES THOMAS (CARE) LTD.
Children and Adult Services,Head of Adults,Third Party Payments,470101,Purchase of Care,07-Sep-2016,3175392-2329496,"2,059.56",A CHARLES THOMAS (CARE) LTD.
Children and Adult Services,Head of Adults,Third Party Payments,470101,Purchase of Care,07-Sep-2016,3175392-2329498,"2,059.56",A CHARLES THOMAS (CARE) LTD.
Children and Adult Services,Head of Adults,Third Party Payments,470101,Purchase of Care,07-Sep-2016,3175392-2329499,"2,059.56",A CHARLES THOMAS (CARE) LTD.
Children and Adult Services,Head of Adults,Third Party Payments,470101,Purchase of Care,07-Sep-2016,3175392-2329500,"2,059.56",A CHARLES THOMAS (CARE) LTD.
Children and Adult Services,Head of Adults,Third Party Payments,470101,Purchase of Care,07-Sep-2016,3175392-2329501,"2,059.56",A CHARLES THOMAS (CARE) LTD.
Children and Adult Services,Head of Adults,Third Party Payments,470101,Purchase of Care,07-Sep-2016,3175392-2329502,"2,059.56",A CHARLES THOMAS (CARE) LTD.
Children and Adult Services,Head of Adults,Third Party Payments,470101,Purchase of Care,07-Sep-2016,3175392-2329503,"2,059.56",A CHARLES THOMAS (CARE) LTD.
Children and Adult Services,Head of Adults,Third Party Payments,470101,Purchase of Care,07-Sep-2016,3175392-2329504,"2,059.56",A CHARLES THOMAS (CARE) LTD.
Children and Adult Services,Head of Adults,Third Party Payments,470101,Purchase of Care,07-Sep-2016,3175392-2329505,"2,059.56",A CHARLES THOMAS (CARE) LTD.
Children and Adult Services,Head of Adults,Third Party Payments,470101,Purchase of Care,07-Sep-2016,3175392-2329506,"2,059.56",A CHARLES THOMAS (CARE) LTD.
Children and Adult Services,Head of Adults,Third Party Payments,470101,Purchase of Care,07-Sep-2016,3175392-2329507,"2,059.56",A CHARLES THOMAS (CARE) LTD.
Children and Adult Services,Head of Adults,Third Party Payments,474101,Purchase of Care,07-Sep-2016,3175393-2331056,"2,447.40",ABBEYMOOR CLINIC.
Children and Adult Services,Head of Adults,Third Party Payments,470101,Purchase of Care,07-Sep-2016,3175393-2331057,"2,000.00",ABBEYMOOR CLINIC.
Children and Adult Services,Head of Adults,Third Party Payments,470101,Purchase of Care,07-Sep-2016,3175393-2331058,"2,100.00",ABBEYMOOR CLINIC.
Children and Adult Services,Head of Adults,Third Party Payments,474101,Purchase of Care,07-Sep-2016,3175393-2331059,"2,447.40",ABBEYMOOR CLINIC.
Children and Adult Services,Head of Adults,Third Party Payments,474101,Purchase of Care,07-Sep-2016,3175393-2331060,"2,848.00",ABBEYMOOR CLINIC.
Children and Adult Services,Head of Adults,Third Party Payments,474101,Purchase of Care,07-Sep-2016,3175393-2331061,"2,848.00",ABBEYMOOR CLINIC.
Children and Adult Services,Head of Adults,Third Party Payments,474101,Purchase of Care,07-Sep-2016,3175393-2331062,"2,303.28",ABBEYMOOR CLINIC.
Children and Adult Services,Head of Adults,Third Party Payments,471101,Purchase of Care,07-Sep-2016,3175394-2332207,"2,026.40",ABBEYVALE CARE CENTRE.
Children and Adult Services,Head of Adults,Third Party Payments,470101,Purchase of Care,07-Sep-2016,3175394-2332209,"1,949.24",ABBEYVALE CARE CENTRE.
Children and Adult Services,Head of Adults,Third Party Payments,470101,Purchase of Care,07-Sep-2016,3175394-2332210,"1,949.24",ABBEYVALE CARE CENTRE.
Children and Adult Services,Head of Adults,Third Party Payments,471101,Purchase of Care,07-Sep-2016,3175394-2332211,"3,908.06",ABBEYVALE CARE CENTRE.
Children and Adult Services,Head of Adults,Third Party Payments,471101,Purchase of Care,07-Sep-2016,3175394-2332212,"2,026.40",ABBEYVALE CARE CENTRE.
Children and Adult Services,Head of Adults,Third Party Payments,471101,Purchase of Care,07-Sep-2016,3175394-2332213,"2,026.40",ABBEYVALE CARE CENTRE.
Children and Adult Services,Head of Adults,Third Party Payments,470101,Purchase of Care,07-Sep-2016,3175394-2332214,"1,949.24",ABBEYVALE CARE CENTRE.
Children and Adult Services,Head of Adults,Third Party Payments,470101,Purchase of Care,07-Sep-2016,3175394-2332215,"1,949.24",ABBEYVALE CARE CENTRE.
Children and Adult Services,Head of Adults,Third Party Payments,471101,Purchase of Care,07-Sep-2016,3175394-2332216,"2,026.40",ABBEYVALE CARE CENTRE.
Children and Adult Services,Head of Adults,Third Party Payments,470101,Purchase of Care,07-Sep-2016,3175394-2332217,"1,949.24",ABBEYVALE CARE CENTRE.
Children and Adult Services,Head of Adults,Third Party Payments,470101,Purchase of Care,07-Sep-2016,3175394-2332218,"1,949.24",ABBEYVALE CARE CENTRE.
Children and Adult Services,Head of Adults,Third Party Payments,470101,Purchase of Care,07-Sep-2016,3175394-2332219,"1,949.24",ABBEYVALE CARE CENTRE.
Children and Adult Services,Head of Adults,Third Party Payments,471101,Purchase of Care,07-Sep-2016,3175394-2332220,"2,026.40",ABBEYVALE CARE CENTRE.
Children and Adult Services,Head of Adults,Third Party Payments,470101,Purchase of Care,07-Sep-2016,3175394-2332221,"1,949.24",ABBEYVALE CARE CENTRE.
Children and Adult Services,Head of Adults,Third Party Payments,470101,Purchase of Care,07-Sep-2016,3175394-2332222,"1,390.00",ABBEYVALE CARE CENTRE.
Children and Adult Services,Head of Adults,Third Party Payments,470101,Purchase of Care,07-Sep-2016,3175394-2332223,"1,949.24",ABBEYVALE CARE CENTRE.
Children and Adult Services,Head of Adults,Third Party Payments,471101,Purchase of Care,07-Sep-2016,3175394-2332224,"2,026.40",ABBEYVALE CARE CENTRE.
Children and Adult Services,Head of Adults,Third Party Payments,471101,Purchase of Care,07-Sep-2016,3175394-2332225,"1,013.20",ABBEYVALE CARE CENTRE.
Children and Adult Services,Head of Adults,Third Party Payments,470101,Purchase of Care,07-Sep-2016,3175394-2332226,"2,500.00",ABBEYVALE CARE CENTRE.
Children and Adult Services,Head of Adults,Third Party Payments,470101,Purchase of Care,07-Sep-2016,3175394-2332227,"1,949.24",ABBEYVALE CARE CENTRE.
Children and Adult Services,Head of Adults,Third Party Payments,470101,Purchase of Care,07-Sep-2016,3175394-2332228,"1,949.24",ABBEYVALE CARE CENTRE.
Children and Adult Services,Head of Adults,Third Party Payments,471101,Purchase of Care,07-Sep-2016,3175394-2332229,"2,026.40",ABBEYVALE CARE CENTRE.
Children and Adult Services,Head of Adults,Third Party Payments,471101,Purchase of Care,07-Sep-2016,3175394-2332230,"2,026.40",ABBEYVALE CARE CENTRE.
Children and Adult Services,Head of Adults,Third Party Payments,471101,Purchase of Care,07-Sep-2016,3175394-2332231,"2,539.28",ABBEYVALE CARE CENTRE.
Children and Adult Services,Head of Adults,Third Party Payments,470101,Purchase of Care,07-Sep-2016,3175394-2332232,"1,949.24",ABBEYVALE CARE CENTRE.
Children and Adult Services,Head of Adults,Third Party Payments,470101,Purchase of Care,07-Sep-2016,3175394-2332234,"1,949.24",ABBEYVALE CARE CENTRE.
Children and Adult Services,Head of Adults,Third Party Payments,470101,Purchase of Care,07-Sep-2016,3175394-2332235,"2,500.00",ABBEYVALE CARE CENTRE.
Children and Adult Services,Head of Adults,Third Party Payments,470101,Purchase of Care,07-Sep-2016,3175394-2332236,"1,949.24",ABBEYVALE CARE CENTRE.
Children and Adult Services,Head of Adults,Third Party Payments,470101,Purchase of Care,07-Sep-2016,3175394-2333402,"2,436.55",ABBEYVALE CARE CENTRE.
Children and Adult Services,Head of Adults,Third Party Payments,471101,Purchase of Care,07-Sep-2016,3175394-2333502,"1,794.81",ABBEYVALE CARE CENTRE.
Children and Adult Services,Head of Adults,Third Party Payments,470101,Purchase of Care,07-Sep-2016,3175395-2332876,"1,948.04",ACOMB COURT.
Children and Adult Services,Head of Adults,Third Party Payments,471101,Purchase of Care,07-Sep-2016,3175396-2330071,"2,026.40",ACORN GRANGE NURSING HOME.
Children and Adult Services,Head of Adults,Third Party Payments,471101,Purchase of Care,07-Sep-2016,3175396-2330073,"2,026.40",ACORN GRANGE NURSING HOME.
Children and Adult Services,Head of Adults,Third Party Payments,470101,Purchase of Care,07-Sep-2016,3175396-2330074,"1,949.24",ACORN GRANGE NURSING HOME.
Children and Adult Services,Head of Adults,Third Party Payments,471101,Purchase of Care,07-Sep-2016,3175396-2330075,"2,026.40",ACORN GRANGE NURSING HOME.
Children and Adult Services,Head of Adults,Third Party Payments,470101,Purchase of Care,07-Sep-2016,3175396-2330076,"1,949.24",ACORN GRANGE NURSING HOME.
Children and Adult Services,Head of Adults,Third Party Payments,471101,Purchase of Care,07-Sep-2016,3175396-2330077,940.82,ACORN GRANGE NURSING HOME.
Children and Adult Services,Head of Adults,Third Party Payments,471101,Purchase of Care,07-Sep-2016,3175396-2330078,"1,230.31",ACORN GRANGE NURSING HOME.
Children and Adult Services,Head of Adults,Third Party Payments,471101,Purchase of Care,07-Sep-2016,3175396-2330079,"2,026.40",ACORN GRANGE NURSING HOME.
Children and Adult Services,Head of Adults,Third Party Payments,470101,Purchase of Care,07-Sep-2016,3175396-2330080,"1,949.24",ACORN GRANGE NURSING HOME.
Children and Adult Services,Head of Adults,Third Party Payments,471101,Purchase of Care,07-Sep-2016,3175396-2330081,"1,519.80",ACORN GRANGE NURSING HOME.
Children and Adult Services,Head of Adults,Third Party Payments,470101,Purchase of Care,07-Sep-2016,3175396-2330082,"1,949.24",ACORN GRANGE NURSING HOME.
Children and Adult Services,Head of Adults,Third Party Payments,471101,Purchase of Care,07-Sep-2016,3175396-2330084,"2,026.40",ACORN GRANGE NURSING HOME.
Children and Adult Services,Head of Adults,Third Party Payments,471101,Purchase of Care,07-Sep-2016,3175396-2330085,"2,026.40",ACORN GRANGE NURSING HOME.
Children and Adult Services,Head of Adults,Third Party Payments,471101,Purchase of Care,07-Sep-2016,3175396-2330087,578.97,ACORN GRANGE NURSING HOME.
Children and Adult Services,Head of Adults,Third Party Payments,471101,Purchase of Care,07-Sep-2016,3175396-2330088,"2,026.40",ACORN GRANGE NURSING HOME.
Children and Adult Services,Head of Adults,Third Party Payments,470101,Purchase of Care,07-Sep-2016,3175396-2330089,"1,949.24",ACORN GRANGE NURSING HOME.
Children and Adult Services,Head of Adults,Third Party Payments,471101,Purchase of Care,07-Sep-2016,3175396-2330090,"1,013.20",ACORN GRANGE NURSING HOME.
Children and Adult Services,Head of Adults,Third Party Payments,471101,Purchase of Care,07-Sep-2016,3175396-2330091,"2,026.40",ACORN GRANGE NURSING HOME.
Children and Adult Services,Head of Adults,Third Party Payments,470101,Purchase of Care,07-Sep-2016,3175396-2330092,"1,949.24",ACORN GRANGE NURSING HOME.
Children and Adult Services,Head of Adults,Third Party Payments,471101,Purchase of Care,07-Sep-2016,3175396-2330093,"2,026.40",ACORN GRANGE NURSING HOME.
Children and Adult Services,Head of Adults,Third Party Payments,471101,Purchase of Care,07-Sep-2016,3175396-2330094,"2,026.40",ACORN GRANGE NURSING HOME.
Children and Adult Services,Head of Adults,Third Party Payments,471101,Purchase of Care,07-Sep-2016,3175396-2330095,"2,026.40",ACORN GRANGE NURSING HOME.
Children and Adult Services,Head of Adults,Third Party Payments,470101,Purchase of Care,07-Sep-2016,3175396-2330096,"1,949.24",ACORN GRANGE NURSING HOME.
Children and Adult Services,Head of Adults,Third Party Payments,471101,Purchase of Care,07-Sep-2016,3175396-2330097,"2,026.40",ACORN GRANGE NURSING HOME.
Children and Adult Services,Head of Adults,Third Party Payments,471101,Purchase of Care,07-Sep-2016,3175396-2330098,"2,026.40",ACORN GRANGE NURSING HOME.
Children and Adult Services,Head of Adults,Third Party Payments,471101,Purchase of Care,07-Sep-2016,3175396-2330099,"2,026.40",ACORN GRANGE NURSING HOME.
Children and Adult Services,Head of Adults,Third Party Payments,470101,Purchase of Care,07-Sep-2016,3175396-2330100,"1,949.24",ACORN GRANGE NURSING HOME.
Children and Adult Services,Head of Adults,Third Party Payments,470101,Purchase of Care,07-Sep-2016,3175396-2330101,"1,949.24",ACORN GRANGE NURSING HOME.
Children and Adult Services,Head of Adults,Third Party Payments,470101,Purchase of Care,07-Sep-2016,3175396-2330102,"1,949.24",ACORN GRANGE NURSING HOME.
Children and Adult Services,Head of Adults,Third Party Payments,471101,Purchase of Care,07-Sep-2016,3175396-2330103,"2,026.40",ACORN GRANGE NURSING HOME.
Children and Adult Services,Head of Adults,Third Party Payments,471101,Purchase of Care,07-Sep-2016,3175396-2330104,"2,026.40",ACORN GRANGE NURSING HOME.
Children and Adult Services,Head of Adults,Third Party Payments,471101,Purchase of Care,07-Sep-2016,3175396-2330105,"2,026.40",ACORN GRANGE NURSING HOME.
Children and Adult Services,Head of Adults,Third Party Payments,470101,Purchase of Care,07-Sep-2016,3175396-2330106,"1,949.24",ACORN GRANGE NURSING HOME.
Children and Adult Services,Head of Adults,Third Party Payments,471101,Purchase of Care,07-Sep-2016,3175397-2332991,"1,815.60",AILWYN HALL RESIDENTIAL CARE HOME.
Children and Adult Services,Head of Adults,Third Party Payments,470101,Purchase of Care,07-Sep-2016,3175398-2330665,"2,059.56",ALLIANCE CARE.
Children and Adult Services,Head of Adults,Third Party Payments,471101,Purchase of Care,07-Sep-2016,3175398-2330666,"1,067.80",ALLIANCE CARE.
Children and Adult Services,Head of Adults,Third Party Payments,470101,Purchase of Care,07-Sep-2016,3175398-2330667,"1,536.76",ALLIANCE CARE.
Children and Adult Services,Head of Adults,Third Party Payments,470101,Purchase of Care,07-Sep-2016,3175398-2330669,"1,366.32",ALLIANCE CARE.
Children and Adult Services,Head of Adults,Third Party Payments,474101,Purchase of Care,07-Sep-2016,3175398-2330670,"1,634.16",ALLIANCE CARE.
Children and Adult Services,Head of Adults,Third Party Payments,471101,Purchase of Care,07-Sep-2016,3175398-2330672,"1,830.51",ALLIANCE CARE.
Children and Adult Services,Head of Adults,Third Party Payments,471101,Purchase of Care,07-Sep-2016,3175398-2330673,"2,135.60",ALLIANCE CARE.
Children and Adult Services,Head of Adults,Third Party Payments,470102,Purchase of Care,07-Sep-2016,3175398-2330676,774.29,ALLIANCE CARE.
Children and Adult Services,Head of Adults,Third Party Payments,474101,Purchase of Care,07-Sep-2016,3175398-2330677,"1,634.16",ALLIANCE CARE.
Children and Adult Services,Head of Adults,Third Party Payments,470101,Purchase of Care,07-Sep-2016,3175398-2330680,"2,059.56",ALLIANCE CARE.
Children and Adult Services,Head of Adults,Third Party Payments,471101,Purchase of Care,07-Sep-2016,3175398-2330682,"1,067.80",ALLIANCE CARE.
Children and Adult Services,Head of Adults,Third Party Payments,470101,Purchase of Care,07-Sep-2016,3175398-2330683,"2,059.56",ALLIANCE CARE.
Children and Adult Services,Head of Adults,Third Party Payments,471101,Purchase of Care,07-Sep-2016,3175398-2330687,"2,135.60",ALLIANCE CARE.
Children and Adult Services,Head of Adults,Third Party Payments,470101,Purchase of Care,07-Sep-2016,3175398-2330688,"1,986.00",ALLIANCE CARE.
Children and Adult Services,Head of Adults,Third Party Payments,470101,Purchase of Care,07-Sep-2016,3175398-2330689,"1,536.76",ALLIANCE CARE.
Children and Adult Services,Head of Adults,Third Party Payments,470102,Purchase of Care,07-Sep-2016,3175398-2330690,633.51,ALLIANCE CARE.
Children and Adult Services,Head of Adults,Debtors,930135,Debtor Residential Care - IC+ Rehabilitation,07-Sep-2016,3175398-2330691,"1,548.58",ALLIANCE CARE.
Children and Adult Services,Head of Adults,Third Party Payments,474101,Purchase of Care,07-Sep-2016,3175398-2330695,"1,550.24",ALLIANCE CARE.
Children and Adult Services,Head of Adults,Debtors,930135,Debtor Residential Care - IC+ Rehabilitation,07-Sep-2016,3175398-2330699,"1,478.19",ALLIANCE CARE.
Children and Adult Services,Head of Adults,Third Party Payments,471101,Purchase of Care,07-Sep-2016,3175398-2330700,"1,983.05",ALLIANCE CARE.
Children and Adult Services,Head of Adults,Third Party Payments,470101,Purchase of Care,07-Sep-2016,3175398-2330701,"2,059.56",ALLIANCE CARE.
Children and Adult Services,Head of Adults,Debtors,930135,Debtor Residential Care - IC+ Rehabilitation,07-Sep-2016,3175398-2330702,985.46,ALLIANCE CARE.
Children and Adult Services,Head of Adults,Third Party Payments,470101,Purchase of Care,07-Sep-2016,3175398-2330703,"2,059.56",ALLIANCE CARE.
Children and Adult Services,Head of Adults,Debtors,930135,Debtor Residential Care - IC+ Rehabilitation,07-Sep-2016,3175398-2330704,"1,407.80",ALLIANCE CARE.
Children and Adult Services,Head of Adults,Debtors,930135,Debtor Residential Care - IC+ Rehabilitation,07-Sep-2016,3175398-2330705,563.12,ALLIANCE CARE.
Children and Adult Services,Head of Adults,Third Party Payments,474101,Purchase of Care,07-Sep-2016,3175398-2330707,"2,156.96",ALLIANCE CARE.
Children and Adult Services,Head of Adults,Third Party Payments,470101,Purchase of Care,07-Sep-2016,3175398-2330709,"1,080.60",ALLIANCE CARE.
Children and Adult Services,Head of Adults,Third Party Payments,471101,Purchase of Care,07-Sep-2016,3175398-2330710,"2,135.60",ALLIANCE CARE.
Children and Adult Services,Head of Adults,Third Party Payments,471101,Purchase of Care,07-Sep-2016,3175398-2330711,"2,135.60",ALLIANCE CARE.
Children and Adult Services,Head of Adults,Third Party Payments,471101,Purchase of Care,07-Sep-2016,3175398-2330713,"1,612.80",ALLIANCE CARE.
Children and Adult Services,Head of Adults,Third Party Payments,471101,Purchase of Care,07-Sep-2016,3175398-2330715,"2,135.60",ALLIANCE CARE.
Children and Adult Services,Head of Adults,Third Party Payments,474101,Purchase of Care,07-Sep-2016,3175398-2330716,"1,462.88",ALLIANCE CARE.
Children and Adult Services,Head of Adults,Third Party Payments,471101,Purchase of Care,07-Sep-2016,3175398-2330718,"1,612.80",ALLIANCE CARE.
Children and Adult Services,Head of Adults,Third Party Payments,471101,Purchase of Care,07-Sep-2016,3175398-2330719,"1,067.80",ALLIANCE CARE.
Children and Adult Services,Head of Adults,Third Party Payments,470101,Purchase of Care,07-Sep-2016,3175398-2330720,"1,215.84",ALLIANCE CARE.
Children and Adult Services,Head of Adults,Third Party Payments,471101,Purchase of Care,07-Sep-2016,3175398-2330721,"1,535.92",ALLIANCE CARE.
Children and Adult Services,Head of Adults,Third Party Payments,471101,Purchase of Care,07-Sep-2016,3175398-2330722,"2,135.60",ALLIANCE CARE.
Children and Adult Services,Head of Adults,Third Party Payments,474101,Purchase of Care,07-Sep-2016,3175398-2330723,"1,634.16",ALLIANCE CARE.
Children and Adult Services,Head of Adults,Third Party Payments,471101,Purchase of Care,07-Sep-2016,3175398-2330725,"2,135.60",ALLIANCE CARE.
Children and Adult Services,Head of Adults,Third Party Payments,470101,Purchase of Care,07-Sep-2016,3175398-2330726,"2,059.56",ALLIANCE CARE.
Children and Adult Services,Head of Adults,Third Party Payments,470101,Purchase of Care,07-Sep-2016,3175398-2330727,"2,059.56",ALLIANCE CARE.
Children and Adult Services,Head of Adults,Third Party Payments,474101,Purchase of Care,07-Sep-2016,3175398-2330728,"1,478.76",ALLIANCE CARE.
Children and Adult Services,Head of Adults,Third Party Payments,470101,Purchase of Care,07-Sep-2016,3175398-2330730,"2,059.56",ALLIANCE CARE.
Children and Adult Services,Head of Adults,Third Party Payments,470101,Purchase of Care,07-Sep-2016,3175398-2330731,"2,059.56",ALLIANCE CARE.
Children and Adult Services,Head of Adults,Third Party Payments,470101,Purchase of Care,07-Sep-2016,3175398-2330732,"1,783.72",ALLIANCE CARE.
Children and Adult Services,Head of Adults,Third Party Payments,474101,Purchase of Care,07-Sep-2016,3175398-2333139,616.27,ALLIANCE CARE.
Children and Adult Services,Head of Adults,Third Party Payments,474101,Purchase of Care,07-Sep-2016,3175398-2333141,"1,165.82",ALLIANCE CARE.
Children and Adult Services,Head of Adults,Third Party Payments,474101,Purchase of Care,07-Sep-2016,3175398-2333343,"1,463.65",ALLIANCE CARE.
Children and Adult Services,Head of Adults,Third Party Payments,470101,Purchase of Care,07-Sep-2016,3175398-2333346,"2,500.89",ALLIANCE CARE.
Children and Adult Services,Head of Adults,Debtors,930135,Debtor Residential Care - IC+ Rehabilitation,07-Sep-2016,3175398-2333349,"1,759.75",ALLIANCE CARE.
Children and Adult Services,Head of Adults,Third Party Payments,470101,Purchase of Care,07-Sep-2016,3175398-2333356,514.89,ALLIANCE CARE.
Children and Adult Services,Head of Adults,Third Party Payments,470101,Purchase of Care,07-Sep-2016,3175398-2333357,"1,986.00",ALLIANCE CARE.
Children and Adult Services,Head of Adults,Debtors,930135,Debtor Residential Care - IC+ Rehabilitation,07-Sep-2016,3175398-2333360,"1,478.19",ALLIANCE CARE.
Children and Adult Services,Head of Adults,Third Party Payments,471101,Purchase of Care,07-Sep-2016,3175399-2332931,"2,132.08",AMERIND GROVE NURSING HOME.
Children and Adult Services,Head of Adults,Third Party Payments,470101,Purchase of Care,07-Sep-2016,3175400-2332075,"1,860.00",ANCHOR CAREHOMES NE LTD T/A WYNYARD WOODS GRANGE RESIDENTIAL CARE HOME.
Children and Adult Services,Head of Adults,Third Party Payments,470101,Purchase of Care,07-Sep-2016,3175400-2332076,"1,860.00",ANCHOR CAREHOMES NE LTD T/A WYNYARD WOODS GRANGE RESIDENTIAL CARE HOME.
Children and Adult Services,Head of Adults,Third Party Payments,470101,Purchase of Care,07-Sep-2016,3175401-2330159,"1,972.00",ANCHOR HOUSING ASSOCIATION.
Children and Adult Services,Head of Adults,Third Party Payments,470101,Purchase of Care,07-Sep-2016,3175401-2330160,"1,972.00",ANCHOR HOUSING ASSOCIATION.
Children and Adult Services,Head of Adults,Third Party Payments,470101,Purchase of Care,07-Sep-2016,3175401-2330161,"1,972.00",ANCHOR HOUSING ASSOCIATION.
Children and Adult Services,Head of Adults,Third Party Payments,470101,Purchase of Care,07-Sep-2016,3175402-2329687,"1,380.02",ASCOT CARE NORTHEAST LTD.
Children and Adult Services,Head of Adults,Third Party Payments,474101,Purchase of Care,07-Sep-2016,3175402-2329688,"2,046.60",ASCOT CARE NORTHEAST LTD.
Children and Adult Services,Head of Adults,Third Party Payments,470101,Purchase of Care,07-Sep-2016,3175402-2329690,"1,266.04",ASCOT CARE NORTHEAST LTD.
Children and Adult Services,Head of Adults,Third Party Payments,470101,Purchase of Care,07-Sep-2016,3175402-2329691,"1,422.44",ASCOT CARE NORTHEAST LTD.
Children and Adult Services,Head of Adults,Third Party Payments,470101,Purchase of Care,07-Sep-2016,3175402-2329692,"1,949.24",ASCOT CARE NORTHEAST LTD.
Children and Adult Services,Head of Adults,Third Party Payments,470101,Purchase of Care,07-Sep-2016,3175402-2329694,946.76,ASCOT CARE NORTHEAST LTD.
Children and Adult Services,Head of Adults,Third Party Payments,474101,Purchase of Care,07-Sep-2016,3175402-2329695,"2,046.60",ASCOT CARE NORTHEAST LTD.
Children and Adult Services,Head of Adults,Third Party Payments,474101,Purchase of Care,07-Sep-2016,3175402-2329697,"1,233.48",ASCOT CARE NORTHEAST LTD.
Children and Adult Services,Head of Adults,Third Party Payments,470101,Purchase of Care,07-Sep-2016,3175402-2329699,"1,949.24",ASCOT CARE NORTHEAST LTD.
Children and Adult Services,Head of Adults,Third Party Payments,470101,Purchase of Care,07-Sep-2016,3175402-2329700,"1,391.76",ASCOT CARE NORTHEAST LTD.
Children and Adult Services,Head of Adults,Third Party Payments,470101,Purchase of Care,07-Sep-2016,3175402-2329701,"1,426.44",ASCOT CARE NORTHEAST LTD.
Children and Adult Services,Head of Adults,Third Party Payments,474101,Purchase of Care,07-Sep-2016,3175402-2329702,"1,405.08",ASCOT CARE NORTHEAST LTD.
Children and Adult Services,Head of Adults,Third Party Payments,470101,Purchase of Care,07-Sep-2016,3175402-2329704,"1,471.08",ASCOT CARE NORTHEAST LTD.
Children and Adult Services,Head of Adults,Third Party Payments,470101,Purchase of Care,07-Sep-2016,3175402-2329705,"1,426.44",ASCOT CARE NORTHEAST LTD.
Children and Adult Services,Head of Adults,Third Party Payments,470101,Purchase of Care,07-Sep-2016,3175402-2329706,"1,408.92",ASCOT CARE NORTHEAST LTD.
Children and Adult Services,Head of Adults,Third Party Payments,471101,Purchase of Care,07-Sep-2016,3175402-2329707,778.28,ASCOT CARE NORTHEAST LTD.
Children and Adult Services,Head of Adults,Third Party Payments,470101,Purchase of Care,07-Sep-2016,3175402-2329708,"1,366.36",ASCOT CARE NORTHEAST LTD.
Children and Adult Services,Head of Adults,Third Party Payments,471101,Purchase of Care,07-Sep-2016,3175402-2329709,"1,013.04",ASCOT CARE NORTHEAST LTD.
Children and Adult Services,Head of Adults,Third Party Payments,470101,Purchase of Care,07-Sep-2016,3175402-2329710,"1,426.44",ASCOT CARE NORTHEAST LTD.
Children and Adult Services,Head of Adults,Third Party Payments,470101,Purchase of Care,07-Sep-2016,3175402-2329711,"1,426.44",ASCOT CARE NORTHEAST LTD.
Children and Adult Services,Head of Adults,Third Party Payments,470101,Purchase of Care,07-Sep-2016,3175402-2329712,"1,949.24",ASCOT CARE NORTHEAST LTD.
Children and Adult Services,Head of Adults,Third Party Payments,471101,Purchase of Care,07-Sep-2016,3175402-2329713,"1,630.84",ASCOT CARE NORTHEAST LTD.
Children and Adult Services,Head of Adults,Third Party Payments,470101,Purchase of Care,07-Sep-2016,3175402-2329715,"1,144.12",ASCOT CARE NORTHEAST LTD.
Children and Adult Services,Head of Adults,Third Party Payments,470101,Purchase of Care,07-Sep-2016,3175402-2329716,"1,949.24",ASCOT CARE NORTHEAST LTD.
Children and Adult Services,Head of Adults,Third Party Payments,471101,Purchase of Care,07-Sep-2016,3175402-2329717,"1,479.52",ASCOT CARE NORTHEAST LTD.
Children and Adult Services,Head of Adults,Third Party Payments,474101,Purchase of Care,07-Sep-2016,3175402-2333067,"4,824.13",ASCOT CARE NORTHEAST LTD.
Children and Adult Services,Head of Adults,Third Party Payments,470101,Purchase of Care,07-Sep-2016,3175403-2332662,"2,700.00",ASHFIELD NURSING HOME LTD.
Children and Adult Services,Head of Adults,Third Party Payments,470101,Purchase of Care,07-Sep-2016,3175404-2332717,953.88,ASPIRE CARE GROUP.
Children and Adult Services,Head of Adults,Third Party Payments,470101,Purchase of Care,07-Sep-2016,3175404-2332718,"1,907.72",ASPIRE CARE GROUP.
Children and Adult Services,Head of Adults,Third Party Payments,470101,Purchase of Care,07-Sep-2016,3175404-2332719,"1,907.72",ASPIRE CARE GROUP.
Children and Adult Services,Head of Adults,Third Party Payments,470101,Purchase of Care,07-Sep-2016,3175404-2332721,"1,507.12",ASPIRE CARE GROUP.
Children and Adult Services,Head of Adults,Third Party Payments,470101,Purchase of Care,07-Sep-2016,3175404-2332723,"1,523.20",ASPIRE CARE GROUP.
Children and Adult Services,Head of Adults,Third Party Payments,470101,Purchase of Care,07-Sep-2016,3175404-2332725,"1,384.92",ASPIRE CARE GROUP.
Children and Adult Services,Head of Adults,Third Party Payments,470101,Purchase of Care,07-Sep-2016,3175404-2332727,"1,384.12",ASPIRE CARE GROUP.
Children and Adult Services,Head of Adults,Third Party Payments,470101,Purchase of Care,07-Sep-2016,3175405-2330398,"1,907.72",ASPIRE CARE GROUP.
Children and Adult Services,Head of Adults,Third Party Payments,470101,Purchase of Care,07-Sep-2016,3175405-2330399,"1,907.72",ASPIRE CARE GROUP.
Children and Adult Services,Head of Adults,Third Party Payments,470101,Purchase of Care,07-Sep-2016,3175405-2330400,"1,907.72",ASPIRE CARE GROUP.
Children and Adult Services,Head of Adults,Third Party Payments,470101,Purchase of Care,07-Sep-2016,3175406-2331757,"3,500.00",ASPIRE CARE GROUP.
Children and Adult Services,Head of Adults,Third Party Payments,470101,Purchase of Care,07-Sep-2016,3175406-2331758,"2,228.80",ASPIRE CARE GROUP.
Children and Adult Services,Head of Adults,Third Party Payments,470101,Purchase of Care,07-Sep-2016,3175406-2331759,"1,750.00",ASPIRE CARE GROUP.
Children and Adult Services,Head of Adults,Third Party Payments,470101,Purchase of Care,07-Sep-2016,3175406-2331760,668.64,ASPIRE CARE GROUP.
Children and Adult Services,Head of Adults,Third Party Payments,470101,Purchase of Care,07-Sep-2016,3175406-2331761,"1,907.72",ASPIRE CARE GROUP.
Children and Adult Services,Head of Adults,Third Party Payments,470101,Purchase of Care,07-Sep-2016,3175406-2333232,"8,207.13",ASPIRE CARE GROUP.
Children and Adult Services,Head of Adults,Third Party Payments,474101,Purchase of Care,07-Sep-2016,3175407-2332913,"1,715.08",ASTONBROOK CARE HOMES LTD T/A MOORLANDS CARE HOME.
Children and Adult Services,Head of Adults,Third Party Payments,470101,Purchase of Care,07-Sep-2016,3175408-2332112,"3,900.00",ATLAS HEALTHCARE LTD.
Children and Adult Services,Head of Adults,Third Party Payments,470101,Purchase of Care,07-Sep-2016,3175408-2332113,"7,440.00",ATLAS HEALTHCARE LTD.
Children and Adult Services,Head of Adults,Third Party Payments,470101,Purchase of Care,07-Sep-2016,3175409-2332069,"4,244.80",AUTISM CARE UK (4) LTD.
Children and Adult Services,Head of Adults,Third Party Payments,470101,Purchase of Care,07-Sep-2016,3175409-2332070,"1,742.44",AUTISM CARE UK (4) LTD.
Children and Adult Services,Head of Adults,Third Party Payments,470101,Purchase of Care,07-Sep-2016,3175409-2332071,568.96,AUTISM CARE UK (4) LTD.
Children and Adult Services,Head of Adults,Third Party Payments,470101,Purchase of Care,07-Sep-2016,3175409-2332072,"3,564.00",AUTISM CARE UK (4) LTD.
Children and Adult Services,Head of Adults,Third Party Payments,470101,Purchase of Care,07-Sep-2016,3175410-2332665,"3,400.00",AUTISM NORTH.
Children and Adult Services,Head of Adults,Third Party Payments,470101,Purchase of Care,07-Sep-2016,3175410-2332667,"4,560.00",AUTISM NORTH.
Children and Adult Services,Head of Adults,Third Party Payments,470101,Purchase of Care,07-Sep-2016,3175410-2332668,"2,610.72",AUTISM NORTH.
Children and Adult Services,Head of Adults,Third Party Payments,470101,Purchase of Care,07-Sep-2016,3175410-2332669,"9,318.00",AUTISM NORTH.
Children and Adult Services,Head of Adults,Third Party Payments,470101,Purchase of Care,07-Sep-2016,3175411-2332073,"6,478.68",AUTISM NORTH.
Children and Adult Services,Head of Adults,Third Party Payments,470101,Purchase of Care,07-Sep-2016,3175412-2332309,"1,949.24",AYCLIFFE CARE HOME.
Children and Adult Services,Head of Adults,Third Party Payments,474101,Purchase of Care,07-Sep-2016,3175412-2332310,"1,023.28",AYCLIFFE CARE HOME.
Children and Adult Services,Head of Adults,Third Party Payments,470101,Purchase of Care,07-Sep-2016,3175412-2332312,"1,949.24",AYCLIFFE CARE HOME.
Children and Adult Services,Head of Adults,Third Party Payments,470101,Purchase of Care,07-Sep-2016,3175412-2332313,"1,949.24",AYCLIFFE CARE HOME.
Children and Adult Services,Head of Adults,Third Party Payments,470101,Purchase of Care,07-Sep-2016,3175412-2332314,835.38,AYCLIFFE CARE HOME.
Children and Adult Services,Head of Adults,Third Party Payments,471101,Purchase of Care,07-Sep-2016,3175412-2332316,"1,230.31",AYCLIFFE CARE HOME.
Children and Adult Services,Head of Adults,Third Party Payments,470101,Purchase of Care,07-Sep-2016,3175412-2332317,"1,949.24",AYCLIFFE CARE HOME.
Children and Adult Services,Head of Adults,Third Party Payments,470101,Purchase of Care,07-Sep-2016,3175412-2332318,"1,601.16",AYCLIFFE CARE HOME.
Children and Adult Services,Head of Adults,Third Party Payments,470101,Purchase of Care,07-Sep-2016,3175412-2332320,"3,202.32",AYCLIFFE CARE HOME.
Children and Adult Services,Head of Adults,Third Party Payments,474101,Purchase of Care,07-Sep-2016,3175412-2332322,"1,023.32",AYCLIFFE CARE HOME.
Children and Adult Services,Head of Adults,Third Party Payments,470101,Purchase of Care,07-Sep-2016,3175412-2332324,"1,949.24",AYCLIFFE CARE HOME.
